Organisation Name,Organisation Code,Unique Ref No ,Effective Date,Directorate where expenditure incurred,Supplier Name,Payment Date,Net amount,Purpose of Spend,"Procurement Classification
(Higher Level)","Procurement Classification
(Lower Level)",CAPITAL / REVENUE
Walsall Council,http://opendatacommunities.org/id/metropolitan-district-council/walsall ,WC153-1,31.08.2023,RESOURCES AND TRANSFORMATION,11KBW,18/08/2023,730,6610-School Only Payments - Catering,THIRD PARTY PAYMENTS,INDEPENDENT UNIT WITHIN COUNCIL,REVENUE
Walsall Council,http://opendatacommunities.org/id/metropolitan-district-council/walsall ,WC153-2,31.08.2023,RESOURCES AND TRANSFORMATION,11KBW,04/08/2023,"1,250.00",6610-School Only Payments - Catering,THIRD PARTY PAYMENTS,INDEPENDENT UNIT WITHIN COUNCIL,REVENUE
Walsall Council,http://opendatacommunities.org/id/metropolitan-district-council/walsall ,WC153-3,31.08.2023,CHILDRENS,247 CARS (WILLENHALL) LIMITED,15/08/2023,"1,572.50",6241-Hire of Vehicle with Driver,TRANSPORT,DIRECT TRANSPORT COSTS,REVENUE
Walsall Council,http://opendatacommunities.org/id/metropolitan-district-council/walsall ,WC153-4,31.08.2023,CHILDRENS,247 CARS (WILLENHALL) LIMITED,15/08/2023,"2,452.25",6241-Hire of Vehicle with Driver,TRANSPORT,DIRECT TRANSPORT COSTS,REVENUE
Walsall Council,http://opendatacommunities.org/id/metropolitan-district-council/walsall ,WC153-5,31.08.2023,CHILDRENS,247 CARS (WILLENHALL) LIMITED,15/08/2023,"1,572.50",6241-Hire of Vehicle with Driver,TRANSPORT,DIRECT TRANSPORT COSTS,REVENUE
Walsall Council,http://opendatacommunities.org/id/metropolitan-district-council/walsall ,WC153-6,31.08.2023,CHILDRENS,247 CARS (WILLENHALL) LIMITED,15/08/2023,"1,572.50",6241-Hire of Vehicle with Driver,TRANSPORT,DIRECT TRANSPORT COSTS,REVENUE
Walsall Council,http://opendatacommunities.org/id/metropolitan-district-council/walsall ,WC153-7,31.08.2023,CHILDRENS,247 CARS (WILLENHALL) LIMITED,15/08/2023,"3,315.00",6241-Hire of Vehicle with Driver,TRANSPORT,DIRECT TRANSPORT COSTS,REVENUE
Walsall Council,http://opendatacommunities.org/id/metropolitan-district-council/walsall ,WC153-8,31.08.2023,CHILDRENS,247 CARS (WILLENHALL) LIMITED,15/08/2023,"2,507.50",6241-Hire of Vehicle with Driver,TRANSPORT,DIRECT TRANSPORT COSTS,REVENUE
Walsall Council,http://opendatacommunities.org/id/metropolitan-district-council/walsall ,WC153-9,31.08.2023,CHILDRENS,247 CARS (WILLENHALL) LIMITED,15/08/2023,"1,572.50",6241-Hire of Vehicle with Driver,TRANSPORT,DIRECT TRANSPORT COSTS,REVENUE
Walsall Council,http://opendatacommunities.org/id/metropolitan-district-council/walsall ,WC153-10,31.08.2023,CHILDRENS,247 CARS (WILLENHALL) LIMITED,15/08/2023,"2,040.00",6241-Hire of Vehicle with Driver,TRANSPORT,DIRECT TRANSPORT COSTS,REVENUE
Walsall Council,http://opendatacommunities.org/id/metropolitan-district-council/walsall ,WC153-11,31.08.2023,CHILDRENS,247 CARS (WILLENHALL) LIMITED,15/08/2023,"1,704.00",6241-Hire of Vehicle with Driver,TRANSPORT,DIRECT TRANSPORT COSTS,REVENUE
Walsall Council,http://opendatacommunities.org/id/metropolitan-district-council/walsall ,WC153-12,31.08.2023,CHILDRENS,247 CARS (WILLENHALL) LIMITED,15/08/2023,"1,704.00",6241-Hire of Vehicle with Driver,TRANSPORT,DIRECT TRANSPORT COSTS,REVENUE
Walsall Council,http://opendatacommunities.org/id/metropolitan-district-council/walsall ,WC153-13,31.08.2023,CHILDRENS,247 CARS (WILLENHALL) LIMITED,15/08/2023,"1,974.00",6241-Hire of Vehicle with Driver,TRANSPORT,DIRECT TRANSPORT COSTS,REVENUE
Walsall Council,http://opendatacommunities.org/id/metropolitan-district-council/walsall ,WC153-14,31.08.2023,CHILDRENS,247 CARS (WILLENHALL) LIMITED,15/08/2023,"1,587.70",6241-Hire of Vehicle with Driver,TRANSPORT,DIRECT TRANSPORT COSTS,REVENUE
Walsall Council,http://opendatacommunities.org/id/metropolitan-district-council/walsall ,WC153-15,31.08.2023,CHILDRENS,247 CARS (WILLENHALL) LIMITED,15/08/2023,"1,931.20",6241-Hire of Vehicle with Driver,TRANSPORT,DIRECT TRANSPORT COSTS,REVENUE
Walsall Council,http://opendatacommunities.org/id/metropolitan-district-council/walsall ,WC153-16,31.08.2023,CHILDRENS,247 CARS (WILLENHALL) LIMITED,15/08/2023,"2,114.60",6241-Hire of Vehicle with Driver,TRANSPORT,DIRECT TRANSPORT COSTS,REVENUE
Walsall Council,http://opendatacommunities.org/id/metropolitan-district-council/walsall ,WC153-17,31.08.2023,CHILDRENS,247 CARS (WILLENHALL) LIMITED,15/08/2023,"1,497.02",6241-Hire of Vehicle with Driver,TRANSPORT,DIRECT TRANSPORT COSTS,REVENUE
Walsall Council,http://opendatacommunities.org/id/metropolitan-district-council/walsall ,WC153-18,31.08.2023,CHILDRENS,247 CARS (WILLENHALL) LIMITED,15/08/2023,"2,400.00",6241-Hire of Vehicle with Driver,TRANSPORT,DIRECT TRANSPORT COSTS,REVENUE
Walsall Council,http://opendatacommunities.org/id/metropolitan-district-council/walsall ,WC153-19,31.08.2023,CHILDRENS,247 CARS (WILLENHALL) LIMITED,15/08/2023,"1,974.00",6241-Hire of Vehicle with Driver,TRANSPORT,DIRECT TRANSPORT COSTS,REVENUE
Walsall Council,http://opendatacommunities.org/id/metropolitan-district-council/walsall ,WC153-20,31.08.2023,CHILDRENS,247 CARS (WILLENHALL) LIMITED,15/08/2023,"1,704.00",6241-Hire of Vehicle with Driver,TRANSPORT,DIRECT TRANSPORT COSTS,REVENUE
Walsall Council,http://opendatacommunities.org/id/metropolitan-district-council/walsall ,WC153-21,31.08.2023,CHILDRENS,247 CARS (WILLENHALL) LIMITED,15/08/2023,"1,849.60",6241-Hire of Vehicle with Driver,TRANSPORT,DIRECT TRANSPORT COSTS,REVENUE
Walsall Council,http://opendatacommunities.org/id/metropolitan-district-council/walsall ,WC153-22,31.08.2023,CHILDRENS,247 CARS (WILLENHALL) LIMITED,15/08/2023,"3,920.00",6241-Hire of Vehicle with Driver,TRANSPORT,DIRECT TRANSPORT COSTS,REVENUE
Walsall Council,http://opendatacommunities.org/id/metropolitan-district-council/walsall ,WC153-23,31.08.2023,CHILDRENS,247 CARS (WILLENHALL) LIMITED,15/08/2023,"1,242.36",6241-Hire of Vehicle with Driver,TRANSPORT,DIRECT TRANSPORT COSTS,REVENUE
Walsall Council,http://opendatacommunities.org/id/metropolitan-district-council/walsall ,WC153-24,31.08.2023,CHILDRENS,247 CARS (WILLENHALL) LIMITED,15/08/2023,"1,704.00",6241-Hire of Vehicle with Driver,TRANSPORT,DIRECT TRANSPORT COSTS,REVENUE
Walsall Council,http://opendatacommunities.org/id/metropolitan-district-council/walsall ,WC153-25,31.08.2023,CHILDRENS,247 CARS (WILLENHALL) LIMITED,15/08/2023,"1,267.86",6241-Hire of Vehicle with Driver,TRANSPORT,DIRECT TRANSPORT COSTS,REVENUE
Walsall Council,http://opendatacommunities.org/id/metropolitan-district-council/walsall ,WC153-26,31.08.2023,CHILDRENS,247 CARS (WILLENHALL) LIMITED,15/08/2023,"2,400.60",6241-Hire of Vehicle with Driver,TRANSPORT,DIRECT TRANSPORT COSTS,REVENUE
Walsall Council,http://opendatacommunities.org/id/metropolitan-district-council/walsall ,WC153-27,31.08.2023,CHILDRENS,247 CARS (WILLENHALL) LIMITED,15/08/2023,932.96,6241-Hire of Vehicle with Driver,TRANSPORT,DIRECT TRANSPORT COSTS,REVENUE
Walsall Council,http://opendatacommunities.org/id/metropolitan-district-council/walsall ,WC153-28,31.08.2023,CHILDRENS,247 CARS (WILLENHALL) LIMITED,15/08/2023,461.4,6241-Hire of Vehicle with Driver,TRANSPORT,DIRECT TRANSPORT COSTS,REVENUE
Walsall Council,http://opendatacommunities.org/id/metropolitan-district-council/walsall ,WC153-29,31.08.2023,CHILDRENS,247 CARS (WILLENHALL) LIMITED,15/08/2023,"1,704.00",6241-Hire of Vehicle with Driver,TRANSPORT,DIRECT TRANSPORT COSTS,REVENUE
Walsall Council,http://opendatacommunities.org/id/metropolitan-district-council/walsall ,WC153-30,31.08.2023,CHILDRENS,247 CARS (WILLENHALL) LIMITED,15/08/2023,"1,130.50",6241-Hire of Vehicle with Driver,TRANSPORT,DIRECT TRANSPORT COSTS,REVENUE
Walsall Council,http://opendatacommunities.org/id/metropolitan-district-council/walsall ,WC153-31,31.08.2023,CHILDRENS,247 CARS (WILLENHALL) LIMITED,15/08/2023,"1,605.00",6241-Hire of Vehicle with Driver,TRANSPORT,DIRECT TRANSPORT COSTS,REVENUE
Walsall Council,http://opendatacommunities.org/id/metropolitan-district-council/walsall ,WC153-32,31.08.2023,CHILDRENS,247 CARS (WILLENHALL) LIMITED,15/08/2023,"1,704.00",6241-Hire of Vehicle with Driver,TRANSPORT,DIRECT TRANSPORT COSTS,REVENUE
Walsall Council,http://opendatacommunities.org/id/metropolitan-district-council/walsall ,WC153-33,31.08.2023,CHILDRENS,247 CARS (WILLENHALL) LIMITED,15/08/2023,"1,704.00",6241-Hire of Vehicle with Driver,TRANSPORT,DIRECT TRANSPORT COSTS,REVENUE
Walsall Council,http://opendatacommunities.org/id/metropolitan-district-council/walsall ,WC153-34,31.08.2023,CHILDRENS,247 CARS (WILLENHALL) LIMITED,15/08/2023,"1,200.00",6241-Hire of Vehicle with Driver,TRANSPORT,DIRECT TRANSPORT COSTS,REVENUE
Walsall Council,http://opendatacommunities.org/id/metropolitan-district-council/walsall ,WC153-35,31.08.2023,CHILDRENS,247 CARS (WILLENHALL) LIMITED,15/08/2023,"2,170.90",6241-Hire of Vehicle with Driver,TRANSPORT,DIRECT TRANSPORT COSTS,REVENUE
Walsall Council,http://opendatacommunities.org/id/metropolitan-district-council/walsall ,WC153-36,31.08.2023,CHILDRENS,247 CARS (WILLENHALL) LIMITED,15/08/2023,706.8,6241-Hire of Vehicle with Driver,TRANSPORT,DIRECT TRANSPORT COSTS,REVENUE
Walsall Council,http://opendatacommunities.org/id/metropolitan-district-council/walsall ,WC153-37,31.08.2023,CHILDRENS,247 CARS (WILLENHALL) LIMITED,15/08/2023,"1,608.20",6241-Hire of Vehicle with Driver,TRANSPORT,DIRECT TRANSPORT COSTS,REVENUE
Walsall Council,http://opendatacommunities.org/id/metropolitan-district-council/walsall ,WC153-38,31.08.2023,"ECONOMY, ENVIRONMENT & COMMUNITIES",2HILLS CONSULTANCY LTD,17/08/2023,"1,072.50",6430-Consultant Fees,SUPPLIES & SERVICES,SERVICES,REVENUE
Walsall Council,http://opendatacommunities.org/id/metropolitan-district-council/walsall ,WC153-39,31.08.2023,CHILDRENS,3PB BARRISTERS,31/08/2023,750,6220-School Only Payments - Catering,THIRD PARTY PAYMENTS,INDEPENDENT UNIT WITHIN COUNCIL,REVENUE
Walsall Council,http://opendatacommunities.org/id/metropolitan-district-council/walsall ,WC153-40,31.08.2023,ADULT SOCIAL CARE,5 CARE SERVICES LTD,01/08/2023,378,6541-Domiciliary Care,THIRD PARTY PAYMENTS,PRIVATE CONTRACTOR,REVENUE
Walsall Council,http://opendatacommunities.org/id/metropolitan-district-council/walsall ,WC153-41,31.08.2023,ADULT SOCIAL CARE,5 CARE SERVICES LTD,01/08/2023,567,6541-Domiciliary Care,THIRD PARTY PAYMENTS,PRIVATE CONTRACTOR,REVENUE
Walsall Council,http://opendatacommunities.org/id/metropolitan-district-council/walsall ,WC153-42,31.08.2023,ADULT SOCIAL CARE,5 CARE SERVICES LTD,01/08/2023,"1,008.00",6541-Domiciliary Care,THIRD PARTY PAYMENTS,PRIVATE CONTRACTOR,REVENUE
Walsall Council,http://opendatacommunities.org/id/metropolitan-district-council/walsall ,WC153-43,31.08.2023,ADULT SOCIAL CARE,5 CARE SERVICES LTD,01/08/2023,774,6541-Domiciliary Care,THIRD PARTY PAYMENTS,PRIVATE CONTRACTOR,REVENUE
Walsall Council,http://opendatacommunities.org/id/metropolitan-district-council/walsall ,WC153-44,31.08.2023,ADULT SOCIAL CARE,5 CARE SERVICES LTD,01/08/2023,756,6541-Domiciliary Care,THIRD PARTY PAYMENTS,PRIVATE CONTRACTOR,REVENUE
Walsall Council,http://opendatacommunities.org/id/metropolitan-district-council/walsall ,WC153-45,31.08.2023,ADULT SOCIAL CARE,5 CARE SERVICES LTD,01/08/2023,328.5,6541-Domiciliary Care,THIRD PARTY PAYMENTS,PRIVATE CONTRACTOR,REVENUE
Walsall Council,http://opendatacommunities.org/id/metropolitan-district-council/walsall ,WC153-46,31.08.2023,ADULT SOCIAL CARE,5 CARE SERVICES LTD,01/08/2023,378,6541-Domiciliary Care,THIRD PARTY PAYMENTS,PRIVATE CONTRACTOR,REVENUE
Walsall Council,http://opendatacommunities.org/id/metropolitan-district-council/walsall ,WC153-47,31.08.2023,ADULT SOCIAL CARE,5 CARE SERVICES LTD,01/08/2023,283.5,6541-Domiciliary Care,THIRD PARTY PAYMENTS,PRIVATE CONTRACTOR,REVENUE
Walsall Council,http://opendatacommunities.org/id/metropolitan-district-council/walsall ,WC153-48,31.08.2023,ADULT SOCIAL CARE,5 CARE SERVICES LTD,01/08/2023,597,6541-Domiciliary Care,THIRD PARTY PAYMENTS,PRIVATE CONTRACTOR,REVENUE
Walsall Council,http://opendatacommunities.org/id/metropolitan-district-council/walsall ,WC153-49,31.08.2023,ADULT SOCIAL CARE,5 CARE SERVICES LTD,01/08/2023,"1,386.00",6541-Domiciliary Care,THIRD PARTY PAYMENTS,PRIVATE CONTRACTOR,REVENUE
Walsall Council,http://opendatacommunities.org/id/metropolitan-district-council/walsall ,WC153-50,31.08.2023,ADULT SOCIAL CARE,5 CARE SERVICES LTD,01/08/2023,630,6541-Domiciliary Care,THIRD PARTY PAYMENTS,PRIVATE CONTRACTOR,REVENUE
Walsall Council,http://opendatacommunities.org/id/metropolitan-district-council/walsall ,WC153-51,31.08.2023,ADULT SOCIAL CARE,5 CARE SERVICES LTD,01/08/2023,567,6541-Domiciliary Care,THIRD PARTY PAYMENTS,PRIVATE CONTRACTOR,REVENUE
Walsall Council,http://opendatacommunities.org/id/metropolitan-district-council/walsall ,WC153-52,31.08.2023,ADULT SOCIAL CARE,5 CARE SERVICES LTD,01/08/2023,567,6541-Domiciliary Care,THIRD PARTY PAYMENTS,PRIVATE CONTRACTOR,REVENUE
Walsall Council,http://opendatacommunities.org/id/metropolitan-district-council/walsall ,WC153-53,31.08.2023,ADULT SOCIAL CARE,5 CARE SERVICES LTD,01/08/2023,864,6541-Domiciliary Care,THIRD PARTY PAYMENTS,PRIVATE CONTRACTOR,REVENUE
Walsall Council,http://opendatacommunities.org/id/metropolitan-district-council/walsall ,WC153-54,31.08.2023,ADULT SOCIAL CARE,5 CARE SERVICES LTD,01/08/2023,651,6541-Domiciliary Care,THIRD PARTY PAYMENTS,PRIVATE CONTRACTOR,REVENUE
Walsall Council,http://opendatacommunities.org/id/metropolitan-district-council/walsall ,WC153-55,31.08.2023,ADULT SOCIAL CARE,5 CARE SERVICES LTD,01/08/2023,283.5,6541-Domiciliary Care,THIRD PARTY PAYMENTS,PRIVATE CONTRACTOR,REVENUE
Walsall Council,http://opendatacommunities.org/id/metropolitan-district-council/walsall ,WC153-56,31.08.2023,ADULT SOCIAL CARE,5 CARE SERVICES LTD,01/08/2023,283.5,6541-Domiciliary Care,THIRD PARTY PAYMENTS,PRIVATE CONTRACTOR,REVENUE
Walsall Council,http://opendatacommunities.org/id/metropolitan-district-council/walsall ,WC153-57,31.08.2023,ADULT SOCIAL CARE,5 CARE SERVICES LTD,01/08/2023,648,6541-Domiciliary Care,THIRD PARTY PAYMENTS,PRIVATE CONTRACTOR,REVENUE
Walsall Council,http://opendatacommunities.org/id/metropolitan-district-council/walsall ,WC153-58,31.08.2023,ADULT SOCIAL CARE,5 CARE SERVICES LTD,01/08/2023,819,6541-Domiciliary Care,THIRD PARTY PAYMENTS,PRIVATE CONTRACTOR,REVENUE
Walsall Council,http://opendatacommunities.org/id/metropolitan-district-council/walsall ,WC153-59,31.08.2023,ADULT SOCIAL CARE,5 CARE SERVICES LTD,01/08/2023,603,6541-Domiciliary Care,THIRD PARTY PAYMENTS,PRIVATE CONTRACTOR,REVENUE
Walsall Council,http://opendatacommunities.org/id/metropolitan-district-council/walsall ,WC153-60,31.08.2023,ADULT SOCIAL CARE,5 CARE SERVICES LTD,01/08/2023,567,6541-Domiciliary Care,THIRD PARTY PAYMENTS,PRIVATE CONTRACTOR,REVENUE
Walsall Council,http://opendatacommunities.org/id/metropolitan-district-council/walsall ,WC153-61,31.08.2023,ADULT SOCIAL CARE,5 CARE SERVICES LTD,01/08/2023,360,6541-Domiciliary Care,THIRD PARTY PAYMENTS,PRIVATE CONTRACTOR,REVENUE
Walsall Council,http://opendatacommunities.org/id/metropolitan-district-council/walsall ,WC153-62,31.08.2023,ADULT SOCIAL CARE,5 CARE SERVICES LTD,01/08/2023,567,6541-Domiciliary Care,THIRD PARTY PAYMENTS,PRIVATE CONTRACTOR,REVENUE
Walsall Council,http://opendatacommunities.org/id/metropolitan-district-council/walsall ,WC153-63,31.08.2023,ADULT SOCIAL CARE,5 CARE SERVICES LTD,01/08/2023,567,6541-Domiciliary Care,THIRD PARTY PAYMENTS,PRIVATE CONTRACTOR,REVENUE
Walsall Council,http://opendatacommunities.org/id/metropolitan-district-council/walsall ,WC153-64,31.08.2023,ADULT SOCIAL CARE,5 CARE SERVICES LTD,01/08/2023,504,6541-Domiciliary Care,THIRD PARTY PAYMENTS,PRIVATE CONTRACTOR,REVENUE
Walsall Council,http://opendatacommunities.org/id/metropolitan-district-council/walsall ,WC153-65,31.08.2023,ADULT SOCIAL CARE,5 CARE SERVICES LTD,01/08/2023,262.5,6541-Domiciliary Care,THIRD PARTY PAYMENTS,PRIVATE CONTRACTOR,REVENUE
Walsall Council,http://opendatacommunities.org/id/metropolitan-district-council/walsall ,WC153-66,31.08.2023,ADULT SOCIAL CARE,5 CARE SERVICES LTD,01/08/2023,630,6541-Domiciliary Care,THIRD PARTY PAYMENTS,PRIVATE CONTRACTOR,REVENUE
Walsall Council,http://opendatacommunities.org/id/metropolitan-district-council/walsall ,WC153-67,31.08.2023,ADULT SOCIAL CARE,5 CARE SERVICES LTD,01/08/2023,283.5,6541-Domiciliary Care,THIRD PARTY PAYMENTS,PRIVATE CONTRACTOR,REVENUE
Walsall Council,http://opendatacommunities.org/id/metropolitan-district-council/walsall ,WC153-68,31.08.2023,ADULT SOCIAL CARE,5 CARE SERVICES LTD,01/08/2023,666,6541-Domiciliary Care,THIRD PARTY PAYMENTS,PRIVATE CONTRACTOR,REVENUE
Walsall Council,http://opendatacommunities.org/id/metropolitan-district-council/walsall ,WC153-69,31.08.2023,ADULT SOCIAL CARE,5 CARE SERVICES LTD,01/08/2023,378,6541-Domiciliary Care,THIRD PARTY PAYMENTS,PRIVATE CONTRACTOR,REVENUE
Walsall Council,http://opendatacommunities.org/id/metropolitan-district-council/walsall ,WC153-70,31.08.2023,ADULT SOCIAL CARE,5 CARE SERVICES LTD,01/08/2023,567,6541-Domiciliary Care,THIRD PARTY PAYMENTS,PRIVATE CONTRACTOR,REVENUE
Walsall Council,http://opendatacommunities.org/id/metropolitan-district-council/walsall ,WC153-71,31.08.2023,ADULT SOCIAL CARE,5 CARE SERVICES LTD,01/08/2023,"1,008.00",6541-Domiciliary Care,THIRD PARTY PAYMENTS,PRIVATE CONTRACTOR,REVENUE
Walsall Council,http://opendatacommunities.org/id/metropolitan-district-council/walsall ,WC153-72,31.08.2023,ADULT SOCIAL CARE,5 CARE SERVICES LTD,01/08/2023,378,6541-Domiciliary Care,THIRD PARTY PAYMENTS,PRIVATE CONTRACTOR,REVENUE
Walsall Council,http://opendatacommunities.org/id/metropolitan-district-council/walsall ,WC153-73,31.08.2023,ADULT SOCIAL CARE,5 CARE SERVICES LTD,01/08/2023,567,6541-Domiciliary Care,THIRD PARTY PAYMENTS,PRIVATE CONTRACTOR,REVENUE
Walsall Council,http://opendatacommunities.org/id/metropolitan-district-council/walsall ,WC153-74,31.08.2023,ADULT SOCIAL CARE,5 CARE SERVICES LTD,01/08/2023,603,6541-Domiciliary Care,THIRD PARTY PAYMENTS,PRIVATE CONTRACTOR,REVENUE
Walsall Council,http://opendatacommunities.org/id/metropolitan-district-council/walsall ,WC153-75,31.08.2023,ADULT SOCIAL CARE,5 CARE SERVICES LTD,01/08/2023,283.5,6541-Domiciliary Care,THIRD PARTY PAYMENTS,PRIVATE CONTRACTOR,REVENUE
Walsall Council,http://opendatacommunities.org/id/metropolitan-district-council/walsall ,WC153-76,31.08.2023,ADULT SOCIAL CARE,5 CARE SERVICES LTD,01/08/2023,864,6541-Domiciliary Care,THIRD PARTY PAYMENTS,PRIVATE CONTRACTOR,REVENUE
Walsall Council,http://opendatacommunities.org/id/metropolitan-district-council/walsall ,WC153-77,31.08.2023,ADULT SOCIAL CARE,5 CARE SERVICES LTD,01/08/2023,360,6541-Domiciliary Care,THIRD PARTY PAYMENTS,PRIVATE CONTRACTOR,REVENUE
Walsall Council,http://opendatacommunities.org/id/metropolitan-district-council/walsall ,WC153-78,31.08.2023,ADULT SOCIAL CARE,5 CARE SERVICES LTD,01/08/2023,567,6541-Domiciliary Care,THIRD PARTY PAYMENTS,PRIVATE CONTRACTOR,REVENUE
Walsall Council,http://opendatacommunities.org/id/metropolitan-district-council/walsall ,WC153-79,31.08.2023,ADULT SOCIAL CARE,5 CARE SERVICES LTD,01/08/2023,756,6541-Domiciliary Care,THIRD PARTY PAYMENTS,PRIVATE CONTRACTOR,REVENUE
Walsall Council,http://opendatacommunities.org/id/metropolitan-district-council/walsall ,WC153-80,31.08.2023,ADULT SOCIAL CARE,5 CARE SERVICES LTD,01/08/2023,328.5,6541-Domiciliary Care,THIRD PARTY PAYMENTS,PRIVATE CONTRACTOR,REVENUE
Walsall Council,http://opendatacommunities.org/id/metropolitan-district-council/walsall ,WC153-81,31.08.2023,ADULT SOCIAL CARE,5 CARE SERVICES LTD,01/08/2023,774,6541-Domiciliary Care,THIRD PARTY PAYMENTS,PRIVATE CONTRACTOR,REVENUE
Walsall Council,http://opendatacommunities.org/id/metropolitan-district-council/walsall ,WC153-82,31.08.2023,ADULT SOCIAL CARE,5 CARE SERVICES LTD,01/08/2023,567,6541-Domiciliary Care,THIRD PARTY PAYMENTS,PRIVATE CONTRACTOR,REVENUE
Walsall Council,http://opendatacommunities.org/id/metropolitan-district-council/walsall ,WC153-83,31.08.2023,ADULT SOCIAL CARE,5 CARE SERVICES LTD,01/08/2023,504,6541-Domiciliary Care,THIRD PARTY PAYMENTS,PRIVATE CONTRACTOR,REVENUE
Walsall Council,http://opendatacommunities.org/id/metropolitan-district-council/walsall ,WC153-84,31.08.2023,ADULT SOCIAL CARE,5 CARE SERVICES LTD,01/08/2023,262.5,6541-Domiciliary Care,THIRD PARTY PAYMENTS,PRIVATE CONTRACTOR,REVENUE
Walsall Council,http://opendatacommunities.org/id/metropolitan-district-council/walsall ,WC153-85,31.08.2023,ADULT SOCIAL CARE,5 CARE SERVICES LTD,01/08/2023,630,6541-Domiciliary Care,THIRD PARTY PAYMENTS,PRIVATE CONTRACTOR,REVENUE
Walsall Council,http://opendatacommunities.org/id/metropolitan-district-council/walsall ,WC153-86,31.08.2023,ADULT SOCIAL CARE,5 CARE SERVICES LTD,01/08/2023,283.5,6541-Domiciliary Care,THIRD PARTY PAYMENTS,PRIVATE CONTRACTOR,REVENUE
Walsall Council,http://opendatacommunities.org/id/metropolitan-district-council/walsall ,WC153-87,31.08.2023,ADULT SOCIAL CARE,5 CARE SERVICES LTD,01/08/2023,666,6541-Domiciliary Care,THIRD PARTY PAYMENTS,PRIVATE CONTRACTOR,REVENUE
Walsall Council,http://opendatacommunities.org/id/metropolitan-district-council/walsall ,WC153-88,31.08.2023,ADULT SOCIAL CARE,5 CARE SERVICES LTD,01/08/2023,567,6541-Domiciliary Care,THIRD PARTY PAYMENTS,PRIVATE CONTRACTOR,REVENUE
Walsall Council,http://opendatacommunities.org/id/metropolitan-district-council/walsall ,WC153-89,31.08.2023,ADULT SOCIAL CARE,5 CARE SERVICES LTD,01/08/2023,630,6541-Domiciliary Care,THIRD PARTY PAYMENTS,PRIVATE CONTRACTOR,REVENUE
Walsall Council,http://opendatacommunities.org/id/metropolitan-district-council/walsall ,WC153-90,31.08.2023,ADULT SOCIAL CARE,5 CARE SERVICES LTD,01/08/2023,567,6541-Domiciliary Care,THIRD PARTY PAYMENTS,PRIVATE CONTRACTOR,REVENUE
Walsall Council,http://opendatacommunities.org/id/metropolitan-district-council/walsall ,WC153-91,31.08.2023,ADULT SOCIAL CARE,5 CARE SERVICES LTD,01/08/2023,567,6541-Domiciliary Care,THIRD PARTY PAYMENTS,PRIVATE CONTRACTOR,REVENUE
Walsall Council,http://opendatacommunities.org/id/metropolitan-district-council/walsall ,WC153-92,31.08.2023,ADULT SOCIAL CARE,5 CARE SERVICES LTD,01/08/2023,283.5,6541-Domiciliary Care,THIRD PARTY PAYMENTS,PRIVATE CONTRACTOR,REVENUE
Walsall Council,http://opendatacommunities.org/id/metropolitan-district-council/walsall ,WC153-93,31.08.2023,ADULT SOCIAL CARE,5 CARE SERVICES LTD,01/08/2023,"1,386.00",6541-Domiciliary Care,THIRD PARTY PAYMENTS,PRIVATE CONTRACTOR,REVENUE
Walsall Council,http://opendatacommunities.org/id/metropolitan-district-council/walsall ,WC153-94,31.08.2023,ADULT SOCIAL CARE,5 CARE SERVICES LTD,01/08/2023,864,6541-Domiciliary Care,THIRD PARTY PAYMENTS,PRIVATE CONTRACTOR,REVENUE
Walsall Council,http://opendatacommunities.org/id/metropolitan-district-council/walsall ,WC153-95,31.08.2023,ADULT SOCIAL CARE,5 CARE SERVICES LTD,01/08/2023,651,6541-Domiciliary Care,THIRD PARTY PAYMENTS,PRIVATE CONTRACTOR,REVENUE
Walsall Council,http://opendatacommunities.org/id/metropolitan-district-council/walsall ,WC153-96,31.08.2023,ADULT SOCIAL CARE,5 CARE SERVICES LTD,01/08/2023,283.5,6541-Domiciliary Care,THIRD PARTY PAYMENTS,PRIVATE CONTRACTOR,REVENUE
Walsall Council,http://opendatacommunities.org/id/metropolitan-district-council/walsall ,WC153-97,31.08.2023,ADULT SOCIAL CARE,5 CARE SERVICES LTD,01/08/2023,819,6541-Domiciliary Care,THIRD PARTY PAYMENTS,PRIVATE CONTRACTOR,REVENUE
Walsall Council,http://opendatacommunities.org/id/metropolitan-district-council/walsall ,WC153-98,31.08.2023,ADULT SOCIAL CARE,5 CARE SERVICES LTD,15/08/2023,774,6541-Domiciliary Care,THIRD PARTY PAYMENTS,PRIVATE CONTRACTOR,REVENUE
Walsall Council,http://opendatacommunities.org/id/metropolitan-district-council/walsall ,WC153-99,31.08.2023,ADULT SOCIAL CARE,5 CARE SERVICES LTD,15/08/2023,283.5,6541-Domiciliary Care,THIRD PARTY PAYMENTS,PRIVATE CONTRACTOR,REVENUE
Walsall Council,http://opendatacommunities.org/id/metropolitan-district-council/walsall ,WC153-100,31.08.2023,ADULT SOCIAL CARE,5 CARE SERVICES LTD,15/08/2023,"1,296.00",6541-Domiciliary Care,THIRD PARTY PAYMENTS,PRIVATE CONTRACTOR,REVENUE
Walsall Council,http://opendatacommunities.org/id/metropolitan-district-council/walsall ,WC153-101,31.08.2023,ADULT SOCIAL CARE,5 CARE SERVICES LTD,15/08/2023,792,6541-Domiciliary Care,THIRD PARTY PAYMENTS,PRIVATE CONTRACTOR,REVENUE
Walsall Council,http://opendatacommunities.org/id/metropolitan-district-council/walsall ,WC153-102,31.08.2023,ADULT SOCIAL CARE,5 CARE SERVICES LTD,15/08/2023,328.5,6541-Domiciliary Care,THIRD PARTY PAYMENTS,PRIVATE CONTRACTOR,REVENUE
Walsall Council,http://opendatacommunities.org/id/metropolitan-district-council/walsall ,WC153-103,31.08.2023,ADULT SOCIAL CARE,5 CARE SERVICES LTD,15/08/2023,378,6541-Domiciliary Care,THIRD PARTY PAYMENTS,PRIVATE CONTRACTOR,REVENUE
Walsall Council,http://opendatacommunities.org/id/metropolitan-district-council/walsall ,WC153-104,31.08.2023,ADULT SOCIAL CARE,5 CARE SERVICES LTD,15/08/2023,567,6541-Domiciliary Care,THIRD PARTY PAYMENTS,PRIVATE CONTRACTOR,REVENUE
Walsall Council,http://opendatacommunities.org/id/metropolitan-district-council/walsall ,WC153-105,31.08.2023,ADULT SOCIAL CARE,5 CARE SERVICES LTD,15/08/2023,"1,008.00",6541-Domiciliary Care,THIRD PARTY PAYMENTS,PRIVATE CONTRACTOR,REVENUE
Walsall Council,http://opendatacommunities.org/id/metropolitan-district-council/walsall ,WC153-106,31.08.2023,ADULT SOCIAL CARE,5 CARE SERVICES LTD,15/08/2023,283.5,6541-Domiciliary Care,THIRD PARTY PAYMENTS,PRIVATE CONTRACTOR,REVENUE
Walsall Council,http://opendatacommunities.org/id/metropolitan-district-council/walsall ,WC153-107,31.08.2023,ADULT SOCIAL CARE,5 CARE SERVICES LTD,15/08/2023,"1,386.00",6541-Domiciliary Care,THIRD PARTY PAYMENTS,PRIVATE CONTRACTOR,REVENUE
Walsall Council,http://opendatacommunities.org/id/metropolitan-district-council/walsall ,WC153-108,31.08.2023,ADULT SOCIAL CARE,5 CARE SERVICES LTD,15/08/2023,864,6541-Domiciliary Care,THIRD PARTY PAYMENTS,PRIVATE CONTRACTOR,REVENUE
Walsall Council,http://opendatacommunities.org/id/metropolitan-district-council/walsall ,WC153-109,31.08.2023,ADULT SOCIAL CARE,5 CARE SERVICES LTD,15/08/2023,360,6541-Domiciliary Care,THIRD PARTY PAYMENTS,PRIVATE CONTRACTOR,REVENUE
Walsall Council,http://opendatacommunities.org/id/metropolitan-district-council/walsall ,WC153-110,31.08.2023,ADULT SOCIAL CARE,5 CARE SERVICES LTD,15/08/2023,567,6541-Domiciliary Care,THIRD PARTY PAYMENTS,PRIVATE CONTRACTOR,REVENUE
Walsall Council,http://opendatacommunities.org/id/metropolitan-district-council/walsall ,WC153-111,31.08.2023,ADULT SOCIAL CARE,5 CARE SERVICES LTD,15/08/2023,630,6541-Domiciliary Care,THIRD PARTY PAYMENTS,PRIVATE CONTRACTOR,REVENUE
Walsall Council,http://opendatacommunities.org/id/metropolitan-district-council/walsall ,WC153-112,31.08.2023,ADULT SOCIAL CARE,5 CARE SERVICES LTD,15/08/2023,567,6541-Domiciliary Care,THIRD PARTY PAYMENTS,PRIVATE CONTRACTOR,REVENUE
Walsall Council,http://opendatacommunities.org/id/metropolitan-district-council/walsall ,WC153-113,31.08.2023,ADULT SOCIAL CARE,5 CARE SERVICES LTD,15/08/2023,378,6541-Domiciliary Care,THIRD PARTY PAYMENTS,PRIVATE CONTRACTOR,REVENUE
Walsall Council,http://opendatacommunities.org/id/metropolitan-district-council/walsall ,WC153-114,31.08.2023,ADULT SOCIAL CARE,5 CARE SERVICES LTD,15/08/2023,651,6541-Domiciliary Care,THIRD PARTY PAYMENTS,PRIVATE CONTRACTOR,REVENUE
Walsall Council,http://opendatacommunities.org/id/metropolitan-district-council/walsall ,WC153-115,31.08.2023,ADULT SOCIAL CARE,5 CARE SERVICES LTD,15/08/2023,283.5,6541-Domiciliary Care,THIRD PARTY PAYMENTS,PRIVATE CONTRACTOR,REVENUE
Walsall Council,http://opendatacommunities.org/id/metropolitan-district-council/walsall ,WC153-116,31.08.2023,ADULT SOCIAL CARE,5 CARE SERVICES LTD,15/08/2023,567,6541-Domiciliary Care,THIRD PARTY PAYMENTS,PRIVATE CONTRACTOR,REVENUE
Walsall Council,http://opendatacommunities.org/id/metropolitan-district-council/walsall ,WC153-117,31.08.2023,ADULT SOCIAL CARE,5 CARE SERVICES LTD,15/08/2023,504,6541-Domiciliary Care,THIRD PARTY PAYMENTS,PRIVATE CONTRACTOR,REVENUE
Walsall Council,http://opendatacommunities.org/id/metropolitan-district-council/walsall ,WC153-118,31.08.2023,ADULT SOCIAL CARE,5 CARE SERVICES LTD,15/08/2023,262.5,6541-Domiciliary Care,THIRD PARTY PAYMENTS,PRIVATE CONTRACTOR,REVENUE
Walsall Council,http://opendatacommunities.org/id/metropolitan-district-council/walsall ,WC153-119,31.08.2023,ADULT SOCIAL CARE,5 CARE SERVICES LTD,15/08/2023,567,6541-Domiciliary Care,THIRD PARTY PAYMENTS,PRIVATE CONTRACTOR,REVENUE
Walsall Council,http://opendatacommunities.org/id/metropolitan-district-council/walsall ,WC153-120,31.08.2023,ADULT SOCIAL CARE,5 CARE SERVICES LTD,15/08/2023,819,6541-Domiciliary Care,THIRD PARTY PAYMENTS,PRIVATE CONTRACTOR,REVENUE
Walsall Council,http://opendatacommunities.org/id/metropolitan-district-council/walsall ,WC153-121,31.08.2023,ADULT SOCIAL CARE,5 CARE SERVICES LTD,15/08/2023,630,6541-Domiciliary Care,THIRD PARTY PAYMENTS,PRIVATE CONTRACTOR,REVENUE
Walsall Council,http://opendatacommunities.org/id/metropolitan-district-council/walsall ,WC153-122,31.08.2023,ADULT SOCIAL CARE,5 CARE SERVICES LTD,15/08/2023,283.5,6541-Domiciliary Care,THIRD PARTY PAYMENTS,PRIVATE CONTRACTOR,REVENUE
Walsall Council,http://opendatacommunities.org/id/metropolitan-district-council/walsall ,WC153-123,31.08.2023,ADULT SOCIAL CARE,5 CARE SERVICES LTD,15/08/2023,666,6541-Domiciliary Care,THIRD PARTY PAYMENTS,PRIVATE CONTRACTOR,REVENUE
Walsall Council,http://opendatacommunities.org/id/metropolitan-district-council/walsall ,WC153-124,31.08.2023,ADULT SOCIAL CARE,5 CARE SERVICES LTD,15/08/2023,567,6541-Domiciliary Care,THIRD PARTY PAYMENTS,PRIVATE CONTRACTOR,REVENUE
Walsall Council,http://opendatacommunities.org/id/metropolitan-district-council/walsall ,WC153-125,31.08.2023,ADULT SOCIAL CARE,5 CARE SERVICES LTD,15/08/2023,567,6541-Domiciliary Care,THIRD PARTY PAYMENTS,PRIVATE CONTRACTOR,REVENUE
Walsall Council,http://opendatacommunities.org/id/metropolitan-district-council/walsall ,WC153-126,31.08.2023,ADULT SOCIAL CARE,5 CARE SERVICES LTD,15/08/2023,603,6541-Domiciliary Care,THIRD PARTY PAYMENTS,PRIVATE CONTRACTOR,REVENUE
Walsall Council,http://opendatacommunities.org/id/metropolitan-district-council/walsall ,WC153-127,31.08.2023,ADULT SOCIAL CARE,5 CARE SERVICES LTD,15/08/2023,774,6541-Domiciliary Care,THIRD PARTY PAYMENTS,PRIVATE CONTRACTOR,REVENUE
Walsall Council,http://opendatacommunities.org/id/metropolitan-district-council/walsall ,WC153-128,31.08.2023,ADULT SOCIAL CARE,5 CARE SERVICES LTD,15/08/2023,378,6541-Domiciliary Care,THIRD PARTY PAYMENTS,PRIVATE CONTRACTOR,REVENUE
Walsall Council,http://opendatacommunities.org/id/metropolitan-district-council/walsall ,WC153-129,31.08.2023,ADULT SOCIAL CARE,5 CARE SERVICES LTD,15/08/2023,567,6541-Domiciliary Care,THIRD PARTY PAYMENTS,PRIVATE CONTRACTOR,REVENUE
Walsall Council,http://opendatacommunities.org/id/metropolitan-district-council/walsall ,WC153-130,31.08.2023,ADULT SOCIAL CARE,5 CARE SERVICES LTD,15/08/2023,"1,008.00",6541-Domiciliary Care,THIRD PARTY PAYMENTS,PRIVATE CONTRACTOR,REVENUE
Walsall Council,http://opendatacommunities.org/id/metropolitan-district-council/walsall ,WC153-131,31.08.2023,ADULT SOCIAL CARE,5 CARE SERVICES LTD,15/08/2023,283.5,6541-Domiciliary Care,THIRD PARTY PAYMENTS,PRIVATE CONTRACTOR,REVENUE
Walsall Council,http://opendatacommunities.org/id/metropolitan-district-council/walsall ,WC153-132,31.08.2023,ADULT SOCIAL CARE,5 CARE SERVICES LTD,15/08/2023,648,6541-Domiciliary Care,THIRD PARTY PAYMENTS,PRIVATE CONTRACTOR,REVENUE
Walsall Council,http://opendatacommunities.org/id/metropolitan-district-council/walsall ,WC153-133,31.08.2023,ADULT SOCIAL CARE,5 CARE SERVICES LTD,15/08/2023,360,6541-Domiciliary Care,THIRD PARTY PAYMENTS,PRIVATE CONTRACTOR,REVENUE
Walsall Council,http://opendatacommunities.org/id/metropolitan-district-council/walsall ,WC153-134,31.08.2023,ADULT SOCIAL CARE,5 CARE SERVICES LTD,15/08/2023,283.5,6541-Domiciliary Care,THIRD PARTY PAYMENTS,PRIVATE CONTRACTOR,REVENUE
Walsall Council,http://opendatacommunities.org/id/metropolitan-district-council/walsall ,WC153-135,31.08.2023,ADULT SOCIAL CARE,5 CARE SERVICES LTD,15/08/2023,"1,386.00",6541-Domiciliary Care,THIRD PARTY PAYMENTS,PRIVATE CONTRACTOR,REVENUE
Walsall Council,http://opendatacommunities.org/id/metropolitan-district-council/walsall ,WC153-136,31.08.2023,ADULT SOCIAL CARE,5 CARE SERVICES LTD,15/08/2023,864,6541-Domiciliary Care,THIRD PARTY PAYMENTS,PRIVATE CONTRACTOR,REVENUE
Walsall Council,http://opendatacommunities.org/id/metropolitan-district-council/walsall ,WC153-137,31.08.2023,ADULT SOCIAL CARE,5 CARE SERVICES LTD,15/08/2023,756,6541-Domiciliary Care,THIRD PARTY PAYMENTS,PRIVATE CONTRACTOR,REVENUE
Walsall Council,http://opendatacommunities.org/id/metropolitan-district-council/walsall ,WC153-138,31.08.2023,ADULT SOCIAL CARE,5 CARE SERVICES LTD,15/08/2023,328.5,6541-Domiciliary Care,THIRD PARTY PAYMENTS,PRIVATE CONTRACTOR,REVENUE
Walsall Council,http://opendatacommunities.org/id/metropolitan-district-council/walsall ,WC153-139,31.08.2023,ADULT SOCIAL CARE,5 CARE SERVICES LTD,15/08/2023,378,6541-Domiciliary Care,THIRD PARTY PAYMENTS,PRIVATE CONTRACTOR,REVENUE
Walsall Council,http://opendatacommunities.org/id/metropolitan-district-council/walsall ,WC153-140,31.08.2023,ADULT SOCIAL CARE,5 CARE SERVICES LTD,15/08/2023,567,6541-Domiciliary Care,THIRD PARTY PAYMENTS,PRIVATE CONTRACTOR,REVENUE
Walsall Council,http://opendatacommunities.org/id/metropolitan-district-council/walsall ,WC153-141,31.08.2023,ADULT SOCIAL CARE,5 CARE SERVICES LTD,15/08/2023,567,6541-Domiciliary Care,THIRD PARTY PAYMENTS,PRIVATE CONTRACTOR,REVENUE
Walsall Council,http://opendatacommunities.org/id/metropolitan-district-council/walsall ,WC153-142,31.08.2023,ADULT SOCIAL CARE,5 CARE SERVICES LTD,15/08/2023,651,6541-Domiciliary Care,THIRD PARTY PAYMENTS,PRIVATE CONTRACTOR,REVENUE
Walsall Council,http://opendatacommunities.org/id/metropolitan-district-council/walsall ,WC153-143,31.08.2023,ADULT SOCIAL CARE,5 CARE SERVICES LTD,15/08/2023,283.5,6541-Domiciliary Care,THIRD PARTY PAYMENTS,PRIVATE CONTRACTOR,REVENUE
Walsall Council,http://opendatacommunities.org/id/metropolitan-district-council/walsall ,WC153-144,31.08.2023,ADULT SOCIAL CARE,5 CARE SERVICES LTD,15/08/2023,819,6541-Domiciliary Care,THIRD PARTY PAYMENTS,PRIVATE CONTRACTOR,REVENUE
Walsall Council,http://opendatacommunities.org/id/metropolitan-district-council/walsall ,WC153-145,31.08.2023,ADULT SOCIAL CARE,5 CARE SERVICES LTD,15/08/2023,630,6541-Domiciliary Care,THIRD PARTY PAYMENTS,PRIVATE CONTRACTOR,REVENUE
Walsall Council,http://opendatacommunities.org/id/metropolitan-district-council/walsall ,WC153-146,31.08.2023,ADULT SOCIAL CARE,5 CARE SERVICES LTD,15/08/2023,567,6541-Domiciliary Care,THIRD PARTY PAYMENTS,PRIVATE CONTRACTOR,REVENUE
Walsall Council,http://opendatacommunities.org/id/metropolitan-district-council/walsall ,WC153-147,31.08.2023,ADULT SOCIAL CARE,5 CARE SERVICES LTD,15/08/2023,567,6541-Domiciliary Care,THIRD PARTY PAYMENTS,PRIVATE CONTRACTOR,REVENUE
Walsall Council,http://opendatacommunities.org/id/metropolitan-district-council/walsall ,WC153-148,31.08.2023,ADULT SOCIAL CARE,5 CARE SERVICES LTD,15/08/2023,567,6541-Domiciliary Care,THIRD PARTY PAYMENTS,PRIVATE CONTRACTOR,REVENUE
Walsall Council,http://opendatacommunities.org/id/metropolitan-district-council/walsall ,WC153-149,31.08.2023,ADULT SOCIAL CARE,5 CARE SERVICES LTD,15/08/2023,504,6541-Domiciliary Care,THIRD PARTY PAYMENTS,PRIVATE CONTRACTOR,REVENUE
Walsall Council,http://opendatacommunities.org/id/metropolitan-district-council/walsall ,WC153-150,31.08.2023,ADULT SOCIAL CARE,5 CARE SERVICES LTD,15/08/2023,630,6541-Domiciliary Care,THIRD PARTY PAYMENTS,PRIVATE CONTRACTOR,REVENUE
Walsall Council,http://opendatacommunities.org/id/metropolitan-district-council/walsall ,WC153-151,31.08.2023,ADULT SOCIAL CARE,5 CARE SERVICES LTD,15/08/2023,283.5,6541-Domiciliary Care,THIRD PARTY PAYMENTS,PRIVATE CONTRACTOR,REVENUE
Walsall Council,http://opendatacommunities.org/id/metropolitan-district-council/walsall ,WC153-152,31.08.2023,ADULT SOCIAL CARE,5 CARE SERVICES LTD,15/08/2023,603,6541-Domiciliary Care,THIRD PARTY PAYMENTS,PRIVATE CONTRACTOR,REVENUE
Walsall Council,http://opendatacommunities.org/id/metropolitan-district-council/walsall ,WC153-153,31.08.2023,ADULT SOCIAL CARE,5 CARE SERVICES LTD,15/08/2023,738,6541-Domiciliary Care,THIRD PARTY PAYMENTS,PRIVATE CONTRACTOR,REVENUE
Walsall Council,http://opendatacommunities.org/id/metropolitan-district-council/walsall ,WC153-154,31.08.2023,ADULT SOCIAL CARE,5 CARE SERVICES LTD,15/08/2023,567,6541-Domiciliary Care,THIRD PARTY PAYMENTS,PRIVATE CONTRACTOR,REVENUE
Walsall Council,http://opendatacommunities.org/id/metropolitan-district-council/walsall ,WC153-155,31.08.2023,ADULT SOCIAL CARE,5 CARE SERVICES LTD,23/08/2023,"2,036.16",6554-Professional Services-Priv Contractor & Other Agencies,THIRD PARTY PAYMENTS,PRIVATE CONTRACTOR,REVENUE
Walsall Council,http://opendatacommunities.org/id/metropolitan-district-council/walsall ,WC153-156,31.08.2023,ADULT SOCIAL CARE,5 CARE SERVICES LTD,23/08/2023,"-2,704.86",6554-Professional Services-Priv Contractor & Other Agencies,THIRD PARTY PAYMENTS,PRIVATE CONTRACTOR,REVENUE
Walsall Council,http://opendatacommunities.org/id/metropolitan-district-council/walsall ,WC153-157,31.08.2023,ADULT SOCIAL CARE,5 CARE SERVICES LTD,23/08/2023,432,6554-Professional Services-Priv Contractor & Other Agencies,THIRD PARTY PAYMENTS,PRIVATE CONTRACTOR,REVENUE
Walsall Council,http://opendatacommunities.org/id/metropolitan-district-council/walsall ,WC153-158,31.08.2023,ADULT SOCIAL CARE,5 CARE SERVICES LTD,23/08/2023,432,6554-Professional Services-Priv Contractor & Other Agencies,THIRD PARTY PAYMENTS,PRIVATE CONTRACTOR,REVENUE
Walsall Council,http://opendatacommunities.org/id/metropolitan-district-council/walsall ,WC153-159,31.08.2023,ADULT SOCIAL CARE,5 CARE SERVICES LTD,23/08/2023,540,6554-Professional Services-Priv Contractor & Other Agencies,THIRD PARTY PAYMENTS,PRIVATE CONTRACTOR,REVENUE
Walsall Council,http://opendatacommunities.org/id/metropolitan-district-council/walsall ,WC153-160,31.08.2023,ADULT SOCIAL CARE,5 CARE SERVICES LTD,29/08/2023,283.5,6541-Domiciliary Care,THIRD PARTY PAYMENTS,PRIVATE CONTRACTOR,REVENUE
Walsall Council,http://opendatacommunities.org/id/metropolitan-district-council/walsall ,WC153-161,31.08.2023,ADULT SOCIAL CARE,5 CARE SERVICES LTD,29/08/2023,648,6541-Domiciliary Care,THIRD PARTY PAYMENTS,PRIVATE CONTRACTOR,REVENUE
Walsall Council,http://opendatacommunities.org/id/metropolitan-district-council/walsall ,WC153-162,31.08.2023,ADULT SOCIAL CARE,5 CARE SERVICES LTD,29/08/2023,360,6541-Domiciliary Care,THIRD PARTY PAYMENTS,PRIVATE CONTRACTOR,REVENUE
Walsall Council,http://opendatacommunities.org/id/metropolitan-district-council/walsall ,WC153-163,31.08.2023,ADULT SOCIAL CARE,5 CARE SERVICES LTD,29/08/2023,756,6541-Domiciliary Care,THIRD PARTY PAYMENTS,PRIVATE CONTRACTOR,REVENUE
Walsall Council,http://opendatacommunities.org/id/metropolitan-district-council/walsall ,WC153-164,31.08.2023,ADULT SOCIAL CARE,5 CARE SERVICES LTD,29/08/2023,328.5,6541-Domiciliary Care,THIRD PARTY PAYMENTS,PRIVATE CONTRACTOR,REVENUE
Walsall Council,http://opendatacommunities.org/id/metropolitan-district-council/walsall ,WC153-165,31.08.2023,ADULT SOCIAL CARE,5 CARE SERVICES LTD,29/08/2023,567,6541-Domiciliary Care,THIRD PARTY PAYMENTS,PRIVATE CONTRACTOR,REVENUE
Walsall Council,http://opendatacommunities.org/id/metropolitan-district-council/walsall ,WC153-166,31.08.2023,ADULT SOCIAL CARE,5 CARE SERVICES LTD,29/08/2023,630,6541-Domiciliary Care,THIRD PARTY PAYMENTS,PRIVATE CONTRACTOR,REVENUE
Walsall Council,http://opendatacommunities.org/id/metropolitan-district-council/walsall ,WC153-167,31.08.2023,ADULT SOCIAL CARE,5 CARE SERVICES LTD,29/08/2023,567,6541-Domiciliary Care,THIRD PARTY PAYMENTS,PRIVATE CONTRACTOR,REVENUE
Walsall Council,http://opendatacommunities.org/id/metropolitan-district-council/walsall ,WC153-168,31.08.2023,ADULT SOCIAL CARE,5 CARE SERVICES LTD,29/08/2023,567,6541-Domiciliary Care,THIRD PARTY PAYMENTS,PRIVATE CONTRACTOR,REVENUE
Walsall Council,http://opendatacommunities.org/id/metropolitan-district-council/walsall ,WC153-169,31.08.2023,ADULT SOCIAL CARE,5 CARE SERVICES LTD,29/08/2023,567,6541-Domiciliary Care,THIRD PARTY PAYMENTS,PRIVATE CONTRACTOR,REVENUE
Walsall Council,http://opendatacommunities.org/id/metropolitan-district-council/walsall ,WC153-170,31.08.2023,ADULT SOCIAL CARE,5 CARE SERVICES LTD,29/08/2023,504,6541-Domiciliary Care,THIRD PARTY PAYMENTS,PRIVATE CONTRACTOR,REVENUE
Walsall Council,http://opendatacommunities.org/id/metropolitan-district-council/walsall ,WC153-171,31.08.2023,ADULT SOCIAL CARE,5 CARE SERVICES LTD,29/08/2023,630,6541-Domiciliary Care,THIRD PARTY PAYMENTS,PRIVATE CONTRACTOR,REVENUE
Walsall Council,http://opendatacommunities.org/id/metropolitan-district-council/walsall ,WC153-172,31.08.2023,ADULT SOCIAL CARE,5 CARE SERVICES LTD,29/08/2023,378,6541-Domiciliary Care,THIRD PARTY PAYMENTS,PRIVATE CONTRACTOR,REVENUE
Walsall Council,http://opendatacommunities.org/id/metropolitan-district-council/walsall ,WC153-173,31.08.2023,ADULT SOCIAL CARE,5 CARE SERVICES LTD,29/08/2023,567,6541-Domiciliary Care,THIRD PARTY PAYMENTS,PRIVATE CONTRACTOR,REVENUE
Walsall Council,http://opendatacommunities.org/id/metropolitan-district-council/walsall ,WC153-174,31.08.2023,ADULT SOCIAL CARE,5 CARE SERVICES LTD,29/08/2023,"1,008.00",6541-Domiciliary Care,THIRD PARTY PAYMENTS,PRIVATE CONTRACTOR,REVENUE
Walsall Council,http://opendatacommunities.org/id/metropolitan-district-council/walsall ,WC153-175,31.08.2023,ADULT SOCIAL CARE,5 CARE SERVICES LTD,29/08/2023,774,6541-Domiciliary Care,THIRD PARTY PAYMENTS,PRIVATE CONTRACTOR,REVENUE
Walsall Council,http://opendatacommunities.org/id/metropolitan-district-council/walsall ,WC153-176,31.08.2023,ADULT SOCIAL CARE,5 CARE SERVICES LTD,29/08/2023,283.5,6541-Domiciliary Care,THIRD PARTY PAYMENTS,PRIVATE CONTRACTOR,REVENUE
Walsall Council,http://opendatacommunities.org/id/metropolitan-district-council/walsall ,WC153-177,31.08.2023,ADULT SOCIAL CARE,5 CARE SERVICES LTD,29/08/2023,666,6541-Domiciliary Care,THIRD PARTY PAYMENTS,PRIVATE CONTRACTOR,REVENUE
Walsall Council,http://opendatacommunities.org/id/metropolitan-district-council/walsall ,WC153-178,31.08.2023,ADULT SOCIAL CARE,5 CARE SERVICES LTD,29/08/2023,567,6541-Domiciliary Care,THIRD PARTY PAYMENTS,PRIVATE CONTRACTOR,REVENUE
Walsall Council,http://opendatacommunities.org/id/metropolitan-district-council/walsall ,WC153-179,31.08.2023,ADULT SOCIAL CARE,5 CARE SERVICES LTD,29/08/2023,378,6541-Domiciliary Care,THIRD PARTY PAYMENTS,PRIVATE CONTRACTOR,REVENUE
Walsall Council,http://opendatacommunities.org/id/metropolitan-district-council/walsall ,WC153-180,31.08.2023,ADULT SOCIAL CARE,5 CARE SERVICES LTD,29/08/2023,567,6541-Domiciliary Care,THIRD PARTY PAYMENTS,PRIVATE CONTRACTOR,REVENUE
Walsall Council,http://opendatacommunities.org/id/metropolitan-district-council/walsall ,WC153-181,31.08.2023,ADULT SOCIAL CARE,5 CARE SERVICES LTD,29/08/2023,283.5,6541-Domiciliary Care,THIRD PARTY PAYMENTS,PRIVATE CONTRACTOR,REVENUE
Walsall Council,http://opendatacommunities.org/id/metropolitan-district-council/walsall ,WC153-182,31.08.2023,ADULT SOCIAL CARE,5 CARE SERVICES LTD,29/08/2023,"1,386.00",6541-Domiciliary Care,THIRD PARTY PAYMENTS,PRIVATE CONTRACTOR,REVENUE
Walsall Council,http://opendatacommunities.org/id/metropolitan-district-council/walsall ,WC153-183,31.08.2023,ADULT SOCIAL CARE,5 CARE SERVICES LTD,29/08/2023,864,6541-Domiciliary Care,THIRD PARTY PAYMENTS,PRIVATE CONTRACTOR,REVENUE
Walsall Council,http://opendatacommunities.org/id/metropolitan-district-council/walsall ,WC153-184,31.08.2023,ADULT SOCIAL CARE,5 CARE SERVICES LTD,29/08/2023,603,6541-Domiciliary Care,THIRD PARTY PAYMENTS,PRIVATE CONTRACTOR,REVENUE
Walsall Council,http://opendatacommunities.org/id/metropolitan-district-council/walsall ,WC153-185,31.08.2023,ADULT SOCIAL CARE,5 CARE SERVICES LTD,29/08/2023,651,6541-Domiciliary Care,THIRD PARTY PAYMENTS,PRIVATE CONTRACTOR,REVENUE
Walsall Council,http://opendatacommunities.org/id/metropolitan-district-council/walsall ,WC153-186,31.08.2023,ADULT SOCIAL CARE,5 CARE SERVICES LTD,29/08/2023,283.5,6541-Domiciliary Care,THIRD PARTY PAYMENTS,PRIVATE CONTRACTOR,REVENUE
Walsall Council,http://opendatacommunities.org/id/metropolitan-district-council/walsall ,WC153-187,31.08.2023,ADULT SOCIAL CARE,5 CARE SERVICES LTD,29/08/2023,819,6541-Domiciliary Care,THIRD PARTY PAYMENTS,PRIVATE CONTRACTOR,REVENUE
Walsall Council,http://opendatacommunities.org/id/metropolitan-district-council/walsall ,WC153-188,31.08.2023,ADULT SOCIAL CARE,5 CARE SERVICES LTD,29/08/2023,283.5,6541-Domiciliary Care,THIRD PARTY PAYMENTS,PRIVATE CONTRACTOR,REVENUE
Walsall Council,http://opendatacommunities.org/id/metropolitan-district-council/walsall ,WC153-189,31.08.2023,ADULT SOCIAL CARE,5 CARE SERVICES LTD,29/08/2023,432,6541-Domiciliary Care,THIRD PARTY PAYMENTS,PRIVATE CONTRACTOR,REVENUE
Walsall Council,http://opendatacommunities.org/id/metropolitan-district-council/walsall ,WC153-190,31.08.2023,ADULT SOCIAL CARE,5 CARE SERVICES LTD,29/08/2023,360,6541-Domiciliary Care,THIRD PARTY PAYMENTS,PRIVATE CONTRACTOR,REVENUE
Walsall Council,http://opendatacommunities.org/id/metropolitan-district-council/walsall ,WC153-191,31.08.2023,ADULT SOCIAL CARE,5 CARE SERVICES LTD,29/08/2023,774,6541-Domiciliary Care,THIRD PARTY PAYMENTS,PRIVATE CONTRACTOR,REVENUE
Walsall Council,http://opendatacommunities.org/id/metropolitan-district-council/walsall ,WC153-192,31.08.2023,ADULT SOCIAL CARE,5 CARE SERVICES LTD,29/08/2023,567,6541-Domiciliary Care,THIRD PARTY PAYMENTS,PRIVATE CONTRACTOR,REVENUE
Walsall Council,http://opendatacommunities.org/id/metropolitan-district-council/walsall ,WC153-193,31.08.2023,ADULT SOCIAL CARE,5 CARE SERVICES LTD,29/08/2023,567,6541-Domiciliary Care,THIRD PARTY PAYMENTS,PRIVATE CONTRACTOR,REVENUE
Walsall Council,http://opendatacommunities.org/id/metropolitan-district-council/walsall ,WC153-194,31.08.2023,ADULT SOCIAL CARE,5 CARE SERVICES LTD,29/08/2023,283.5,6541-Domiciliary Care,THIRD PARTY PAYMENTS,PRIVATE CONTRACTOR,REVENUE
Walsall Council,http://opendatacommunities.org/id/metropolitan-district-council/walsall ,WC153-195,31.08.2023,ADULT SOCIAL CARE,5 CARE SERVICES LTD,29/08/2023,"1,386.00",6541-Domiciliary Care,THIRD PARTY PAYMENTS,PRIVATE CONTRACTOR,REVENUE
Walsall Council,http://opendatacommunities.org/id/metropolitan-district-council/walsall ,WC153-196,31.08.2023,ADULT SOCIAL CARE,5 CARE SERVICES LTD,29/08/2023,864,6541-Domiciliary Care,THIRD PARTY PAYMENTS,PRIVATE CONTRACTOR,REVENUE
Walsall Council,http://opendatacommunities.org/id/metropolitan-district-council/walsall ,WC153-197,31.08.2023,ADULT SOCIAL CARE,5 CARE SERVICES LTD,29/08/2023,252,6541-Domiciliary Care,THIRD PARTY PAYMENTS,PRIVATE CONTRACTOR,REVENUE
Walsall Council,http://opendatacommunities.org/id/metropolitan-district-council/walsall ,WC153-198,31.08.2023,ADULT SOCIAL CARE,5 CARE SERVICES LTD,29/08/2023,504,6541-Domiciliary Care,THIRD PARTY PAYMENTS,PRIVATE CONTRACTOR,REVENUE
Walsall Council,http://opendatacommunities.org/id/metropolitan-district-council/walsall ,WC153-199,31.08.2023,ADULT SOCIAL CARE,5 CARE SERVICES LTD,29/08/2023,651,6541-Domiciliary Care,THIRD PARTY PAYMENTS,PRIVATE CONTRACTOR,REVENUE
Walsall Council,http://opendatacommunities.org/id/metropolitan-district-council/walsall ,WC153-200,31.08.2023,ADULT SOCIAL CARE,5 CARE SERVICES LTD,29/08/2023,283.5,6541-Domiciliary Care,THIRD PARTY PAYMENTS,PRIVATE CONTRACTOR,REVENUE
Walsall Council,http://opendatacommunities.org/id/metropolitan-district-council/walsall ,WC153-201,31.08.2023,ADULT SOCIAL CARE,5 CARE SERVICES LTD,29/08/2023,819,6541-Domiciliary Care,THIRD PARTY PAYMENTS,PRIVATE CONTRACTOR,REVENUE
Walsall Council,http://opendatacommunities.org/id/metropolitan-district-council/walsall ,WC153-202,31.08.2023,ADULT SOCIAL CARE,5 CARE SERVICES LTD,29/08/2023,630,6541-Domiciliary Care,THIRD PARTY PAYMENTS,PRIVATE CONTRACTOR,REVENUE
Walsall Council,http://opendatacommunities.org/id/metropolitan-district-council/walsall ,WC153-203,31.08.2023,ADULT SOCIAL CARE,5 CARE SERVICES LTD,29/08/2023,283.5,6541-Domiciliary Care,THIRD PARTY PAYMENTS,PRIVATE CONTRACTOR,REVENUE
Walsall Council,http://opendatacommunities.org/id/metropolitan-district-council/walsall ,WC153-204,31.08.2023,ADULT SOCIAL CARE,5 CARE SERVICES LTD,29/08/2023,666,6541-Domiciliary Care,THIRD PARTY PAYMENTS,PRIVATE CONTRACTOR,REVENUE
Walsall Council,http://opendatacommunities.org/id/metropolitan-district-council/walsall ,WC153-205,31.08.2023,ADULT SOCIAL CARE,5 CARE SERVICES LTD,29/08/2023,567,6541-Domiciliary Care,THIRD PARTY PAYMENTS,PRIVATE CONTRACTOR,REVENUE
Walsall Council,http://opendatacommunities.org/id/metropolitan-district-council/walsall ,WC153-206,31.08.2023,ADULT SOCIAL CARE,5 CARE SERVICES LTD,29/08/2023,756,6541-Domiciliary Care,THIRD PARTY PAYMENTS,PRIVATE CONTRACTOR,REVENUE
Walsall Council,http://opendatacommunities.org/id/metropolitan-district-council/walsall ,WC153-207,31.08.2023,ADULT SOCIAL CARE,5 CARE SERVICES LTD,29/08/2023,328.5,6541-Domiciliary Care,THIRD PARTY PAYMENTS,PRIVATE CONTRACTOR,REVENUE
Walsall Council,http://opendatacommunities.org/id/metropolitan-district-council/walsall ,WC153-208,31.08.2023,ADULT SOCIAL CARE,5 CARE SERVICES LTD,29/08/2023,378,6541-Domiciliary Care,THIRD PARTY PAYMENTS,PRIVATE CONTRACTOR,REVENUE
Walsall Council,http://opendatacommunities.org/id/metropolitan-district-council/walsall ,WC153-209,31.08.2023,ADULT SOCIAL CARE,5 CARE SERVICES LTD,29/08/2023,567,6541-Domiciliary Care,THIRD PARTY PAYMENTS,PRIVATE CONTRACTOR,REVENUE
Walsall Council,http://opendatacommunities.org/id/metropolitan-district-council/walsall ,WC153-210,31.08.2023,ADULT SOCIAL CARE,5 CARE SERVICES LTD,29/08/2023,"1,008.00",6541-Domiciliary Care,THIRD PARTY PAYMENTS,PRIVATE CONTRACTOR,REVENUE
Walsall Council,http://opendatacommunities.org/id/metropolitan-district-council/walsall ,WC153-211,31.08.2023,ADULT SOCIAL CARE,5 CARE SERVICES LTD,29/08/2023,630,6541-Domiciliary Care,THIRD PARTY PAYMENTS,PRIVATE CONTRACTOR,REVENUE
Walsall Council,http://opendatacommunities.org/id/metropolitan-district-council/walsall ,WC153-212,31.08.2023,ADULT SOCIAL CARE,5 CARE SERVICES LTD,29/08/2023,567,6541-Domiciliary Care,THIRD PARTY PAYMENTS,PRIVATE CONTRACTOR,REVENUE
Walsall Council,http://opendatacommunities.org/id/metropolitan-district-council/walsall ,WC153-213,31.08.2023,ADULT SOCIAL CARE,5 CARE SERVICES LTD,29/08/2023,567,6541-Domiciliary Care,THIRD PARTY PAYMENTS,PRIVATE CONTRACTOR,REVENUE
Walsall Council,http://opendatacommunities.org/id/metropolitan-district-council/walsall ,WC153-214,31.08.2023,ADULT SOCIAL CARE,5 CARE SERVICES LTD,29/08/2023,378,6541-Domiciliary Care,THIRD PARTY PAYMENTS,PRIVATE CONTRACTOR,REVENUE
Walsall Council,http://opendatacommunities.org/id/metropolitan-district-council/walsall ,WC153-215,31.08.2023,ADULT SOCIAL CARE,5 CARE SERVICES LTD,29/08/2023,567,6541-Domiciliary Care,THIRD PARTY PAYMENTS,PRIVATE CONTRACTOR,REVENUE
Walsall Council,http://opendatacommunities.org/id/metropolitan-district-council/walsall ,WC153-216,31.08.2023,ADULT SOCIAL CARE,5 CARE SERVICES LTD,29/08/2023,603,6541-Domiciliary Care,THIRD PARTY PAYMENTS,PRIVATE CONTRACTOR,REVENUE
Walsall Council,http://opendatacommunities.org/id/metropolitan-district-council/walsall ,WC153-217,31.08.2023,ADULT SOCIAL CARE,5 CARE SERVICES LTD,29/08/2023,612,6541-Domiciliary Care,THIRD PARTY PAYMENTS,PRIVATE CONTRACTOR,REVENUE
Walsall Council,http://opendatacommunities.org/id/metropolitan-district-council/walsall ,WC153-218,31.08.2023,ADULT SOCIAL CARE,5 CARE SERVICES LTD,24/08/2023,"2,592.00",6554-Professional Services-Priv Contractor & Other Agencies,THIRD PARTY PAYMENTS,PRIVATE CONTRACTOR,REVENUE
Walsall Council,http://opendatacommunities.org/id/metropolitan-district-council/walsall ,WC153-219,31.08.2023,RESOURCES AND TRANSFORMATION,A D T FIRE AND SECURITY PLC,07/08/2023,"1,357.23",6310-Security & Alarm Maintenance,PREMISES,REPAIRS & MAINTENANCE,REVENUE
Walsall Council,http://opendatacommunities.org/id/metropolitan-district-council/walsall ,WC153-220,31.08.2023,RESOURCES AND TRANSFORMATION,A D T FIRE AND SECURITY PLC,07/08/2023,"1,337.75",6310-Security & Alarm Maintenance,PREMISES,REPAIRS & MAINTENANCE,REVENUE
Walsall Council,http://opendatacommunities.org/id/metropolitan-district-council/walsall ,WC153-221,31.08.2023,"ECONOMY, ENVIRONMENT & COMMUNITIES",A D T FIRE AND SECURITY PLC,08/08/2023,925.31,6410-Security & Alarm Maintenance,PREMISES,REPAIRS & MAINTENANCE,REVENUE
Walsall Council,http://opendatacommunities.org/id/metropolitan-district-council/walsall ,WC153-222,31.08.2023,"ECONOMY, ENVIRONMENT & COMMUNITIES",A F BLAKEMORE & SON LTD,18/08/2023,337.34,6413-Food & Drink Supplies,SUPPLIES & SERVICES,CATERING,REVENUE
Walsall Council,http://opendatacommunities.org/id/metropolitan-district-council/walsall ,WC153-223,31.08.2023,"ECONOMY, ENVIRONMENT & COMMUNITIES",A F BLAKEMORE & SON LTD,18/08/2023,"1,634.99",6413-Food & Drink Supplies,SUPPLIES & SERVICES,CATERING,REVENUE
Walsall Council,http://opendatacommunities.org/id/metropolitan-district-council/walsall ,WC153-224,31.08.2023,"ECONOMY, ENVIRONMENT & COMMUNITIES",A F BLAKEMORE & SON LTD,18/08/2023,287.57,6413-Food & Drink Supplies,SUPPLIES & SERVICES,CATERING,REVENUE
Walsall Council,http://opendatacommunities.org/id/metropolitan-district-council/walsall ,WC153-225,31.08.2023,"ECONOMY, ENVIRONMENT & COMMUNITIES",A F BLAKEMORE & SON LTD,18/08/2023,320.3,6413-Food & Drink Supplies,SUPPLIES & SERVICES,CATERING,REVENUE
Walsall Council,http://opendatacommunities.org/id/metropolitan-district-council/walsall ,WC153-226,31.08.2023,"ECONOMY, ENVIRONMENT & COMMUNITIES",A F BLAKEMORE & SON LTD,16/08/2023,520,6413-Food & Drink Supplies,SUPPLIES & SERVICES,CATERING,REVENUE
Walsall Council,http://opendatacommunities.org/id/metropolitan-district-council/walsall ,WC153-227,31.08.2023,"ECONOMY, ENVIRONMENT & COMMUNITIES",A F BLAKEMORE & SON LTD,16/08/2023,356.7,6413-Food & Drink Supplies,SUPPLIES & SERVICES,CATERING,REVENUE
Walsall Council,http://opendatacommunities.org/id/metropolitan-district-council/walsall ,WC153-228,31.08.2023,"ECONOMY, ENVIRONMENT & COMMUNITIES",A F BLAKEMORE & SON LTD,16/08/2023,"1,029.87",6413-Food & Drink Supplies,SUPPLIES & SERVICES,CATERING,REVENUE
Walsall Council,http://opendatacommunities.org/id/metropolitan-district-council/walsall ,WC153-229,31.08.2023,CHILDRENS,A+ TUTORING SERVICES,24/08/2023,280,1220-Professional Fees & Services,SUPPLIES & SERVICES,SERVICES,REVENUE
Walsall Council,http://opendatacommunities.org/id/metropolitan-district-council/walsall ,WC153-230,31.08.2023,CHILDRENS,A1 WALSALL RADIO CARS,15/08/2023,"1,411.00",6241-Hire of Vehicle with Driver,TRANSPORT,DIRECT TRANSPORT COSTS,REVENUE
Walsall Council,http://opendatacommunities.org/id/metropolitan-district-council/walsall ,WC153-231,31.08.2023,CHILDRENS,A1 WALSALL RADIO CARS,15/08/2023,"1,445.00",6241-Hire of Vehicle with Driver,TRANSPORT,DIRECT TRANSPORT COSTS,REVENUE
Walsall Council,http://opendatacommunities.org/id/metropolitan-district-council/walsall ,WC153-232,31.08.2023,CHILDRENS,A1 WALSALL RADIO CARS,15/08/2023,975,6241-Hire of Vehicle with Driver,TRANSPORT,DIRECT TRANSPORT COSTS,REVENUE
Walsall Council,http://opendatacommunities.org/id/metropolitan-district-council/walsall ,WC153-233,31.08.2023,CHILDRENS,A1 WALSALL RADIO CARS,15/08/2023,"-7,699.80",6241-Hire of Vehicle with Driver,TRANSPORT,DIRECT TRANSPORT COSTS,REVENUE
Walsall Council,http://opendatacommunities.org/id/metropolitan-district-council/walsall ,WC153-234,31.08.2023,CHILDRENS,A1 WALSALL RADIO CARS,15/08/2023,"3,160.00",6241-Hire of Vehicle with Driver,TRANSPORT,DIRECT TRANSPORT COSTS,REVENUE
Walsall Council,http://opendatacommunities.org/id/metropolitan-district-council/walsall ,WC153-235,31.08.2023,CHILDRENS,A1 WALSALL RADIO CARS,15/08/2023,"1,836.00",6241-Hire of Vehicle with Driver,TRANSPORT,DIRECT TRANSPORT COSTS,REVENUE
Walsall Council,http://opendatacommunities.org/id/metropolitan-district-council/walsall ,WC153-236,31.08.2023,CHILDRENS,A1 WALSALL RADIO CARS,15/08/2023,384,6241-Hire of Vehicle with Driver,TRANSPORT,DIRECT TRANSPORT COSTS,REVENUE
Walsall Council,http://opendatacommunities.org/id/metropolitan-district-council/walsall ,WC153-237,31.08.2023,CHILDRENS,AAINA COMMUNITY HUB,23/08/2023,"6,000.00",6632-Grants to Other Orgs,SUPPLIES & SERVICES,GRANTS (EXP) & SUBSCRIPTIONS,REVENUE
Walsall Council,http://opendatacommunities.org/id/metropolitan-district-council/walsall ,WC153-238,31.08.2023,"ECONOMY, ENVIRONMENT & COMMUNITIES",AAINA COMMUNITY HUB,15/08/2023,"2,500.00",6430-Grants to Other Orgs,SUPPLIES & SERVICES,GRANTS (EXP) & SUBSCRIPTIONS,REVENUE
Walsall Council,http://opendatacommunities.org/id/metropolitan-district-council/walsall ,WC153-239,31.08.2023,ADULT SOCIAL CARE,REDACTED,03/08/2023,900.96,6541-Direct Payment,THIRD PARTY PAYMENTS,PRIVATE CONTRACTOR,REVENUE
Walsall Council,http://opendatacommunities.org/id/metropolitan-district-council/walsall ,WC153-240,31.08.2023,CHILDRENS,ABACUS FOSTERING LTD,07/08/2023,"2,984.80",6223-Independent Foster Care-Oth Agency Provision,THIRD PARTY PAYMENTS,PRIVATE CONTRACTOR,REVENUE
Walsall Council,http://opendatacommunities.org/id/metropolitan-district-council/walsall ,WC153-241,31.08.2023,CHILDRENS,ABACUS FOSTERING LTD,07/08/2023,"2,818.88",6223-Independent Foster Care-Oth Agency Provision,THIRD PARTY PAYMENTS,PRIVATE CONTRACTOR,REVENUE
Walsall Council,http://opendatacommunities.org/id/metropolitan-district-council/walsall ,WC153-242,31.08.2023,CHILDRENS,ABACUS FOSTERING LTD,07/08/2023,423.26,6223-Independent Foster Care-Oth Agency Provision,THIRD PARTY PAYMENTS,PRIVATE CONTRACTOR,REVENUE
Walsall Council,http://opendatacommunities.org/id/metropolitan-district-council/walsall ,WC153-243,31.08.2023,CHILDRENS,ABACUS FOSTERING LTD,07/08/2023,423.26,6223-Independent Foster Care-Oth Agency Provision,THIRD PARTY PAYMENTS,PRIVATE CONTRACTOR,REVENUE
Walsall Council,http://opendatacommunities.org/id/metropolitan-district-council/walsall ,WC153-244,31.08.2023,ADULT SOCIAL CARE,ABBEY HEALTHCARE HOMES LTD,01/08/2023,"2,432.32",6541-Residential,THIRD PARTY PAYMENTS,PRIVATE CONTRACTOR,REVENUE
Walsall Council,http://opendatacommunities.org/id/metropolitan-district-council/walsall ,WC153-245,31.08.2023,ADULT SOCIAL CARE,ABBEY HEALTHCARE HOMES LTD,01/08/2023,"3,180.76",6541-Residential,THIRD PARTY PAYMENTS,PRIVATE CONTRACTOR,REVENUE
Walsall Council,http://opendatacommunities.org/id/metropolitan-district-council/walsall ,WC153-246,31.08.2023,ADULT SOCIAL CARE,ABBEY HEALTHCARE HOMES LTD,01/08/2023,"3,604.84",6541-Residential,THIRD PARTY PAYMENTS,PRIVATE CONTRACTOR,REVENUE
Walsall Council,http://opendatacommunities.org/id/metropolitan-district-council/walsall ,WC153-247,31.08.2023,ADULT SOCIAL CARE,ABBEY HEALTHCARE HOMES LTD,01/08/2023,"3,180.76",6541-Residential,THIRD PARTY PAYMENTS,PRIVATE CONTRACTOR,REVENUE
Walsall Council,http://opendatacommunities.org/id/metropolitan-district-council/walsall ,WC153-248,31.08.2023,ADULT SOCIAL CARE,ABBEY HEALTHCARE HOMES LTD,29/08/2023,"3,180.76",6541-Residential,THIRD PARTY PAYMENTS,PRIVATE CONTRACTOR,REVENUE
Walsall Council,http://opendatacommunities.org/id/metropolitan-district-council/walsall ,WC153-249,31.08.2023,ADULT SOCIAL CARE,ABBEY HEALTHCARE HOMES LTD,29/08/2023,"3,180.76",6541-Residential,THIRD PARTY PAYMENTS,PRIVATE CONTRACTOR,REVENUE
Walsall Council,http://opendatacommunities.org/id/metropolitan-district-council/walsall ,WC153-250,31.08.2023,ADULT SOCIAL CARE,ABBEY HEALTHCARE HOMES LTD,29/08/2023,"3,604.84",6541-Residential,THIRD PARTY PAYMENTS,PRIVATE CONTRACTOR,REVENUE
Walsall Council,http://opendatacommunities.org/id/metropolitan-district-council/walsall ,WC153-251,31.08.2023,ADULT SOCIAL CARE,ABBEY HEALTHCARE HOMES LTD,29/08/2023,"2,432.32",6541-Residential,THIRD PARTY PAYMENTS,PRIVATE CONTRACTOR,REVENUE
Walsall Council,http://opendatacommunities.org/id/metropolitan-district-council/walsall ,WC153-252,31.08.2023,ADULT SOCIAL CARE,REDACTED,03/08/2023,"2,438.24",6541-Direct Payment,THIRD PARTY PAYMENTS,PRIVATE CONTRACTOR,REVENUE
Walsall Council,http://opendatacommunities.org/id/metropolitan-district-council/walsall ,WC153-253,31.08.2023,CHILDRENS,REDACTED,22/08/2023,399.43,6223-Independent Foster Care-Oth Agency Provision,THIRD PARTY PAYMENTS,PRIVATE CONTRACTOR,REVENUE
Walsall Council,http://opendatacommunities.org/id/metropolitan-district-council/walsall ,WC153-254,31.08.2023,ADULT SOCIAL CARE,ABILITY HEALTHCARE LTD,24/08/2023,"1,242.00",6541-Domiciliary Care,THIRD PARTY PAYMENTS,PRIVATE CONTRACTOR,REVENUE
Walsall Council,http://opendatacommunities.org/id/metropolitan-district-council/walsall ,WC153-255,31.08.2023,ADULT SOCIAL CARE,ABILITY HEALTHCARE LTD,24/08/2023,"1,536.00",6541-Domiciliary Care,THIRD PARTY PAYMENTS,PRIVATE CONTRACTOR,REVENUE
Walsall Council,http://opendatacommunities.org/id/metropolitan-district-council/walsall ,WC153-256,31.08.2023,ADULT SOCIAL CARE,ABILITY HEALTHCARE LTD,24/08/2023,"2,016.00",6541-Domiciliary Care,THIRD PARTY PAYMENTS,PRIVATE CONTRACTOR,REVENUE
Walsall Council,http://opendatacommunities.org/id/metropolitan-district-council/walsall ,WC153-257,31.08.2023,ADULT SOCIAL CARE,ABILITY HEALTHCARE LTD,24/08/2023,"2,268.00",6541-Domiciliary Care,THIRD PARTY PAYMENTS,PRIVATE CONTRACTOR,REVENUE
Walsall Council,http://opendatacommunities.org/id/metropolitan-district-council/walsall ,WC153-258,31.08.2023,ADULT SOCIAL CARE,ABILITY HEALTHCARE LTD,24/08/2023,"1,317.00",6541-Domiciliary Care,THIRD PARTY PAYMENTS,PRIVATE CONTRACTOR,REVENUE
Walsall Council,http://opendatacommunities.org/id/metropolitan-district-council/walsall ,WC153-259,31.08.2023,ADULT SOCIAL CARE,ABILITY HEALTHCARE LTD,24/08/2023,"2,268.00",6541-Domiciliary Care,THIRD PARTY PAYMENTS,PRIVATE CONTRACTOR,REVENUE
Walsall Council,http://opendatacommunities.org/id/metropolitan-district-council/walsall ,WC153-260,31.08.2023,ADULT SOCIAL CARE,ABILITY HEALTHCARE LTD,24/08/2023,"1,260.00",6541-Domiciliary Care,THIRD PARTY PAYMENTS,PRIVATE CONTRACTOR,REVENUE
Walsall Council,http://opendatacommunities.org/id/metropolitan-district-council/walsall ,WC153-261,31.08.2023,ADULT SOCIAL CARE,ABILITY HEALTHCARE LTD,24/08/2023,"2,268.00",6541-Domiciliary Care,THIRD PARTY PAYMENTS,PRIVATE CONTRACTOR,REVENUE
Walsall Council,http://opendatacommunities.org/id/metropolitan-district-council/walsall ,WC153-262,31.08.2023,ADULT SOCIAL CARE,ABILITY HEALTHCARE LTD,24/08/2023,"1,134.00",6541-Domiciliary Care,THIRD PARTY PAYMENTS,PRIVATE CONTRACTOR,REVENUE
Walsall Council,http://opendatacommunities.org/id/metropolitan-district-council/walsall ,WC153-263,31.08.2023,ADULT SOCIAL CARE,ABILITY HEALTHCARE LTD,24/08/2023,"1,962.00",6541-Domiciliary Care,THIRD PARTY PAYMENTS,PRIVATE CONTRACTOR,REVENUE
Walsall Council,http://opendatacommunities.org/id/metropolitan-district-council/walsall ,WC153-264,31.08.2023,ADULT SOCIAL CARE,ABILITY HEALTHCARE LTD,24/08/2023,"3,528.00",6541-Domiciliary Care,THIRD PARTY PAYMENTS,PRIVATE CONTRACTOR,REVENUE
Walsall Council,http://opendatacommunities.org/id/metropolitan-district-council/walsall ,WC153-265,31.08.2023,ADULT SOCIAL CARE,ABILITY HEALTHCARE LTD,24/08/2023,"2,268.00",6541-Domiciliary Care,THIRD PARTY PAYMENTS,PRIVATE CONTRACTOR,REVENUE
Walsall Council,http://opendatacommunities.org/id/metropolitan-district-council/walsall ,WC153-266,31.08.2023,ADULT SOCIAL CARE,ABILITY HEALTHCARE LTD,24/08/2023,"2,016.00",6541-Domiciliary Care,THIRD PARTY PAYMENTS,PRIVATE CONTRACTOR,REVENUE
Walsall Council,http://opendatacommunities.org/id/metropolitan-district-council/walsall ,WC153-267,31.08.2023,ADULT SOCIAL CARE,ABILITY HEALTHCARE LTD,24/08/2023,"1,008.00",6541-Domiciliary Care,THIRD PARTY PAYMENTS,PRIVATE CONTRACTOR,REVENUE
Walsall Council,http://opendatacommunities.org/id/metropolitan-district-council/walsall ,WC153-268,31.08.2023,ADULT SOCIAL CARE,ABILITY HEALTHCARE LTD,24/08/2023,"2,268.00",6541-Domiciliary Care,THIRD PARTY PAYMENTS,PRIVATE CONTRACTOR,REVENUE
Walsall Council,http://opendatacommunities.org/id/metropolitan-district-council/walsall ,WC153-269,31.08.2023,ADULT SOCIAL CARE,ABILITY HEALTHCARE LTD,24/08/2023,"2,772.00",6541-Domiciliary Care,THIRD PARTY PAYMENTS,PRIVATE CONTRACTOR,REVENUE
Walsall Council,http://opendatacommunities.org/id/metropolitan-district-council/walsall ,WC153-270,31.08.2023,ADULT SOCIAL CARE,ABILITY HEALTHCARE LTD,24/08/2023,"2,304.00",6541-Domiciliary Care,THIRD PARTY PAYMENTS,PRIVATE CONTRACTOR,REVENUE
Walsall Council,http://opendatacommunities.org/id/metropolitan-district-council/walsall ,WC153-271,31.08.2023,ADULT SOCIAL CARE,ABILITY HEALTHCARE LTD,24/08/2023,"2,016.00",6541-Domiciliary Care,THIRD PARTY PAYMENTS,PRIVATE CONTRACTOR,REVENUE
Walsall Council,http://opendatacommunities.org/id/metropolitan-district-council/walsall ,WC153-272,31.08.2023,ADULT SOCIAL CARE,ABILITY HEALTHCARE LTD,24/08/2023,"2,520.00",6541-Domiciliary Care,THIRD PARTY PAYMENTS,PRIVATE CONTRACTOR,REVENUE
Walsall Council,http://opendatacommunities.org/id/metropolitan-district-council/walsall ,WC153-273,31.08.2023,ADULT SOCIAL CARE,ABILITY HEALTHCARE LTD,24/08/2023,"1,656.00",6541-Domiciliary Care,THIRD PARTY PAYMENTS,PRIVATE CONTRACTOR,REVENUE
Walsall Council,http://opendatacommunities.org/id/metropolitan-district-council/walsall ,WC153-274,31.08.2023,ADULT SOCIAL CARE,ABILITY HEALTHCARE LTD,24/08/2023,"2,016.00",6541-Domiciliary Care,THIRD PARTY PAYMENTS,PRIVATE CONTRACTOR,REVENUE
Walsall Council,http://opendatacommunities.org/id/metropolitan-district-council/walsall ,WC153-275,31.08.2023,ADULT SOCIAL CARE,ABILITY HEALTHCARE LTD,24/08/2023,"1,680.00",6541-Domiciliary Care,THIRD PARTY PAYMENTS,PRIVATE CONTRACTOR,REVENUE
Walsall Council,http://opendatacommunities.org/id/metropolitan-district-council/walsall ,WC153-276,31.08.2023,ADULT SOCIAL CARE,ABILITY HEALTHCARE LTD,24/08/2023,"2,268.00",6541-Domiciliary Care,THIRD PARTY PAYMENTS,PRIVATE CONTRACTOR,REVENUE
Walsall Council,http://opendatacommunities.org/id/metropolitan-district-council/walsall ,WC153-277,31.08.2023,ADULT SOCIAL CARE,ABILITY HEALTHCARE LTD,24/08/2023,336,6541-Domiciliary Care,THIRD PARTY PAYMENTS,PRIVATE CONTRACTOR,REVENUE
Walsall Council,http://opendatacommunities.org/id/metropolitan-district-council/walsall ,WC153-278,31.08.2023,ADULT SOCIAL CARE,ABILITY HEALTHCARE LTD,24/08/2023,"1,344.00",6541-Domiciliary Care,THIRD PARTY PAYMENTS,PRIVATE CONTRACTOR,REVENUE
Walsall Council,http://opendatacommunities.org/id/metropolitan-district-council/walsall ,WC153-279,31.08.2023,ADULT SOCIAL CARE,ABILITY HEALTHCARE LTD,24/08/2023,"2,016.00",6541-Domiciliary Care,THIRD PARTY PAYMENTS,PRIVATE CONTRACTOR,REVENUE
Walsall Council,http://opendatacommunities.org/id/metropolitan-district-council/walsall ,WC153-280,31.08.2023,ADULT SOCIAL CARE,ABILITY HEALTHCARE LTD,24/08/2023,"1,260.00",6541-Domiciliary Care,THIRD PARTY PAYMENTS,PRIVATE CONTRACTOR,REVENUE
Walsall Council,http://opendatacommunities.org/id/metropolitan-district-council/walsall ,WC153-281,31.08.2023,ADULT SOCIAL CARE,ABILITY HEALTHCARE LTD,24/08/2023,"1,743.00",6541-Domiciliary Care,THIRD PARTY PAYMENTS,PRIVATE CONTRACTOR,REVENUE
Walsall Council,http://opendatacommunities.org/id/metropolitan-district-council/walsall ,WC153-282,31.08.2023,ADULT SOCIAL CARE,ABILITY HEALTHCARE LTD,24/08/2023,"1,008.00",6541-Domiciliary Care,THIRD PARTY PAYMENTS,PRIVATE CONTRACTOR,REVENUE
Walsall Council,http://opendatacommunities.org/id/metropolitan-district-council/walsall ,WC153-283,31.08.2023,ADULT SOCIAL CARE,ABILITY HEALTHCARE LTD,24/08/2023,"1,329.00",6541-Domiciliary Care,THIRD PARTY PAYMENTS,PRIVATE CONTRACTOR,REVENUE
Walsall Council,http://opendatacommunities.org/id/metropolitan-district-council/walsall ,WC153-284,31.08.2023,ADULT SOCIAL CARE,ABILITY HEALTHCARE LTD,24/08/2023,"1,512.00",6541-Domiciliary Care,THIRD PARTY PAYMENTS,PRIVATE CONTRACTOR,REVENUE
Walsall Council,http://opendatacommunities.org/id/metropolitan-district-council/walsall ,WC153-285,31.08.2023,ADULT SOCIAL CARE,ABILITY HEALTHCARE LTD,24/08/2023,"1,332.00",6541-Domiciliary Care,THIRD PARTY PAYMENTS,PRIVATE CONTRACTOR,REVENUE
Walsall Council,http://opendatacommunities.org/id/metropolitan-district-council/walsall ,WC153-286,31.08.2023,ADULT SOCIAL CARE,ABILITY HEALTHCARE LTD,23/08/2023,810,6554-Professional Services-Priv Contractor & Other Agencies,THIRD PARTY PAYMENTS,PRIVATE CONTRACTOR,REVENUE
Walsall Council,http://opendatacommunities.org/id/metropolitan-district-council/walsall ,WC153-287,31.08.2023,ADULT SOCIAL CARE,ABILITY HEALTHCARE LTD,23/08/2023,891,6554-Professional Services-Priv Contractor & Other Agencies,THIRD PARTY PAYMENTS,PRIVATE CONTRACTOR,REVENUE
Walsall Council,http://opendatacommunities.org/id/metropolitan-district-council/walsall ,WC153-288,31.08.2023,ADULT SOCIAL CARE,ABILITY HEALTHCARE LTD,23/08/2023,355.5,6554-Professional Services-Priv Contractor & Other Agencies,THIRD PARTY PAYMENTS,PRIVATE CONTRACTOR,REVENUE
Walsall Council,http://opendatacommunities.org/id/metropolitan-district-council/walsall ,WC153-289,31.08.2023,ADULT SOCIAL CARE,ABILITY HEALTHCARE LTD,23/08/2023,468,6554-Professional Services-Priv Contractor & Other Agencies,THIRD PARTY PAYMENTS,PRIVATE CONTRACTOR,REVENUE
Walsall Council,http://opendatacommunities.org/id/metropolitan-district-council/walsall ,WC153-290,31.08.2023,"ECONOMY, ENVIRONMENT & COMMUNITIES",ABLE INVESTIGATIONS & ENFORCEMENTS LTD,09/08/2023,"1,880.00",6440-Professional Fees & Services,SUPPLIES & SERVICES,SERVICES,REVENUE
Walsall Council,http://opendatacommunities.org/id/metropolitan-district-council/walsall ,WC153-291,31.08.2023,"ECONOMY, ENVIRONMENT & COMMUNITIES",ABLE INVESTIGATIONS & ENFORCEMENTS LTD,11/08/2023,"1,670.00",6440-Professional Fees & Services,SUPPLIES & SERVICES,SERVICES,REVENUE
Walsall Council,http://opendatacommunities.org/id/metropolitan-district-council/walsall ,WC153-292,31.08.2023,"ECONOMY, ENVIRONMENT & COMMUNITIES",ABLE INVESTIGATIONS & ENFORCEMENTS LTD,15/08/2023,530,6440-Professional Fees & Services,SUPPLIES & SERVICES,SERVICES,REVENUE
Walsall Council,http://opendatacommunities.org/id/metropolitan-district-council/walsall ,WC153-293,31.08.2023,CHILDRENS,ABLEWELL CARS,15/08/2023,"1,122.00",6241-Hire of Vehicle with Driver,TRANSPORT,DIRECT TRANSPORT COSTS,REVENUE
Walsall Council,http://opendatacommunities.org/id/metropolitan-district-council/walsall ,WC153-294,31.08.2023,CHILDRENS,ABLEWELL CARS,15/08/2023,"1,331.20",6241-Hire of Vehicle with Driver,TRANSPORT,DIRECT TRANSPORT COSTS,REVENUE
Walsall Council,http://opendatacommunities.org/id/metropolitan-district-council/walsall ,WC153-295,31.08.2023,CHILDRENS,ABLEWELL CARS,15/08/2023,"1,849.05",6241-Hire of Vehicle with Driver,TRANSPORT,DIRECT TRANSPORT COSTS,REVENUE
Walsall Council,http://opendatacommunities.org/id/metropolitan-district-council/walsall ,WC153-296,31.08.2023,CHILDRENS,ABLEWELL CARS,15/08/2023,662.7,6241-Hire of Vehicle with Driver,TRANSPORT,DIRECT TRANSPORT COSTS,REVENUE
Walsall Council,http://opendatacommunities.org/id/metropolitan-district-council/walsall ,WC153-297,31.08.2023,CHILDRENS,ABLEWELL CARS,15/08/2023,948,6241-Hire of Vehicle with Driver,TRANSPORT,DIRECT TRANSPORT COSTS,REVENUE
Walsall Council,http://opendatacommunities.org/id/metropolitan-district-council/walsall ,WC153-298,31.08.2023,CHILDRENS,ABLEWELL CARS,15/08/2023,"1,250.52",6241-Hire of Vehicle with Driver,TRANSPORT,DIRECT TRANSPORT COSTS,REVENUE
Walsall Council,http://opendatacommunities.org/id/metropolitan-district-council/walsall ,WC153-299,31.08.2023,"ECONOMY, ENVIRONMENT & COMMUNITIES",ABRSM,24/08/2023,"2,673.00",6414-Professional Fees & Services,SUPPLIES & SERVICES,SERVICES,REVENUE
Walsall Council,http://opendatacommunities.org/id/metropolitan-district-council/walsall ,WC153-300,31.08.2023,CHILDRENS,ABS TAXIS (ALDRIDGE),15/08/2023,"1,677.90",6241-Hire of Vehicle with Driver,TRANSPORT,DIRECT TRANSPORT COSTS,REVENUE
Walsall Council,http://opendatacommunities.org/id/metropolitan-district-council/walsall ,WC153-301,31.08.2023,CHILDRENS,ABS TAXIS (ALDRIDGE),15/08/2023,"1,368.50",6241-Hire of Vehicle with Driver,TRANSPORT,DIRECT TRANSPORT COSTS,REVENUE
Walsall Council,http://opendatacommunities.org/id/metropolitan-district-council/walsall ,WC153-302,31.08.2023,CHILDRENS,ABS TAXIS (ALDRIDGE),15/08/2023,"1,764.60",6241-Hire of Vehicle with Driver,TRANSPORT,DIRECT TRANSPORT COSTS,REVENUE
Walsall Council,http://opendatacommunities.org/id/metropolitan-district-council/walsall ,WC153-303,31.08.2023,CHILDRENS,ABS TAXIS (ALDRIDGE),15/08/2023,"1,708.50",6241-Hire of Vehicle with Driver,TRANSPORT,DIRECT TRANSPORT COSTS,REVENUE
Walsall Council,http://opendatacommunities.org/id/metropolitan-district-council/walsall ,WC153-304,31.08.2023,ADULT SOCIAL CARE,ABSOLUTE HEALTHCARE SWAN HOUSE LTD,01/08/2023,"2,413.36",6541-Residential EMI,THIRD PARTY PAYMENTS,PRIVATE CONTRACTOR,REVENUE
Walsall Council,http://opendatacommunities.org/id/metropolitan-district-council/walsall ,WC153-305,31.08.2023,ADULT SOCIAL CARE,ABSOLUTE HEALTHCARE SWAN HOUSE LTD,01/08/2023,"2,137.32",6541-Residential,THIRD PARTY PAYMENTS,PRIVATE CONTRACTOR,REVENUE
Walsall Council,http://opendatacommunities.org/id/metropolitan-district-council/walsall ,WC153-306,31.08.2023,ADULT SOCIAL CARE,ABSOLUTE HEALTHCARE SWAN HOUSE LTD,01/08/2023,"2,137.32",6541-Residential,THIRD PARTY PAYMENTS,PRIVATE CONTRACTOR,REVENUE
Walsall Council,http://opendatacommunities.org/id/metropolitan-district-council/walsall ,WC153-307,31.08.2023,ADULT SOCIAL CARE,ABSOLUTE HEALTHCARE SWAN HOUSE LTD,01/08/2023,"2,137.32",6541-Residential,THIRD PARTY PAYMENTS,PRIVATE CONTRACTOR,REVENUE
Walsall Council,http://opendatacommunities.org/id/metropolitan-district-council/walsall ,WC153-308,31.08.2023,ADULT SOCIAL CARE,ABSOLUTE HEALTHCARE SWAN HOUSE LTD,01/08/2023,"2,413.36",6541-Residential EMI,THIRD PARTY PAYMENTS,PRIVATE CONTRACTOR,REVENUE
Walsall Council,http://opendatacommunities.org/id/metropolitan-district-council/walsall ,WC153-309,31.08.2023,ADULT SOCIAL CARE,ABSOLUTE HEALTHCARE SWAN HOUSE LTD,01/08/2023,"3,049.12",6541-Nursing,THIRD PARTY PAYMENTS,PRIVATE CONTRACTOR,REVENUE
Walsall Council,http://opendatacommunities.org/id/metropolitan-district-council/walsall ,WC153-310,31.08.2023,ADULT SOCIAL CARE,ABSOLUTE HEALTHCARE SWAN HOUSE LTD,01/08/2023,"5,240.48",6541-Nursing EMI,THIRD PARTY PAYMENTS,PRIVATE CONTRACTOR,REVENUE
Walsall Council,http://opendatacommunities.org/id/metropolitan-district-council/walsall ,WC153-311,31.08.2023,ADULT SOCIAL CARE,ABSOLUTE HEALTHCARE SWAN HOUSE LTD,01/08/2023,"1,600.00",6554-Professional Services-Priv Contractor & Other Agencies,THIRD PARTY PAYMENTS,PRIVATE CONTRACTOR,REVENUE
Walsall Council,http://opendatacommunities.org/id/metropolitan-district-council/walsall ,WC153-312,31.08.2023,ADULT SOCIAL CARE,ABSOLUTE HEALTHCARE SWAN HOUSE LTD,01/08/2023,925,6554-Professional Services-Priv Contractor & Other Agencies,THIRD PARTY PAYMENTS,PRIVATE CONTRACTOR,REVENUE
Walsall Council,http://opendatacommunities.org/id/metropolitan-district-council/walsall ,WC153-313,31.08.2023,ADULT SOCIAL CARE,ABSOLUTE HEALTHCARE SWAN HOUSE LTD,01/08/2023,"5,402.14",6554-Professional Services-Priv Contractor & Other Agencies,THIRD PARTY PAYMENTS,PRIVATE CONTRACTOR,REVENUE
Walsall Council,http://opendatacommunities.org/id/metropolitan-district-council/walsall ,WC153-314,31.08.2023,ADULT SOCIAL CARE,ABSOLUTE HEALTHCARE SWAN HOUSE LTD,01/08/2023,"10,200.00",6554-Professional Services-Priv Contractor & Other Agencies,THIRD PARTY PAYMENTS,PRIVATE CONTRACTOR,REVENUE
Walsall Council,http://opendatacommunities.org/id/metropolitan-district-council/walsall ,WC153-315,31.08.2023,ADULT SOCIAL CARE,ABSOLUTE HEALTHCARE SWAN HOUSE LTD,01/08/2023,"3,342.86",6554-Professional Services-Priv Contractor & Other Agencies,THIRD PARTY PAYMENTS,PRIVATE CONTRACTOR,REVENUE
Walsall Council,http://opendatacommunities.org/id/metropolitan-district-council/walsall ,WC153-316,31.08.2023,ADULT SOCIAL CARE,ABSOLUTE HEALTHCARE SWAN HOUSE LTD,01/08/2023,"1,542.85",6554-Professional Services-Priv Contractor & Other Agencies,THIRD PARTY PAYMENTS,PRIVATE CONTRACTOR,REVENUE
Walsall Council,http://opendatacommunities.org/id/metropolitan-district-council/walsall ,WC153-317,31.08.2023,ADULT SOCIAL CARE,ABSOLUTE HEALTHCARE SWAN HOUSE LTD,01/08/2023,557.14,6554-Professional Services-Priv Contractor & Other Agencies,THIRD PARTY PAYMENTS,PRIVATE CONTRACTOR,REVENUE
Walsall Council,http://opendatacommunities.org/id/metropolitan-district-council/walsall ,WC153-318,31.08.2023,ADULT SOCIAL CARE,ABSOLUTE HEALTHCARE SWAN HOUSE LTD,01/08/2023,"1,428.57",6554-Professional Services-Priv Contractor & Other Agencies,THIRD PARTY PAYMENTS,PRIVATE CONTRACTOR,REVENUE
Walsall Council,http://opendatacommunities.org/id/metropolitan-district-council/walsall ,WC153-319,31.08.2023,ADULT SOCIAL CARE,ABSOLUTE HEALTHCARE SWAN HOUSE LTD,01/08/2023,278.57,6554-Professional Services-Priv Contractor & Other Agencies,THIRD PARTY PAYMENTS,PRIVATE CONTRACTOR,REVENUE
Walsall Council,http://opendatacommunities.org/id/metropolitan-district-council/walsall ,WC153-320,31.08.2023,ADULT SOCIAL CARE,ABSOLUTE HEALTHCARE SWAN HOUSE LTD,01/08/2023,514.29,6554-Professional Services-Priv Contractor & Other Agencies,THIRD PARTY PAYMENTS,PRIVATE CONTRACTOR,REVENUE
Walsall Council,http://opendatacommunities.org/id/metropolitan-district-council/walsall ,WC153-321,31.08.2023,ADULT SOCIAL CARE,ABSOLUTE HEALTHCARE SWAN HOUSE LTD,01/08/2023,"1,379.06",6541-Residential EMI,THIRD PARTY PAYMENTS,PRIVATE CONTRACTOR,REVENUE
Walsall Council,http://opendatacommunities.org/id/metropolitan-district-council/walsall ,WC153-322,31.08.2023,ADULT SOCIAL CARE,ABSOLUTE HEALTHCARE SWAN HOUSE LTD,01/08/2023,"2,413.36",6541-Residential EMI,THIRD PARTY PAYMENTS,PRIVATE CONTRACTOR,REVENUE
Walsall Council,http://opendatacommunities.org/id/metropolitan-district-council/walsall ,WC153-323,31.08.2023,ADULT SOCIAL CARE,ABSOLUTE HEALTHCARE SWAN HOUSE LTD,01/08/2023,"2,277.32",6541-Residential,THIRD PARTY PAYMENTS,PRIVATE CONTRACTOR,REVENUE
Walsall Council,http://opendatacommunities.org/id/metropolitan-district-council/walsall ,WC153-324,31.08.2023,ADULT SOCIAL CARE,ABSOLUTE HEALTHCARE SWAN HOUSE LTD,01/08/2023,"1,710.75",6541-Residential,THIRD PARTY PAYMENTS,PRIVATE CONTRACTOR,REVENUE
Walsall Council,http://opendatacommunities.org/id/metropolitan-district-council/walsall ,WC153-325,31.08.2023,ADULT SOCIAL CARE,ABSOLUTE HEALTHCARE SWAN HOUSE LTD,01/08/2023,"2,137.32",6541-Residential,THIRD PARTY PAYMENTS,PRIVATE CONTRACTOR,REVENUE
Walsall Council,http://opendatacommunities.org/id/metropolitan-district-council/walsall ,WC153-326,31.08.2023,ADULT SOCIAL CARE,ABSOLUTE HEALTHCARE SWAN HOUSE LTD,01/08/2023,"2,413.36",6541-Residential EMI,THIRD PARTY PAYMENTS,PRIVATE CONTRACTOR,REVENUE
Walsall Council,http://opendatacommunities.org/id/metropolitan-district-council/walsall ,WC153-327,31.08.2023,ADULT SOCIAL CARE,ABSOLUTE HEALTHCARE SWAN HOUSE LTD,01/08/2023,"1,714.29",6554-Professional Services-Priv Contractor & Other Agencies,THIRD PARTY PAYMENTS,PRIVATE CONTRACTOR,REVENUE
Walsall Council,http://opendatacommunities.org/id/metropolitan-district-council/walsall ,WC153-328,31.08.2023,ADULT SOCIAL CARE,ABSOLUTE HEALTHCARE SWAN HOUSE LTD,01/08/2023,"3,048.96",6541-Nursing,THIRD PARTY PAYMENTS,PRIVATE CONTRACTOR,REVENUE
Walsall Council,http://opendatacommunities.org/id/metropolitan-district-council/walsall ,WC153-329,31.08.2023,ADULT SOCIAL CARE,ABSOLUTE HEALTHCARE SWAN HOUSE LTD,01/08/2023,"3,336.92",6541-Nursing EMI,THIRD PARTY PAYMENTS,PRIVATE CONTRACTOR,REVENUE
Walsall Council,http://opendatacommunities.org/id/metropolitan-district-council/walsall ,WC153-330,31.08.2023,ADULT SOCIAL CARE,ABSOLUTE HEALTHCARE SWAN HOUSE LTD,01/08/2023,"3,600.00",6541-Residential,THIRD PARTY PAYMENTS,PRIVATE CONTRACTOR,REVENUE
Walsall Council,http://opendatacommunities.org/id/metropolitan-district-council/walsall ,WC153-331,31.08.2023,ADULT SOCIAL CARE,ABSOLUTE HEALTHCARE SWAN HOUSE LTD,01/08/2023,"2,914.29",6554-Professional Services-Priv Contractor & Other Agencies,THIRD PARTY PAYMENTS,PRIVATE CONTRACTOR,REVENUE
Walsall Council,http://opendatacommunities.org/id/metropolitan-district-council/walsall ,WC153-332,31.08.2023,ADULT SOCIAL CARE,ABSOLUTE HEALTHCARE SWAN HOUSE LTD,29/08/2023,"2,137.32",6541-Residential,THIRD PARTY PAYMENTS,PRIVATE CONTRACTOR,REVENUE
Walsall Council,http://opendatacommunities.org/id/metropolitan-district-council/walsall ,WC153-333,31.08.2023,ADULT SOCIAL CARE,ABSOLUTE HEALTHCARE SWAN HOUSE LTD,29/08/2023,"2,137.32",6541-Residential,THIRD PARTY PAYMENTS,PRIVATE CONTRACTOR,REVENUE
Walsall Council,http://opendatacommunities.org/id/metropolitan-district-council/walsall ,WC153-334,31.08.2023,ADULT SOCIAL CARE,ABSOLUTE HEALTHCARE SWAN HOUSE LTD,29/08/2023,"2,413.36",6541-Residential EMI,THIRD PARTY PAYMENTS,PRIVATE CONTRACTOR,REVENUE
Walsall Council,http://opendatacommunities.org/id/metropolitan-district-council/walsall ,WC153-335,31.08.2023,ADULT SOCIAL CARE,ABSOLUTE HEALTHCARE SWAN HOUSE LTD,29/08/2023,"3,049.12",6541-Nursing,THIRD PARTY PAYMENTS,PRIVATE CONTRACTOR,REVENUE
Walsall Council,http://opendatacommunities.org/id/metropolitan-district-council/walsall ,WC153-336,31.08.2023,ADULT SOCIAL CARE,ABSOLUTE HEALTHCARE SWAN HOUSE LTD,29/08/2023,"2,413.36",6541-Residential EMI,THIRD PARTY PAYMENTS,PRIVATE CONTRACTOR,REVENUE
Walsall Council,http://opendatacommunities.org/id/metropolitan-district-council/walsall ,WC153-337,31.08.2023,ADULT SOCIAL CARE,ABSOLUTE HEALTHCARE SWAN HOUSE LTD,29/08/2023,"2,277.32",6541-Residential,THIRD PARTY PAYMENTS,PRIVATE CONTRACTOR,REVENUE
Walsall Council,http://opendatacommunities.org/id/metropolitan-district-council/walsall ,WC153-338,31.08.2023,ADULT SOCIAL CARE,ABSOLUTE HEALTHCARE SWAN HOUSE LTD,29/08/2023,"2,137.32",6541-Residential,THIRD PARTY PAYMENTS,PRIVATE CONTRACTOR,REVENUE
Walsall Council,http://opendatacommunities.org/id/metropolitan-district-council/walsall ,WC153-339,31.08.2023,ADULT SOCIAL CARE,ABSOLUTE HEALTHCARE SWAN HOUSE LTD,29/08/2023,417.86,6554-Professional Services-Priv Contractor & Other Agencies,THIRD PARTY PAYMENTS,PRIVATE CONTRACTOR,REVENUE
Walsall Council,http://opendatacommunities.org/id/metropolitan-district-council/walsall ,WC153-340,31.08.2023,ADULT SOCIAL CARE,ABSOLUTE HEALTHCARE SWAN HOUSE LTD,29/08/2023,"5,900.00",6554-Professional Services-Priv Contractor & Other Agencies,THIRD PARTY PAYMENTS,PRIVATE CONTRACTOR,REVENUE
Walsall Council,http://opendatacommunities.org/id/metropolitan-district-council/walsall ,WC153-341,31.08.2023,ADULT SOCIAL CARE,ABSOLUTE HEALTHCARE SWAN HOUSE LTD,29/08/2023,"1,392.86",6554-Professional Services-Priv Contractor & Other Agencies,THIRD PARTY PAYMENTS,PRIVATE CONTRACTOR,REVENUE
Walsall Council,http://opendatacommunities.org/id/metropolitan-district-council/walsall ,WC153-342,31.08.2023,ADULT SOCIAL CARE,ABSOLUTE HEALTHCARE SWAN HOUSE LTD,29/08/2023,"4,000.00",6554-Professional Services-Priv Contractor & Other Agencies,THIRD PARTY PAYMENTS,PRIVATE CONTRACTOR,REVENUE
Walsall Council,http://opendatacommunities.org/id/metropolitan-district-council/walsall ,WC153-343,31.08.2023,ADULT SOCIAL CARE,ABSOLUTE HEALTHCARE SWAN HOUSE LTD,29/08/2023,"4,800.00",6554-Professional Services-Priv Contractor & Other Agencies,THIRD PARTY PAYMENTS,PRIVATE CONTRACTOR,REVENUE
Walsall Council,http://opendatacommunities.org/id/metropolitan-district-council/walsall ,WC153-344,31.08.2023,ADULT SOCIAL CARE,ABSOLUTE HEALTHCARE SWAN HOUSE LTD,29/08/2023,"2,413.36",6541-Residential EMI,THIRD PARTY PAYMENTS,PRIVATE CONTRACTOR,REVENUE
Walsall Council,http://opendatacommunities.org/id/metropolitan-district-council/walsall ,WC153-345,31.08.2023,ADULT SOCIAL CARE,ABSOLUTE HEALTHCARE SWAN HOUSE LTD,29/08/2023,"3,342.86",6554-Professional Services-Priv Contractor & Other Agencies,THIRD PARTY PAYMENTS,PRIVATE CONTRACTOR,REVENUE
Walsall Council,http://opendatacommunities.org/id/metropolitan-district-council/walsall ,WC153-346,31.08.2023,ADULT SOCIAL CARE,ABSOLUTE HEALTHCARE SWAN HOUSE LTD,29/08/2023,"1,950.00",6554-Professional Services-Priv Contractor & Other Agencies,THIRD PARTY PAYMENTS,PRIVATE CONTRACTOR,REVENUE
Walsall Council,http://opendatacommunities.org/id/metropolitan-district-council/walsall ,WC153-347,31.08.2023,ADULT SOCIAL CARE,ABSOLUTE HEALTHCARE SWAN HOUSE LTD,29/08/2023,"1,392.86",6554-Professional Services-Priv Contractor & Other Agencies,THIRD PARTY PAYMENTS,PRIVATE CONTRACTOR,REVENUE
Walsall Council,http://opendatacommunities.org/id/metropolitan-district-council/walsall ,WC153-348,31.08.2023,ADULT SOCIAL CARE,ABSOLUTE HEALTHCARE SWAN HOUSE LTD,29/08/2023,"9,739.63",6541-Residential EMI,THIRD PARTY PAYMENTS,PRIVATE CONTRACTOR,REVENUE
Walsall Council,http://opendatacommunities.org/id/metropolitan-district-council/walsall ,WC153-349,31.08.2023,ADULT SOCIAL CARE,ABSOLUTE HEALTHCARE SWAN HOUSE LTD,29/08/2023,"3,048.96",6541-Nursing,THIRD PARTY PAYMENTS,PRIVATE CONTRACTOR,REVENUE
Walsall Council,http://opendatacommunities.org/id/metropolitan-district-council/walsall ,WC153-350,31.08.2023,ADULT SOCIAL CARE,ABSOLUTE HEALTHCARE SWAN HOUSE LTD,29/08/2023,"3,336.92",6541-Nursing EMI,THIRD PARTY PAYMENTS,PRIVATE CONTRACTOR,REVENUE
Walsall Council,http://opendatacommunities.org/id/metropolitan-district-council/walsall ,WC153-351,31.08.2023,ADULT SOCIAL CARE,ABSOLUTE HEALTHCARE SWAN HOUSE LTD,29/08/2023,"3,600.00",6541-Residential,THIRD PARTY PAYMENTS,PRIVATE CONTRACTOR,REVENUE
Walsall Council,http://opendatacommunities.org/id/metropolitan-district-council/walsall ,WC153-352,31.08.2023,ADULT SOCIAL CARE,ABSOLUTE HEALTHCARE SWAN HOUSE LTD,29/08/2023,514.29,6554-Professional Services-Priv Contractor & Other Agencies,THIRD PARTY PAYMENTS,PRIVATE CONTRACTOR,REVENUE
Walsall Council,http://opendatacommunities.org/id/metropolitan-district-council/walsall ,WC153-353,31.08.2023,ADULT SOCIAL CARE,ABSOLUTE HEALTHCARE SWAN HOUSE LTD,29/08/2023,"4,274.64",6541-Residential,THIRD PARTY PAYMENTS,PRIVATE CONTRACTOR,REVENUE
Walsall Council,http://opendatacommunities.org/id/metropolitan-district-council/walsall ,WC153-354,31.08.2023,ADULT SOCIAL CARE,ABSOLUTE HEALTHCARE SWAN HOUSE LTD,29/08/2023,"2,413.36",6541-Residential EMI,THIRD PARTY PAYMENTS,PRIVATE CONTRACTOR,REVENUE
Walsall Council,http://opendatacommunities.org/id/metropolitan-district-council/walsall ,WC153-355,31.08.2023,ADULT SOCIAL CARE,ABSOLUTE HEALTHCARE SWAN HOUSE LTD,29/08/2023,"3,571.43",6554-Professional Services-Priv Contractor & Other Agencies,THIRD PARTY PAYMENTS,PRIVATE CONTRACTOR,REVENUE
Walsall Council,http://opendatacommunities.org/id/metropolitan-district-council/walsall ,WC153-356,31.08.2023,ADULT SOCIAL CARE,ABSOLUTE HEALTHCARE SWAN HOUSE LTD,29/08/2023,857.14,6554-Professional Services-Priv Contractor & Other Agencies,THIRD PARTY PAYMENTS,PRIVATE CONTRACTOR,REVENUE
Walsall Council,http://opendatacommunities.org/id/metropolitan-district-council/walsall ,WC153-357,31.08.2023,ADULT SOCIAL CARE,ABSOLUTE HEALTHCARE SWAN HOUSE LTD,29/08/2023,"3,668.57",6554-Professional Services-Priv Contractor & Other Agencies,THIRD PARTY PAYMENTS,PRIVATE CONTRACTOR,REVENUE
Walsall Council,http://opendatacommunities.org/id/metropolitan-district-council/walsall ,WC153-358,31.08.2023,ADULT SOCIAL CARE,ABSOLUTE HEALTHCARE SWAN HOUSE LTD,29/08/2023,"2,413.36",6541-Residential EMI,THIRD PARTY PAYMENTS,PRIVATE CONTRACTOR,REVENUE
Walsall Council,http://opendatacommunities.org/id/metropolitan-district-council/walsall ,WC153-359,31.08.2023,ADULT SOCIAL CARE,ABSOLUTE HEALTHCARE SWAN HOUSE LTD,29/08/2023,"2,137.32",6541-Residential,THIRD PARTY PAYMENTS,PRIVATE CONTRACTOR,REVENUE
Walsall Council,http://opendatacommunities.org/id/metropolitan-district-council/walsall ,WC153-360,31.08.2023,ADULT SOCIAL CARE,ABSOLUTE HEALTHCARE SWAN HOUSE LTD,29/08/2023,"5,240.48",6541-Nursing EMI,THIRD PARTY PAYMENTS,PRIVATE CONTRACTOR,REVENUE
Walsall Council,http://opendatacommunities.org/id/metropolitan-district-council/walsall ,WC153-361,31.08.2023,ADULT SOCIAL CARE,ABSOLUTE HEALTHCARE SWAN HOUSE LTD,29/08/2023,696.43,6554-Professional Services-Priv Contractor & Other Agencies,THIRD PARTY PAYMENTS,PRIVATE CONTRACTOR,REVENUE
Walsall Council,http://opendatacommunities.org/id/metropolitan-district-council/walsall ,WC153-362,31.08.2023,ADULT SOCIAL CARE,ABSOLUTE HEALTHCARE SWAN HOUSE LTD,29/08/2023,"1,571.43",6554-Professional Services-Priv Contractor & Other Agencies,THIRD PARTY PAYMENTS,PRIVATE CONTRACTOR,REVENUE
Walsall Council,http://opendatacommunities.org/id/metropolitan-district-council/walsall ,WC153-363,31.08.2023,ADULT SOCIAL CARE,ABSOLUTE HEALTHCARE SWAN HOUSE LTD,29/08/2023,"1,928.57",6554-Professional Services-Priv Contractor & Other Agencies,THIRD PARTY PAYMENTS,PRIVATE CONTRACTOR,REVENUE
Walsall Council,http://opendatacommunities.org/id/metropolitan-district-council/walsall ,WC153-364,31.08.2023,ADULT SOCIAL CARE,ABSOLUTE HEALTHCARE SWAN HOUSE LTD,29/08/2023,"1,428.57",6554-Professional Services-Priv Contractor & Other Agencies,THIRD PARTY PAYMENTS,PRIVATE CONTRACTOR,REVENUE
Walsall Council,http://opendatacommunities.org/id/metropolitan-district-council/walsall ,WC153-365,31.08.2023,ADULT SOCIAL CARE,ABSOLUTE HEALTHCARE SWAN HOUSE LTD,29/08/2023,417.86,6554-Professional Services-Priv Contractor & Other Agencies,THIRD PARTY PAYMENTS,PRIVATE CONTRACTOR,REVENUE
Walsall Council,http://opendatacommunities.org/id/metropolitan-district-council/walsall ,WC153-366,31.08.2023,CHILDRENS,ACCALIA CARE SERVICES LTD,07/08/2023,"8,726.14",6223-External Residential Care-Oth Agency Provision,THIRD PARTY PAYMENTS,PRIVATE CONTRACTOR,REVENUE
Walsall Council,http://opendatacommunities.org/id/metropolitan-district-council/walsall ,WC153-367,31.08.2023,ADULT SOCIAL CARE,ACCESS UK LTD ,03/08/2023,"18,315.00",6551-Professional Fees & Services,SUPPLIES & SERVICES,SERVICES,REVENUE
Walsall Council,http://opendatacommunities.org/id/metropolitan-district-council/walsall ,WC153-368,31.08.2023,ADULT SOCIAL CARE,ACCORD HOUSING ASSOCIATION LIMITED - HOBS MEADOW,01/08/2023,"4,776.84",6541-Residential,THIRD PARTY PAYMENTS,PRIVATE CONTRACTOR,REVENUE
Walsall Council,http://opendatacommunities.org/id/metropolitan-district-council/walsall ,WC153-369,31.08.2023,ADULT SOCIAL CARE,ACCORD HOUSING ASSOCIATION LIMITED - HOBS MEADOW,01/08/2023,"4,776.84",6541-Residential,THIRD PARTY PAYMENTS,PRIVATE CONTRACTOR,REVENUE
Walsall Council,http://opendatacommunities.org/id/metropolitan-district-council/walsall ,WC153-370,31.08.2023,ADULT SOCIAL CARE,ACCORD HOUSING ASSOCIATION LIMITED - HOBS MEADOW,01/08/2023,"4,776.84",6541-Residential,THIRD PARTY PAYMENTS,PRIVATE CONTRACTOR,REVENUE
Walsall Council,http://opendatacommunities.org/id/metropolitan-district-council/walsall ,WC153-371,31.08.2023,ADULT SOCIAL CARE,ACCORD HOUSING ASSOCIATION LIMITED - HOBS MEADOW,01/08/2023,"4,776.84",6541-Residential,THIRD PARTY PAYMENTS,PRIVATE CONTRACTOR,REVENUE
Walsall Council,http://opendatacommunities.org/id/metropolitan-district-council/walsall ,WC153-372,31.08.2023,ADULT SOCIAL CARE,ACCORD HOUSING ASSOCIATION LIMITED - HOBS MEADOW,29/08/2023,"4,776.84",6541-Residential,THIRD PARTY PAYMENTS,PRIVATE CONTRACTOR,REVENUE
Walsall Council,http://opendatacommunities.org/id/metropolitan-district-council/walsall ,WC153-373,31.08.2023,ADULT SOCIAL CARE,ACCORD HOUSING ASSOCIATION LIMITED - HOBS MEADOW,29/08/2023,"4,776.84",6541-Residential,THIRD PARTY PAYMENTS,PRIVATE CONTRACTOR,REVENUE
Walsall Council,http://opendatacommunities.org/id/metropolitan-district-council/walsall ,WC153-374,31.08.2023,ADULT SOCIAL CARE,ACCORD HOUSING ASSOCIATION LIMITED - HOBS MEADOW,29/08/2023,"4,776.84",6541-Residential,THIRD PARTY PAYMENTS,PRIVATE CONTRACTOR,REVENUE
Walsall Council,http://opendatacommunities.org/id/metropolitan-district-council/walsall ,WC153-375,31.08.2023,ADULT SOCIAL CARE,ACCORD HOUSING ASSOCIATION LIMITED - HOBS MEADOW,29/08/2023,"4,776.84",6541-Residential,THIRD PARTY PAYMENTS,PRIVATE CONTRACTOR,REVENUE
Walsall Council,http://opendatacommunities.org/id/metropolitan-district-council/walsall ,WC153-376,31.08.2023,CHILDRENS,ACE CARS & MINIBUSES LTD,15/08/2023,"2,006.00",6241-Hire of Vehicle with Driver,TRANSPORT,DIRECT TRANSPORT COSTS,REVENUE
Walsall Council,http://opendatacommunities.org/id/metropolitan-district-council/walsall ,WC153-377,31.08.2023,CHILDRENS,ACE CARS & MINIBUSES LTD,15/08/2023,"2,286.84",6241-Hire of Vehicle with Driver,TRANSPORT,DIRECT TRANSPORT COSTS,REVENUE
Walsall Council,http://opendatacommunities.org/id/metropolitan-district-council/walsall ,WC153-378,31.08.2023,CHILDRENS,ACE CARS & MINIBUSES LTD,15/08/2023,"2,126.36",6241-Hire of Vehicle with Driver,TRANSPORT,DIRECT TRANSPORT COSTS,REVENUE
Walsall Council,http://opendatacommunities.org/id/metropolitan-district-council/walsall ,WC153-379,31.08.2023,CHILDRENS,ACE CARS & MINIBUSES LTD,15/08/2023,"2,006.00",6241-Hire of Vehicle with Driver,TRANSPORT,DIRECT TRANSPORT COSTS,REVENUE
Walsall Council,http://opendatacommunities.org/id/metropolitan-district-council/walsall ,WC153-380,31.08.2023,CHILDRENS,ACE CARS & MINIBUSES LTD,15/08/2023,"2,720.00",6241-Hire of Vehicle with Driver,TRANSPORT,DIRECT TRANSPORT COSTS,REVENUE
Walsall Council,http://opendatacommunities.org/id/metropolitan-district-council/walsall ,WC153-381,31.08.2023,CHILDRENS,ACE CARS & MINIBUSES LTD,15/08/2023,"3,216.23",6241-Hire of Vehicle with Driver,TRANSPORT,DIRECT TRANSPORT COSTS,REVENUE
Walsall Council,http://opendatacommunities.org/id/metropolitan-district-council/walsall ,WC153-382,31.08.2023,CHILDRENS,ACE CARS & MINIBUSES LTD,15/08/2023,"2,313.70",6241-Hire of Vehicle with Driver,TRANSPORT,DIRECT TRANSPORT COSTS,REVENUE
Walsall Council,http://opendatacommunities.org/id/metropolitan-district-council/walsall ,WC153-383,31.08.2023,CHILDRENS,ACE CARS & MINIBUSES LTD,15/08/2023,"2,614.43",6241-Hire of Vehicle with Driver,TRANSPORT,DIRECT TRANSPORT COSTS,REVENUE
Walsall Council,http://opendatacommunities.org/id/metropolitan-district-council/walsall ,WC153-384,31.08.2023,CHILDRENS,ACE CARS & MINIBUSES LTD,15/08/2023,"2,884.73",6241-Hire of Vehicle with Driver,TRANSPORT,DIRECT TRANSPORT COSTS,REVENUE
Walsall Council,http://opendatacommunities.org/id/metropolitan-district-council/walsall ,WC153-385,31.08.2023,CHILDRENS,ACE CARS & MINIBUSES LTD,15/08/2023,"1,819.00",6241-Hire of Vehicle with Driver,TRANSPORT,DIRECT TRANSPORT COSTS,REVENUE
Walsall Council,http://opendatacommunities.org/id/metropolitan-district-council/walsall ,WC153-386,31.08.2023,CHILDRENS,ACE CARS & MINIBUSES LTD,15/08/2023,"1,819.00",6241-Hire of Vehicle with Driver,TRANSPORT,DIRECT TRANSPORT COSTS,REVENUE
Walsall Council,http://opendatacommunities.org/id/metropolitan-district-council/walsall ,WC153-387,31.08.2023,CHILDRENS,ACE CARS & MINIBUSES LTD,15/08/2023,"1,819.00",6241-Hire of Vehicle with Driver,TRANSPORT,DIRECT TRANSPORT COSTS,REVENUE
Walsall Council,http://opendatacommunities.org/id/metropolitan-district-council/walsall ,WC153-388,31.08.2023,CHILDRENS,ACE CARS & MINIBUSES LTD,15/08/2023,"1,819.00",6241-Hire of Vehicle with Driver,TRANSPORT,DIRECT TRANSPORT COSTS,REVENUE
Walsall Council,http://opendatacommunities.org/id/metropolitan-district-council/walsall ,WC153-389,31.08.2023,CHILDRENS,ACE CARS & MINIBUSES LTD,15/08/2023,"2,006.00",6241-Hire of Vehicle with Driver,TRANSPORT,DIRECT TRANSPORT COSTS,REVENUE
Walsall Council,http://opendatacommunities.org/id/metropolitan-district-council/walsall ,WC153-390,31.08.2023,CHILDRENS,ACE CARS & MINIBUSES LTD,15/08/2023,"2,694.50",6241-Hire of Vehicle with Driver,TRANSPORT,DIRECT TRANSPORT COSTS,REVENUE
Walsall Council,http://opendatacommunities.org/id/metropolitan-district-council/walsall ,WC153-391,31.08.2023,CHILDRENS,ACE CARS & MINIBUSES LTD,15/08/2023,"2,031.50",6241-Hire of Vehicle with Driver,TRANSPORT,DIRECT TRANSPORT COSTS,REVENUE
Walsall Council,http://opendatacommunities.org/id/metropolitan-district-council/walsall ,WC153-392,31.08.2023,CHILDRENS,ACE CARS & MINIBUSES LTD,15/08/2023,"2,234.65",6241-Hire of Vehicle with Driver,TRANSPORT,DIRECT TRANSPORT COSTS,REVENUE
Walsall Council,http://opendatacommunities.org/id/metropolitan-district-council/walsall ,WC153-393,31.08.2023,CHILDRENS,ACE CARS & MINIBUSES LTD,15/08/2023,"2,031.50",6241-Hire of Vehicle with Driver,TRANSPORT,DIRECT TRANSPORT COSTS,REVENUE
Walsall Council,http://opendatacommunities.org/id/metropolitan-district-council/walsall ,WC153-394,31.08.2023,CHILDRENS,ACE CARS & MINIBUSES LTD,15/08/2023,"2,313.70",6241-Hire of Vehicle with Driver,TRANSPORT,DIRECT TRANSPORT COSTS,REVENUE
Walsall Council,http://opendatacommunities.org/id/metropolitan-district-council/walsall ,WC153-395,31.08.2023,CHILDRENS,ACE CARS & MINIBUSES LTD,15/08/2023,"2,313.70",6241-Hire of Vehicle with Driver,TRANSPORT,DIRECT TRANSPORT COSTS,REVENUE
Walsall Council,http://opendatacommunities.org/id/metropolitan-district-council/walsall ,WC153-396,31.08.2023,CHILDRENS,ACE CARS & MINIBUSES LTD,15/08/2023,"1,938.00",6241-Hire of Vehicle with Driver,TRANSPORT,DIRECT TRANSPORT COSTS,REVENUE
Walsall Council,http://opendatacommunities.org/id/metropolitan-district-council/walsall ,WC153-397,31.08.2023,CHILDRENS,ACE CARS & MINIBUSES LTD,15/08/2023,"1,819.00",6241-Hire of Vehicle with Driver,TRANSPORT,DIRECT TRANSPORT COSTS,REVENUE
Walsall Council,http://opendatacommunities.org/id/metropolitan-district-council/walsall ,WC153-398,31.08.2023,CHILDRENS,ACE CARS & MINIBUSES LTD,15/08/2023,"3,610.80",6241-Hire of Vehicle with Driver,TRANSPORT,DIRECT TRANSPORT COSTS,REVENUE
Walsall Council,http://opendatacommunities.org/id/metropolitan-district-council/walsall ,WC153-399,31.08.2023,CHILDRENS,ACE CARS & MINIBUSES LTD,15/08/2023,"1,819.00",6241-Hire of Vehicle with Driver,TRANSPORT,DIRECT TRANSPORT COSTS,REVENUE
Walsall Council,http://opendatacommunities.org/id/metropolitan-district-council/walsall ,WC153-400,31.08.2023,CHILDRENS,ACE CARS & MINIBUSES LTD,15/08/2023,"1,819.00",6241-Hire of Vehicle with Driver,TRANSPORT,DIRECT TRANSPORT COSTS,REVENUE
Walsall Council,http://opendatacommunities.org/id/metropolitan-district-council/walsall ,WC153-401,31.08.2023,CHILDRENS,ACE CARS & MINIBUSES LTD,15/08/2023,"1,819.00",6241-Hire of Vehicle with Driver,TRANSPORT,DIRECT TRANSPORT COSTS,REVENUE
Walsall Council,http://opendatacommunities.org/id/metropolitan-district-council/walsall ,WC153-402,31.08.2023,CHILDRENS,ACE CARS & MINIBUSES LTD,15/08/2023,"2,006.00",6241-Hire of Vehicle with Driver,TRANSPORT,DIRECT TRANSPORT COSTS,REVENUE
Walsall Council,http://opendatacommunities.org/id/metropolitan-district-council/walsall ,WC153-403,31.08.2023,CHILDRENS,ACE CARS & MINIBUSES LTD,15/08/2023,"2,031.50",6241-Hire of Vehicle with Driver,TRANSPORT,DIRECT TRANSPORT COSTS,REVENUE
Walsall Council,http://opendatacommunities.org/id/metropolitan-district-council/walsall ,WC153-404,31.08.2023,CHILDRENS,ACE CARS & MINIBUSES LTD,15/08/2023,"2,313.70",6241-Hire of Vehicle with Driver,TRANSPORT,DIRECT TRANSPORT COSTS,REVENUE
Walsall Council,http://opendatacommunities.org/id/metropolitan-district-council/walsall ,WC153-405,31.08.2023,CHILDRENS,ACE CARS & MINIBUSES LTD,15/08/2023,"2,313.70",6241-Hire of Vehicle with Driver,TRANSPORT,DIRECT TRANSPORT COSTS,REVENUE
Walsall Council,http://opendatacommunities.org/id/metropolitan-district-council/walsall ,WC153-406,31.08.2023,CHILDRENS,ACE CARS & MINIBUSES LTD,15/08/2023,"2,313.70",6241-Hire of Vehicle with Driver,TRANSPORT,DIRECT TRANSPORT COSTS,REVENUE
Walsall Council,http://opendatacommunities.org/id/metropolitan-district-council/walsall ,WC153-407,31.08.2023,CHILDRENS,ACE CARS & MINIBUSES LTD,15/08/2023,"2,881.50",6241-Hire of Vehicle with Driver,TRANSPORT,DIRECT TRANSPORT COSTS,REVENUE
Walsall Council,http://opendatacommunities.org/id/metropolitan-district-council/walsall ,WC153-408,31.08.2023,CHILDRENS,ACE CARS & MINIBUSES LTD,15/08/2023,"1,819.00",6241-Hire of Vehicle with Driver,TRANSPORT,DIRECT TRANSPORT COSTS,REVENUE
Walsall Council,http://opendatacommunities.org/id/metropolitan-district-council/walsall ,WC153-409,31.08.2023,CHILDRENS,ACE CARS & MINIBUSES LTD,15/08/2023,"1,819.00",6241-Hire of Vehicle with Driver,TRANSPORT,DIRECT TRANSPORT COSTS,REVENUE
Walsall Council,http://opendatacommunities.org/id/metropolitan-district-council/walsall ,WC153-410,31.08.2023,CHILDRENS,ACE CARS & MINIBUSES LTD,15/08/2023,"2,006.00",6241-Hire of Vehicle with Driver,TRANSPORT,DIRECT TRANSPORT COSTS,REVENUE
Walsall Council,http://opendatacommunities.org/id/metropolitan-district-council/walsall ,WC153-411,31.08.2023,CHILDRENS,ACE CARS & MINIBUSES LTD,15/08/2023,"1,938.00",6241-Hire of Vehicle with Driver,TRANSPORT,DIRECT TRANSPORT COSTS,REVENUE
Walsall Council,http://opendatacommunities.org/id/metropolitan-district-council/walsall ,WC153-412,31.08.2023,CHILDRENS,ACE CARS & MINIBUSES LTD,15/08/2023,"1,938.00",6241-Hire of Vehicle with Driver,TRANSPORT,DIRECT TRANSPORT COSTS,REVENUE
Walsall Council,http://opendatacommunities.org/id/metropolitan-district-council/walsall ,WC153-413,31.08.2023,CHILDRENS,ACE CARS & MINIBUSES LTD,15/08/2023,"3,270.80",6241-Hire of Vehicle with Driver,TRANSPORT,DIRECT TRANSPORT COSTS,REVENUE
Walsall Council,http://opendatacommunities.org/id/metropolitan-district-council/walsall ,WC153-414,31.08.2023,CHILDRENS,ACE CARS & MINIBUSES LTD,15/08/2023,"1,938.00",6241-Hire of Vehicle with Driver,TRANSPORT,DIRECT TRANSPORT COSTS,REVENUE
Walsall Council,http://opendatacommunities.org/id/metropolitan-district-council/walsall ,WC153-415,31.08.2023,CHILDRENS,ACE CARS & MINIBUSES LTD,15/08/2023,"2,647.92",6241-Hire of Vehicle with Driver,TRANSPORT,DIRECT TRANSPORT COSTS,REVENUE
Walsall Council,http://opendatacommunities.org/id/metropolitan-district-council/walsall ,WC153-416,31.08.2023,ADULT SOCIAL CARE,ACEPAY LTD (COTTAGE NUR HOME),01/08/2023,"2,505.36",6541-Nursing,THIRD PARTY PAYMENTS,PRIVATE CONTRACTOR,REVENUE
Walsall Council,http://opendatacommunities.org/id/metropolitan-district-council/walsall ,WC153-417,31.08.2023,ADULT SOCIAL CARE,ACEPAY LTD (COTTAGE NUR HOME),01/08/2023,"2,505.36",6541-Nursing,THIRD PARTY PAYMENTS,PRIVATE CONTRACTOR,REVENUE
Walsall Council,http://opendatacommunities.org/id/metropolitan-district-council/walsall ,WC153-418,31.08.2023,ADULT SOCIAL CARE,ACEPAY LTD (COTTAGE NUR HOME),01/08/2023,"2,819.08",6541-Nursing EMI,THIRD PARTY PAYMENTS,PRIVATE CONTRACTOR,REVENUE
Walsall Council,http://opendatacommunities.org/id/metropolitan-district-council/walsall ,WC153-419,31.08.2023,ADULT SOCIAL CARE,ACEPAY LTD (COTTAGE NUR HOME),01/08/2023,"2,413.36",6541-Residential EMI,THIRD PARTY PAYMENTS,PRIVATE CONTRACTOR,REVENUE
Walsall Council,http://opendatacommunities.org/id/metropolitan-district-council/walsall ,WC153-420,31.08.2023,ADULT SOCIAL CARE,ACEPAY LTD (COTTAGE NUR HOME),01/08/2023,"2,413.36",6541-Residential EMI,THIRD PARTY PAYMENTS,PRIVATE CONTRACTOR,REVENUE
Walsall Council,http://opendatacommunities.org/id/metropolitan-district-council/walsall ,WC153-421,31.08.2023,ADULT SOCIAL CARE,ACEPAY LTD (COTTAGE NUR HOME),01/08/2023,"2,413.36",6541-Residential EMI,THIRD PARTY PAYMENTS,PRIVATE CONTRACTOR,REVENUE
Walsall Council,http://opendatacommunities.org/id/metropolitan-district-council/walsall ,WC153-422,31.08.2023,ADULT SOCIAL CARE,ACEPAY LTD (COTTAGE NUR HOME),01/08/2023,"2,819.08",6541-Nursing EMI,THIRD PARTY PAYMENTS,PRIVATE CONTRACTOR,REVENUE
Walsall Council,http://opendatacommunities.org/id/metropolitan-district-council/walsall ,WC153-423,31.08.2023,ADULT SOCIAL CARE,ACEPAY LTD (COTTAGE NUR HOME),01/08/2023,"2,505.36",6541-Nursing,THIRD PARTY PAYMENTS,PRIVATE CONTRACTOR,REVENUE
Walsall Council,http://opendatacommunities.org/id/metropolitan-district-council/walsall ,WC153-424,31.08.2023,ADULT SOCIAL CARE,ACEPAY LTD (COTTAGE NUR HOME),01/08/2023,"2,505.36",6541-Nursing,THIRD PARTY PAYMENTS,PRIVATE CONTRACTOR,REVENUE
Walsall Council,http://opendatacommunities.org/id/metropolitan-district-council/walsall ,WC153-425,31.08.2023,ADULT SOCIAL CARE,ACEPAY LTD (COTTAGE NUR HOME),01/08/2023,"2,505.36",6541-Nursing,THIRD PARTY PAYMENTS,PRIVATE CONTRACTOR,REVENUE
Walsall Council,http://opendatacommunities.org/id/metropolitan-district-council/walsall ,WC153-426,31.08.2023,ADULT SOCIAL CARE,ACEPAY LTD (COTTAGE NUR HOME),01/08/2023,"2,505.36",6541-Nursing,THIRD PARTY PAYMENTS,PRIVATE CONTRACTOR,REVENUE
Walsall Council,http://opendatacommunities.org/id/metropolitan-district-council/walsall ,WC153-427,31.08.2023,ADULT SOCIAL CARE,ACEPAY LTD (COTTAGE NUR HOME),01/08/2023,"2,505.36",6541-Nursing,THIRD PARTY PAYMENTS,PRIVATE CONTRACTOR,REVENUE
Walsall Council,http://opendatacommunities.org/id/metropolitan-district-council/walsall ,WC153-428,31.08.2023,ADULT SOCIAL CARE,ACEPAY LTD (COTTAGE NUR HOME),01/08/2023,"2,505.36",6541-Nursing,THIRD PARTY PAYMENTS,PRIVATE CONTRACTOR,REVENUE
Walsall Council,http://opendatacommunities.org/id/metropolitan-district-council/walsall ,WC153-429,31.08.2023,ADULT SOCIAL CARE,ACEPAY LTD (COTTAGE NUR HOME),01/08/2023,268.43,6541-Nursing,THIRD PARTY PAYMENTS,PRIVATE CONTRACTOR,REVENUE
Walsall Council,http://opendatacommunities.org/id/metropolitan-district-council/walsall ,WC153-430,31.08.2023,ADULT SOCIAL CARE,ACEPAY LTD (COTTAGE NUR HOME),01/08/2023,"2,819.08",6541-Nursing EMI,THIRD PARTY PAYMENTS,PRIVATE CONTRACTOR,REVENUE
Walsall Council,http://opendatacommunities.org/id/metropolitan-district-council/walsall ,WC153-431,31.08.2023,ADULT SOCIAL CARE,ACEPAY LTD (COTTAGE NUR HOME),01/08/2023,"2,413.36",6541-Residential EMI,THIRD PARTY PAYMENTS,PRIVATE CONTRACTOR,REVENUE
Walsall Council,http://opendatacommunities.org/id/metropolitan-district-council/walsall ,WC153-432,31.08.2023,ADULT SOCIAL CARE,ACEPAY LTD (COTTAGE NUR HOME),01/08/2023,"2,505.36",6541-Nursing,THIRD PARTY PAYMENTS,PRIVATE CONTRACTOR,REVENUE
Walsall Council,http://opendatacommunities.org/id/metropolitan-district-council/walsall ,WC153-433,31.08.2023,ADULT SOCIAL CARE,ACEPAY LTD (COTTAGE NUR HOME),01/08/2023,"2,505.36",6541-Nursing,THIRD PARTY PAYMENTS,PRIVATE CONTRACTOR,REVENUE
Walsall Council,http://opendatacommunities.org/id/metropolitan-district-council/walsall ,WC153-434,31.08.2023,ADULT SOCIAL CARE,ACEPAY LTD (COTTAGE NUR HOME),01/08/2023,"4,732.03",6541-Nursing EMI,THIRD PARTY PAYMENTS,PRIVATE CONTRACTOR,REVENUE
Walsall Council,http://opendatacommunities.org/id/metropolitan-district-council/walsall ,WC153-435,31.08.2023,ADULT SOCIAL CARE,ACEPAY LTD (COTTAGE NUR HOME),29/08/2023,"2,505.36",6541-Nursing,THIRD PARTY PAYMENTS,PRIVATE CONTRACTOR,REVENUE
Walsall Council,http://opendatacommunities.org/id/metropolitan-district-council/walsall ,WC153-436,31.08.2023,ADULT SOCIAL CARE,ACEPAY LTD (COTTAGE NUR HOME),29/08/2023,"2,505.36",6541-Nursing,THIRD PARTY PAYMENTS,PRIVATE CONTRACTOR,REVENUE
Walsall Council,http://opendatacommunities.org/id/metropolitan-district-council/walsall ,WC153-437,31.08.2023,ADULT SOCIAL CARE,ACEPAY LTD (COTTAGE NUR HOME),29/08/2023,"2,505.36",6541-Nursing,THIRD PARTY PAYMENTS,PRIVATE CONTRACTOR,REVENUE
Walsall Council,http://opendatacommunities.org/id/metropolitan-district-council/walsall ,WC153-438,31.08.2023,ADULT SOCIAL CARE,ACEPAY LTD (COTTAGE NUR HOME),29/08/2023,"2,505.36",6541-Nursing,THIRD PARTY PAYMENTS,PRIVATE CONTRACTOR,REVENUE
Walsall Council,http://opendatacommunities.org/id/metropolitan-district-council/walsall ,WC153-439,31.08.2023,ADULT SOCIAL CARE,ACEPAY LTD (COTTAGE NUR HOME),29/08/2023,"2,413.36",6541-Residential EMI,THIRD PARTY PAYMENTS,PRIVATE CONTRACTOR,REVENUE
Walsall Council,http://opendatacommunities.org/id/metropolitan-district-council/walsall ,WC153-440,31.08.2023,ADULT SOCIAL CARE,ACEPAY LTD (COTTAGE NUR HOME),29/08/2023,"2,819.08",6541-Nursing EMI,THIRD PARTY PAYMENTS,PRIVATE CONTRACTOR,REVENUE
Walsall Council,http://opendatacommunities.org/id/metropolitan-district-council/walsall ,WC153-441,31.08.2023,ADULT SOCIAL CARE,ACEPAY LTD (COTTAGE NUR HOME),29/08/2023,"2,413.36",6541-Residential EMI,THIRD PARTY PAYMENTS,PRIVATE CONTRACTOR,REVENUE
Walsall Council,http://opendatacommunities.org/id/metropolitan-district-council/walsall ,WC153-442,31.08.2023,ADULT SOCIAL CARE,ACEPAY LTD (COTTAGE NUR HOME),29/08/2023,"2,819.08",6541-Nursing EMI,THIRD PARTY PAYMENTS,PRIVATE CONTRACTOR,REVENUE
Walsall Council,http://opendatacommunities.org/id/metropolitan-district-council/walsall ,WC153-443,31.08.2023,ADULT SOCIAL CARE,ACEPAY LTD (COTTAGE NUR HOME),29/08/2023,"2,413.36",6541-Residential EMI,THIRD PARTY PAYMENTS,PRIVATE CONTRACTOR,REVENUE
Walsall Council,http://opendatacommunities.org/id/metropolitan-district-council/walsall ,WC153-444,31.08.2023,ADULT SOCIAL CARE,ACEPAY LTD (COTTAGE NUR HOME),29/08/2023,"2,505.36",6541-Nursing,THIRD PARTY PAYMENTS,PRIVATE CONTRACTOR,REVENUE
Walsall Council,http://opendatacommunities.org/id/metropolitan-district-council/walsall ,WC153-445,31.08.2023,ADULT SOCIAL CARE,ACEPAY LTD (COTTAGE NUR HOME),29/08/2023,"2,505.36",6541-Nursing,THIRD PARTY PAYMENTS,PRIVATE CONTRACTOR,REVENUE
Walsall Council,http://opendatacommunities.org/id/metropolitan-district-council/walsall ,WC153-446,31.08.2023,ADULT SOCIAL CARE,ACEPAY LTD (COTTAGE NUR HOME),29/08/2023,"2,505.36",6541-Nursing,THIRD PARTY PAYMENTS,PRIVATE CONTRACTOR,REVENUE
Walsall Council,http://opendatacommunities.org/id/metropolitan-district-council/walsall ,WC153-447,31.08.2023,ADULT SOCIAL CARE,ACEPAY LTD (COTTAGE NUR HOME),29/08/2023,"2,505.36",6541-Nursing,THIRD PARTY PAYMENTS,PRIVATE CONTRACTOR,REVENUE
Walsall Council,http://opendatacommunities.org/id/metropolitan-district-council/walsall ,WC153-448,31.08.2023,ADULT SOCIAL CARE,ACEPAY LTD (COTTAGE NUR HOME),29/08/2023,"2,505.36",6541-Nursing,THIRD PARTY PAYMENTS,PRIVATE CONTRACTOR,REVENUE
Walsall Council,http://opendatacommunities.org/id/metropolitan-district-council/walsall ,WC153-449,31.08.2023,ADULT SOCIAL CARE,ACEPAY LTD (COTTAGE NUR HOME),29/08/2023,"2,505.36",6541-Nursing,THIRD PARTY PAYMENTS,PRIVATE CONTRACTOR,REVENUE
Walsall Council,http://opendatacommunities.org/id/metropolitan-district-council/walsall ,WC153-450,31.08.2023,ADULT SOCIAL CARE,ACEPAY LTD (COTTAGE NUR HOME),29/08/2023,"2,819.08",6541-Nursing EMI,THIRD PARTY PAYMENTS,PRIVATE CONTRACTOR,REVENUE
Walsall Council,http://opendatacommunities.org/id/metropolitan-district-council/walsall ,WC153-451,31.08.2023,ADULT SOCIAL CARE,ACEPAY LTD (COTTAGE NUR HOME),29/08/2023,"3,059.08",6541-Nursing EMI,THIRD PARTY PAYMENTS,PRIVATE CONTRACTOR,REVENUE
Walsall Council,http://opendatacommunities.org/id/metropolitan-district-council/walsall ,WC153-452,31.08.2023,ADULT SOCIAL CARE,ACEPAY LTD (COTTAGE NUR HOME),29/08/2023,"1,610.59",6541-Nursing,THIRD PARTY PAYMENTS,PRIVATE CONTRACTOR,REVENUE
Walsall Council,http://opendatacommunities.org/id/metropolitan-district-council/walsall ,WC153-453,31.08.2023,ADULT SOCIAL CARE,ACEPAY LTD (COTTAGE NUR HOME),29/08/2023,"2,413.36",6541-Residential EMI,THIRD PARTY PAYMENTS,PRIVATE CONTRACTOR,REVENUE
Walsall Council,http://opendatacommunities.org/id/metropolitan-district-council/walsall ,WC153-454,31.08.2023,ADULT SOCIAL CARE,ACEPAY LTD (COTTAGE NUR HOME),29/08/2023,"2,819.08",6541-Nursing EMI,THIRD PARTY PAYMENTS,PRIVATE CONTRACTOR,REVENUE
Walsall Council,http://opendatacommunities.org/id/metropolitan-district-council/walsall ,WC153-455,31.08.2023,ADULT SOCIAL CARE,ACEPAY LTD (COTTAGE NUR HOME),29/08/2023,"2,505.36",6541-Nursing,THIRD PARTY PAYMENTS,PRIVATE CONTRACTOR,REVENUE
Walsall Council,http://opendatacommunities.org/id/metropolitan-district-council/walsall ,WC153-456,31.08.2023,ADULT SOCIAL CARE,ACHIEVE TOGETHER LIMITED,01/08/2023,"3,852.80",6541-Residential,THIRD PARTY PAYMENTS,PRIVATE CONTRACTOR,REVENUE
Walsall Council,http://opendatacommunities.org/id/metropolitan-district-council/walsall ,WC153-457,31.08.2023,ADULT SOCIAL CARE,ACHIEVE TOGETHER LIMITED,01/08/2023,"4,920.72",6541-Residential,THIRD PARTY PAYMENTS,PRIVATE CONTRACTOR,REVENUE
Walsall Council,http://opendatacommunities.org/id/metropolitan-district-council/walsall ,WC153-458,31.08.2023,ADULT SOCIAL CARE,ACHIEVE TOGETHER LIMITED,01/08/2023,"6,572.72",6541-Residential,THIRD PARTY PAYMENTS,PRIVATE CONTRACTOR,REVENUE
Walsall Council,http://opendatacommunities.org/id/metropolitan-district-council/walsall ,WC153-459,31.08.2023,ADULT SOCIAL CARE,ACHIEVE TOGETHER LIMITED,01/08/2023,"5,506.08",6541-Residential,THIRD PARTY PAYMENTS,PRIVATE CONTRACTOR,REVENUE
Walsall Council,http://opendatacommunities.org/id/metropolitan-district-council/walsall ,WC153-460,31.08.2023,ADULT SOCIAL CARE,ACHIEVE TOGETHER LIMITED,01/08/2023,"9,178.80",6541-Residential,THIRD PARTY PAYMENTS,PRIVATE CONTRACTOR,REVENUE
Walsall Council,http://opendatacommunities.org/id/metropolitan-district-council/walsall ,WC153-461,31.08.2023,ADULT SOCIAL CARE,ACHIEVE TOGETHER LIMITED,29/08/2023,"5,506.08",6541-Residential,THIRD PARTY PAYMENTS,PRIVATE CONTRACTOR,REVENUE
Walsall Council,http://opendatacommunities.org/id/metropolitan-district-council/walsall ,WC153-462,31.08.2023,ADULT SOCIAL CARE,ACHIEVE TOGETHER LIMITED,29/08/2023,"9,178.80",6541-Residential,THIRD PARTY PAYMENTS,PRIVATE CONTRACTOR,REVENUE
Walsall Council,http://opendatacommunities.org/id/metropolitan-district-council/walsall ,WC153-463,31.08.2023,ADULT SOCIAL CARE,ACHIEVE TOGETHER LIMITED,29/08/2023,"6,572.72",6541-Residential,THIRD PARTY PAYMENTS,PRIVATE CONTRACTOR,REVENUE
Walsall Council,http://opendatacommunities.org/id/metropolitan-district-council/walsall ,WC153-464,31.08.2023,ADULT SOCIAL CARE,ACHIEVE TOGETHER LIMITED,29/08/2023,"3,852.80",6541-Residential,THIRD PARTY PAYMENTS,PRIVATE CONTRACTOR,REVENUE
Walsall Council,http://opendatacommunities.org/id/metropolitan-district-council/walsall ,WC153-465,31.08.2023,ADULT SOCIAL CARE,ACHIEVE TOGETHER LIMITED,29/08/2023,"4,920.72",6541-Residential,THIRD PARTY PAYMENTS,PRIVATE CONTRACTOR,REVENUE
Walsall Council,http://opendatacommunities.org/id/metropolitan-district-council/walsall ,WC153-466,31.08.2023,CHILDRENS,ACORN CARE & EDUCATION LTD (SALES),10/08/2023,"26,713.34",1220-Top Up Funding -Grants to Schools,SUPPLIES & SERVICES,GRANTS (EXP) & SUBSCRIPTIONS,REVENUE
Walsall Council,http://opendatacommunities.org/id/metropolitan-district-council/walsall ,WC153-467,31.08.2023,CHILDRENS,ACORN CARE & EDUCATION LTD (SALES),16/08/2023,"25,960.00",1220-Professional Fees & Services,SUPPLIES & SERVICES,SERVICES,REVENUE
Walsall Council,http://opendatacommunities.org/id/metropolitan-district-council/walsall ,WC153-468,31.08.2023,CHILDRENS,ACORN CARE & EDUCATION LTD (SALES),16/08/2023,"19,761.66",1220-Top Up Funding -Grants to Schools,SUPPLIES & SERVICES,GRANTS (EXP) & SUBSCRIPTIONS,REVENUE
Walsall Council,http://opendatacommunities.org/id/metropolitan-district-council/walsall ,WC153-469,31.08.2023,CHILDRENS,ACORN CARE & EDUCATION LTD (SALES),16/08/2023,"17,803.34",1220-Top Up Funding -Grants to Schools,SUPPLIES & SERVICES,GRANTS (EXP) & SUBSCRIPTIONS,REVENUE
Walsall Council,http://opendatacommunities.org/id/metropolitan-district-council/walsall ,WC153-470,31.08.2023,CHILDRENS,ACORN CARE & EDUCATION LTD (SALES),16/08/2023,"24,705.00",1220-Professional Fees & Services,SUPPLIES & SERVICES,SERVICES,REVENUE
Walsall Council,http://opendatacommunities.org/id/metropolitan-district-council/walsall ,WC153-471,31.08.2023,CHILDRENS,ACORN CARE & EDUCATION LTD (SALES),16/08/2023,"19,761.66",1220-Professional Fees & Services,SUPPLIES & SERVICES,SERVICES,REVENUE
Walsall Council,http://opendatacommunities.org/id/metropolitan-district-council/walsall ,WC153-472,31.08.2023,CHILDRENS,ACORN CARE & EDUCATION LTD (SALES),16/08/2023,"17,302.00",1220-Professional Fees & Services,SUPPLIES & SERVICES,SERVICES,REVENUE
Walsall Council,http://opendatacommunities.org/id/metropolitan-district-council/walsall ,WC153-473,31.08.2023,CHILDRENS,ACORN CARE & EDUCATION LTD (SALES),16/08/2023,"22,256.66",1220-Professional Fees & Services,SUPPLIES & SERVICES,SERVICES,REVENUE
Walsall Council,http://opendatacommunities.org/id/metropolitan-district-council/walsall ,WC153-474,31.08.2023,CHILDRENS,ACORN CARE & EDUCATION LTD (SALES),16/08/2023,"16,166.66",1220-Professional Fees & Services,SUPPLIES & SERVICES,SERVICES,REVENUE
Walsall Council,http://opendatacommunities.org/id/metropolitan-district-council/walsall ,WC153-475,31.08.2023,CHILDRENS,ACORN CARE & EDUCATION LTD (SALES),16/08/2023,"6,333.34",1220-Professional Fees & Services,SUPPLIES & SERVICES,SERVICES,REVENUE
Walsall Council,http://opendatacommunities.org/id/metropolitan-district-council/walsall ,WC153-476,31.08.2023,CHILDRENS,ACORN CARE & EDUCATION LTD (SALES),16/08/2023,"15,554.34",1220-Top Up Funding -Grants to Schools,SUPPLIES & SERVICES,GRANTS (EXP) & SUBSCRIPTIONS,REVENUE
Walsall Council,http://opendatacommunities.org/id/metropolitan-district-council/walsall ,WC153-477,31.08.2023,CHILDRENS,ACORN CARE & EDUCATION LTD (SALES),16/08/2023,"25,960.00",1220-Top Up Funding -Grants to Schools,SUPPLIES & SERVICES,GRANTS (EXP) & SUBSCRIPTIONS,REVENUE
Walsall Council,http://opendatacommunities.org/id/metropolitan-district-council/walsall ,WC153-478,31.08.2023,CHILDRENS,ACORN CARE & EDUCATION LTD (SALES),16/08/2023,"17,302.00",1220-Top Up Funding -Grants to Schools,SUPPLIES & SERVICES,GRANTS (EXP) & SUBSCRIPTIONS,REVENUE
Walsall Council,http://opendatacommunities.org/id/metropolitan-district-council/walsall ,WC153-479,31.08.2023,CHILDRENS,ACORN CARE & EDUCATION LTD (SALES),16/08/2023,"19,761.67",1220-Top Up Funding -Grants to Schools,SUPPLIES & SERVICES,GRANTS (EXP) & SUBSCRIPTIONS,REVENUE
Walsall Council,http://opendatacommunities.org/id/metropolitan-district-council/walsall ,WC153-480,31.08.2023,CHILDRENS,ACORN CARE & EDUCATION LTD (SALES),16/08/2023,"17,803.33",1220-Top Up Funding -Grants to Schools,SUPPLIES & SERVICES,GRANTS (EXP) & SUBSCRIPTIONS,REVENUE
Walsall Council,http://opendatacommunities.org/id/metropolitan-district-council/walsall ,WC153-481,31.08.2023,CHILDRENS,ACORN CARE & EDUCATION LTD (SALES),16/08/2023,"17,803.33",1220-Top Up Funding -Grants to Schools,SUPPLIES & SERVICES,GRANTS (EXP) & SUBSCRIPTIONS,REVENUE
Walsall Council,http://opendatacommunities.org/id/metropolitan-district-council/walsall ,WC153-482,31.08.2023,CHILDRENS,ACORN CARE & EDUCATION LTD (SALES),16/08/2023,"18,333.33",1220-Professional Fees & Services,SUPPLIES & SERVICES,SERVICES,REVENUE
Walsall Council,http://opendatacommunities.org/id/metropolitan-district-council/walsall ,WC153-483,31.08.2023,CHILDRENS,ACORN CARE & EDUCATION LTD (SALES),16/08/2023,"26,713.33",1220-Top Up Funding -Grants to Schools,SUPPLIES & SERVICES,GRANTS (EXP) & SUBSCRIPTIONS,REVENUE
Walsall Council,http://opendatacommunities.org/id/metropolitan-district-council/walsall ,WC153-484,31.08.2023,CHILDRENS,ACORN CARE & EDUCATION LTD (SALES),16/08/2023,"17,803.33",1220-Top Up Funding -Grants to Schools,SUPPLIES & SERVICES,GRANTS (EXP) & SUBSCRIPTIONS,REVENUE
Walsall Council,http://opendatacommunities.org/id/metropolitan-district-council/walsall ,WC153-485,31.08.2023,CHILDRENS,ACORN CARE & EDUCATION LTD (SALES),24/08/2023,"26,713.34",1220-Top Up Funding -Grants to Schools,SUPPLIES & SERVICES,GRANTS (EXP) & SUBSCRIPTIONS,REVENUE
Walsall Council,http://opendatacommunities.org/id/metropolitan-district-council/walsall ,WC153-486,31.08.2023,CHILDRENS,ACORN CARE & EDUCATION LTD (SALES),16/08/2023,"19,761.67",1220-Top Up Funding -Grants to Schools,SUPPLIES & SERVICES,GRANTS (EXP) & SUBSCRIPTIONS,REVENUE
Walsall Council,http://opendatacommunities.org/id/metropolitan-district-council/walsall ,WC153-487,31.08.2023,CHILDRENS,ACORN CARE & EDUCATION LTD (SALES),16/08/2023,"-26,666.66",1220-Professional Fees & Services,SUPPLIES & SERVICES,SERVICES,REVENUE
Walsall Council,http://opendatacommunities.org/id/metropolitan-district-council/walsall ,WC153-488,31.08.2023,CHILDRENS,ACORN CARE & EDUCATION LTD (SALES),16/08/2023,"26,666.66",1220-Professional Fees & Services,SUPPLIES & SERVICES,SERVICES,REVENUE
Walsall Council,http://opendatacommunities.org/id/metropolitan-district-council/walsall ,WC153-489,31.08.2023,CHILDRENS,ACORN CARE & EDUCATION LTD (SALES),16/08/2023,"-22,710.66",1220-Professional Fees & Services,SUPPLIES & SERVICES,SERVICES,REVENUE
Walsall Council,http://opendatacommunities.org/id/metropolitan-district-council/walsall ,WC153-490,31.08.2023,CHILDRENS,ACORN CARE & EDUCATION LTD (SALES),16/08/2023,"22,710.66",1220-Professional Fees & Services,SUPPLIES & SERVICES,SERVICES,REVENUE
Walsall Council,http://opendatacommunities.org/id/metropolitan-district-council/walsall ,WC153-491,31.08.2023,CHILDRENS,ACORN CARE & EDUCATION LTD (SALES),14/08/2023,"6,389.17",1220-Professional Fees & Services,SUPPLIES & SERVICES,SERVICES,REVENUE
Walsall Council,http://opendatacommunities.org/id/metropolitan-district-council/walsall ,WC153-492,31.08.2023,CHILDRENS,ACORN CARE & EDUCATION LTD (SALES),07/08/2023,"21,011.60",6223-External Residential Care-Oth Agency Provision,THIRD PARTY PAYMENTS,PRIVATE CONTRACTOR,REVENUE
Walsall Council,http://opendatacommunities.org/id/metropolitan-district-council/walsall ,WC153-493,31.08.2023,CHILDRENS,ACORN FOSTERING SERVICES LTD,07/08/2023,"3,340.00",6223-Independent Foster Care-Oth Agency Provision,THIRD PARTY PAYMENTS,PRIVATE CONTRACTOR,REVENUE
Walsall Council,http://opendatacommunities.org/id/metropolitan-district-council/walsall ,WC153-494,31.08.2023,CHILDRENS,ACORNS CHILDRENS HOSPICE TRUST,18/08/2023,975,6220-Professional Fees & Services,SUPPLIES & SERVICES,SERVICES,REVENUE
Walsall Council,http://opendatacommunities.org/id/metropolitan-district-council/walsall ,WC153-495,31.08.2023,CHILDRENS,ACPAS LIMITED,24/08/2023,"1,076.40",6222-Consultant Fees,SUPPLIES & SERVICES,SERVICES,REVENUE
Walsall Council,http://opendatacommunities.org/id/metropolitan-district-council/walsall ,WC153-496,31.08.2023,"ECONOMY, ENVIRONMENT & COMMUNITIES",ACTION GRAPHICS & DISPLAY LTD,21/08/2023,735,6414-Professional Fees & Services,SUPPLIES & SERVICES,SERVICES,REVENUE
Walsall Council,http://opendatacommunities.org/id/metropolitan-district-council/walsall ,WC153-497,31.08.2023,CHILDRENS,ACTIVE CARE SOLUTIONS LTD,07/08/2023,"1,757.30",6223-Independent Foster Care-Oth Agency Provision,THIRD PARTY PAYMENTS,PRIVATE CONTRACTOR,REVENUE
Walsall Council,http://opendatacommunities.org/id/metropolitan-district-council/walsall ,WC153-498,31.08.2023,CHILDRENS,ACTIVE CARE SOLUTIONS LTD,07/08/2023,"3,514.80",6223-Independent Foster Care-Oth Agency Provision,THIRD PARTY PAYMENTS,PRIVATE CONTRACTOR,REVENUE
Walsall Council,http://opendatacommunities.org/id/metropolitan-district-council/walsall ,WC153-499,31.08.2023,CHILDRENS,ACTIVE CARE SOLUTIONS LTD,07/08/2023,"3,317.56",6223-Independent Foster Care-Oth Agency Provision,THIRD PARTY PAYMENTS,PRIVATE CONTRACTOR,REVENUE
Walsall Council,http://opendatacommunities.org/id/metropolitan-district-council/walsall ,WC153-500,31.08.2023,CHILDRENS,ACTIVE CARE SOLUTIONS LTD,07/08/2023,"2,259.52",6223-Independent Foster Care-Oth Agency Provision,THIRD PARTY PAYMENTS,PRIVATE CONTRACTOR,REVENUE
Walsall Council,http://opendatacommunities.org/id/metropolitan-district-council/walsall ,WC153-501,31.08.2023,ADULT SOCIAL CARE,REDACTED,03/08/2023,747.92,6541-Direct Payment,THIRD PARTY PAYMENTS,PRIVATE CONTRACTOR,REVENUE
Walsall Council,http://opendatacommunities.org/id/metropolitan-district-council/walsall ,WC153-502,31.08.2023,CHILDRENS,REDACTED,24/08/2023,350.96,6223-Residents Orders,TRANSFER PAYMENTS,CHILDREN SOCIAL SERVICES CLIENT,REVENUE
Walsall Council,http://opendatacommunities.org/id/metropolitan-district-council/walsall ,WC153-503,31.08.2023,ADULT SOCIAL CARE,REDACTED,03/08/2023,"2,177.80",6541-Direct Payment,THIRD PARTY PAYMENTS,PRIVATE CONTRACTOR,REVENUE
Walsall Council,http://opendatacommunities.org/id/metropolitan-district-council/walsall ,WC153-504,31.08.2023,ADULT SOCIAL CARE,ADVANCE HEALTH CARE (UK) LTD,24/08/2023,"1,030.50",6541-Domiciliary Care,THIRD PARTY PAYMENTS,PRIVATE CONTRACTOR,REVENUE
Walsall Council,http://opendatacommunities.org/id/metropolitan-district-council/walsall ,WC153-505,31.08.2023,ADULT SOCIAL CARE,ADVANCE HEALTH CARE (UK) LTD,24/08/2023,"1,188.00",6541-Domiciliary Care,THIRD PARTY PAYMENTS,PRIVATE CONTRACTOR,REVENUE
Walsall Council,http://opendatacommunities.org/id/metropolitan-district-council/walsall ,WC153-506,31.08.2023,ADULT SOCIAL CARE,ADVANCE HEALTH CARE (UK) LTD,24/08/2023,"1,050.00",6541-Domiciliary Care,THIRD PARTY PAYMENTS,PRIVATE CONTRACTOR,REVENUE
Walsall Council,http://opendatacommunities.org/id/metropolitan-district-council/walsall ,WC153-507,31.08.2023,ADULT SOCIAL CARE,ADVANCE HEALTH CARE (UK) LTD,24/08/2023,"1,188.00",6541-Domiciliary Care,THIRD PARTY PAYMENTS,PRIVATE CONTRACTOR,REVENUE
Walsall Council,http://opendatacommunities.org/id/metropolitan-district-council/walsall ,WC153-508,31.08.2023,ADULT SOCIAL CARE,ADVANCE HEALTH CARE (UK) LTD,24/08/2023,"1,134.00",6541-Domiciliary Care,THIRD PARTY PAYMENTS,PRIVATE CONTRACTOR,REVENUE
Walsall Council,http://opendatacommunities.org/id/metropolitan-district-council/walsall ,WC153-509,31.08.2023,ADULT SOCIAL CARE,ADVANCE HEALTH CARE (UK) LTD,24/08/2023,840,6541-Domiciliary Care,THIRD PARTY PAYMENTS,PRIVATE CONTRACTOR,REVENUE
Walsall Council,http://opendatacommunities.org/id/metropolitan-district-council/walsall ,WC153-510,31.08.2023,ADULT SOCIAL CARE,ADVANCE HEALTH CARE (UK) LTD,24/08/2023,270,6541-Domiciliary Care,THIRD PARTY PAYMENTS,PRIVATE CONTRACTOR,REVENUE
Walsall Council,http://opendatacommunities.org/id/metropolitan-district-council/walsall ,WC153-511,31.08.2023,ADULT SOCIAL CARE,ADVANCE HEALTH CARE (UK) LTD,24/08/2023,"1,128.00",6541-Domiciliary Care,THIRD PARTY PAYMENTS,PRIVATE CONTRACTOR,REVENUE
Walsall Council,http://opendatacommunities.org/id/metropolitan-district-council/walsall ,WC153-512,31.08.2023,ADULT SOCIAL CARE,ADVANCE HEALTH CARE (UK) LTD,24/08/2023,"1,206.00",6541-Domiciliary Care,THIRD PARTY PAYMENTS,PRIVATE CONTRACTOR,REVENUE
Walsall Council,http://opendatacommunities.org/id/metropolitan-district-council/walsall ,WC153-513,31.08.2023,ADULT SOCIAL CARE,ADVANCE HEALTH CARE (UK) LTD,24/08/2023,546,6541-Domiciliary Care,THIRD PARTY PAYMENTS,PRIVATE CONTRACTOR,REVENUE
Walsall Council,http://opendatacommunities.org/id/metropolitan-district-council/walsall ,WC153-514,31.08.2023,ADULT SOCIAL CARE,ADVANCE HEALTH CARE (UK) LTD,24/08/2023,652.5,6541-Domiciliary Care,THIRD PARTY PAYMENTS,PRIVATE CONTRACTOR,REVENUE
Walsall Council,http://opendatacommunities.org/id/metropolitan-district-council/walsall ,WC153-515,31.08.2023,ADULT SOCIAL CARE,ADVANCE HEALTH CARE (UK) LTD,01/08/2023,283.5,6541-Domiciliary Care,THIRD PARTY PAYMENTS,PRIVATE CONTRACTOR,REVENUE
Walsall Council,http://opendatacommunities.org/id/metropolitan-district-council/walsall ,WC153-516,31.08.2023,ADULT SOCIAL CARE,ADVANCE HEALTH CARE (UK) LTD,01/08/2023,420,6541-Domiciliary Care,THIRD PARTY PAYMENTS,PRIVATE CONTRACTOR,REVENUE
Walsall Council,http://opendatacommunities.org/id/metropolitan-district-council/walsall ,WC153-517,31.08.2023,ADULT SOCIAL CARE,ADVANCE HEALTH CARE (UK) LTD,01/08/2023,963,6541-Domiciliary Care,THIRD PARTY PAYMENTS,PRIVATE CONTRACTOR,REVENUE
Walsall Council,http://opendatacommunities.org/id/metropolitan-district-council/walsall ,WC153-518,31.08.2023,ADULT SOCIAL CARE,ADVANCE HEALTH CARE (UK) LTD,01/08/2023,441,6541-Domiciliary Care,THIRD PARTY PAYMENTS,PRIVATE CONTRACTOR,REVENUE
Walsall Council,http://opendatacommunities.org/id/metropolitan-district-council/walsall ,WC153-519,31.08.2023,ADULT SOCIAL CARE,ADVANCE HEALTH CARE (UK) LTD,01/08/2023,378,6541-Domiciliary Care,THIRD PARTY PAYMENTS,PRIVATE CONTRACTOR,REVENUE
Walsall Council,http://opendatacommunities.org/id/metropolitan-district-council/walsall ,WC153-520,31.08.2023,ADULT SOCIAL CARE,ADVANCE HEALTH CARE (UK) LTD,01/08/2023,"-2,485.68",6541-Domiciliary Care,THIRD PARTY PAYMENTS,PRIVATE CONTRACTOR,REVENUE
Walsall Council,http://opendatacommunities.org/id/metropolitan-district-council/walsall ,WC153-521,31.08.2023,ADULT SOCIAL CARE,ADVANCE HEALTH CARE (UK) LTD,01/08/2023,378,6541-Domiciliary Care,THIRD PARTY PAYMENTS,PRIVATE CONTRACTOR,REVENUE
Walsall Council,http://opendatacommunities.org/id/metropolitan-district-council/walsall ,WC153-522,31.08.2023,ADULT SOCIAL CARE,ADVANCE HEALTH CARE (UK) LTD,01/08/2023,441,6541-Domiciliary Care,THIRD PARTY PAYMENTS,PRIVATE CONTRACTOR,REVENUE
Walsall Council,http://opendatacommunities.org/id/metropolitan-district-council/walsall ,WC153-523,31.08.2023,ADULT SOCIAL CARE,ADVANCE HEALTH CARE (UK) LTD,01/08/2023,567,6541-Domiciliary Care,THIRD PARTY PAYMENTS,PRIVATE CONTRACTOR,REVENUE
Walsall Council,http://opendatacommunities.org/id/metropolitan-district-council/walsall ,WC153-524,31.08.2023,ADULT SOCIAL CARE,ADVANCE HEALTH CARE (UK) LTD,01/08/2023,567,6541-Domiciliary Care,THIRD PARTY PAYMENTS,PRIVATE CONTRACTOR,REVENUE
Walsall Council,http://opendatacommunities.org/id/metropolitan-district-council/walsall ,WC153-525,31.08.2023,ADULT SOCIAL CARE,ADVANCE HEALTH CARE (UK) LTD,01/08/2023,630,6541-Domiciliary Care,THIRD PARTY PAYMENTS,PRIVATE CONTRACTOR,REVENUE
Walsall Council,http://opendatacommunities.org/id/metropolitan-district-council/walsall ,WC153-526,31.08.2023,ADULT SOCIAL CARE,ADVANCE HEALTH CARE (UK) LTD,01/08/2023,301.5,6541-Domiciliary Care,THIRD PARTY PAYMENTS,PRIVATE CONTRACTOR,REVENUE
Walsall Council,http://opendatacommunities.org/id/metropolitan-district-council/walsall ,WC153-527,31.08.2023,ADULT SOCIAL CARE,ADVANCE HEALTH CARE (UK) LTD,01/08/2023,-486,6541-Domiciliary Care,THIRD PARTY PAYMENTS,PRIVATE CONTRACTOR,REVENUE
Walsall Council,http://opendatacommunities.org/id/metropolitan-district-council/walsall ,WC153-528,31.08.2023,ADULT SOCIAL CARE,ADVANCE HEALTH CARE (UK) LTD,01/08/2023,567,6541-Domiciliary Care,THIRD PARTY PAYMENTS,PRIVATE CONTRACTOR,REVENUE
Walsall Council,http://opendatacommunities.org/id/metropolitan-district-council/walsall ,WC153-529,31.08.2023,ADULT SOCIAL CARE,ADVANCE HEALTH CARE (UK) LTD,01/08/2023,567,6541-Domiciliary Care,THIRD PARTY PAYMENTS,PRIVATE CONTRACTOR,REVENUE
Walsall Council,http://opendatacommunities.org/id/metropolitan-district-council/walsall ,WC153-530,31.08.2023,ADULT SOCIAL CARE,ADVANCE HEALTH CARE (UK) LTD,01/08/2023,540,6541-Domiciliary Care,THIRD PARTY PAYMENTS,PRIVATE CONTRACTOR,REVENUE
Walsall Council,http://opendatacommunities.org/id/metropolitan-district-council/walsall ,WC153-531,31.08.2023,ADULT SOCIAL CARE,ADVANCE HEALTH CARE (UK) LTD,01/08/2023,504,6541-Domiciliary Care,THIRD PARTY PAYMENTS,PRIVATE CONTRACTOR,REVENUE
Walsall Council,http://opendatacommunities.org/id/metropolitan-district-council/walsall ,WC153-532,31.08.2023,ADULT SOCIAL CARE,ADVANCE HEALTH CARE (UK) LTD,01/08/2023,252,6541-Domiciliary Care,THIRD PARTY PAYMENTS,PRIVATE CONTRACTOR,REVENUE
Walsall Council,http://opendatacommunities.org/id/metropolitan-district-council/walsall ,WC153-533,31.08.2023,ADULT SOCIAL CARE,ADVANCE HEALTH CARE (UK) LTD,01/08/2023,301.5,6541-Domiciliary Care,THIRD PARTY PAYMENTS,PRIVATE CONTRACTOR,REVENUE
Walsall Council,http://opendatacommunities.org/id/metropolitan-district-council/walsall ,WC153-534,31.08.2023,ADULT SOCIAL CARE,ADVANCE HEALTH CARE (UK) LTD,01/08/2023,576,6541-Domiciliary Care,THIRD PARTY PAYMENTS,PRIVATE CONTRACTOR,REVENUE
Walsall Council,http://opendatacommunities.org/id/metropolitan-district-council/walsall ,WC153-535,31.08.2023,ADULT SOCIAL CARE,ADVANCE HEALTH CARE (UK) LTD,01/08/2023,756,6541-Domiciliary Care,THIRD PARTY PAYMENTS,PRIVATE CONTRACTOR,REVENUE
Walsall Council,http://opendatacommunities.org/id/metropolitan-district-council/walsall ,WC153-536,31.08.2023,ADULT SOCIAL CARE,ADVANCE HEALTH CARE (UK) LTD,01/08/2023,283.5,6541-Domiciliary Care,THIRD PARTY PAYMENTS,PRIVATE CONTRACTOR,REVENUE
Walsall Council,http://opendatacommunities.org/id/metropolitan-district-council/walsall ,WC153-537,31.08.2023,ADULT SOCIAL CARE,ADVANCE HEALTH CARE (UK) LTD,01/08/2023,639,6541-Domiciliary Care,THIRD PARTY PAYMENTS,PRIVATE CONTRACTOR,REVENUE
Walsall Council,http://opendatacommunities.org/id/metropolitan-district-council/walsall ,WC153-538,31.08.2023,ADULT SOCIAL CARE,ADVANCE HEALTH CARE (UK) LTD,01/08/2023,504,6541-Domiciliary Care,THIRD PARTY PAYMENTS,PRIVATE CONTRACTOR,REVENUE
Walsall Council,http://opendatacommunities.org/id/metropolitan-district-council/walsall ,WC153-539,31.08.2023,ADULT SOCIAL CARE,ADVANCE HEALTH CARE (UK) LTD,01/08/2023,252,6541-Domiciliary Care,THIRD PARTY PAYMENTS,PRIVATE CONTRACTOR,REVENUE
Walsall Council,http://opendatacommunities.org/id/metropolitan-district-council/walsall ,WC153-540,31.08.2023,ADULT SOCIAL CARE,ADVANCE HEALTH CARE (UK) LTD,01/08/2023,504,6541-Domiciliary Care,THIRD PARTY PAYMENTS,PRIVATE CONTRACTOR,REVENUE
Walsall Council,http://opendatacommunities.org/id/metropolitan-district-council/walsall ,WC153-541,31.08.2023,ADULT SOCIAL CARE,ADVANCE HEALTH CARE (UK) LTD,01/08/2023,441,6541-Domiciliary Care,THIRD PARTY PAYMENTS,PRIVATE CONTRACTOR,REVENUE
Walsall Council,http://opendatacommunities.org/id/metropolitan-district-council/walsall ,WC153-542,31.08.2023,ADULT SOCIAL CARE,ADVANCE HEALTH CARE (UK) LTD,01/08/2023,567,6541-Domiciliary Care,THIRD PARTY PAYMENTS,PRIVATE CONTRACTOR,REVENUE
Walsall Council,http://opendatacommunities.org/id/metropolitan-district-council/walsall ,WC153-543,31.08.2023,ADULT SOCIAL CARE,ADVANCE HEALTH CARE (UK) LTD,01/08/2023,630,6541-Domiciliary Care,THIRD PARTY PAYMENTS,PRIVATE CONTRACTOR,REVENUE
Walsall Council,http://opendatacommunities.org/id/metropolitan-district-council/walsall ,WC153-544,31.08.2023,ADULT SOCIAL CARE,ADVANCE HEALTH CARE (UK) LTD,01/08/2023,441,6541-Domiciliary Care,THIRD PARTY PAYMENTS,PRIVATE CONTRACTOR,REVENUE
Walsall Council,http://opendatacommunities.org/id/metropolitan-district-council/walsall ,WC153-545,31.08.2023,ADULT SOCIAL CARE,ADVANCE HEALTH CARE (UK) LTD,01/08/2023,567,6541-Domiciliary Care,THIRD PARTY PAYMENTS,PRIVATE CONTRACTOR,REVENUE
Walsall Council,http://opendatacommunities.org/id/metropolitan-district-council/walsall ,WC153-546,31.08.2023,ADULT SOCIAL CARE,ADVANCE HEALTH CARE (UK) LTD,01/08/2023,630,6541-Domiciliary Care,THIRD PARTY PAYMENTS,PRIVATE CONTRACTOR,REVENUE
Walsall Council,http://opendatacommunities.org/id/metropolitan-district-council/walsall ,WC153-547,31.08.2023,ADULT SOCIAL CARE,ADVANCE HEALTH CARE (UK) LTD,01/08/2023,283.5,6541-Domiciliary Care,THIRD PARTY PAYMENTS,PRIVATE CONTRACTOR,REVENUE
Walsall Council,http://opendatacommunities.org/id/metropolitan-district-council/walsall ,WC153-548,31.08.2023,ADULT SOCIAL CARE,ADVANCE HEALTH CARE (UK) LTD,01/08/2023,283.5,6541-Domiciliary Care,THIRD PARTY PAYMENTS,PRIVATE CONTRACTOR,REVENUE
Walsall Council,http://opendatacommunities.org/id/metropolitan-district-council/walsall ,WC153-549,31.08.2023,ADULT SOCIAL CARE,ADVANCE HEALTH CARE (UK) LTD,01/08/2023,420,6541-Domiciliary Care,THIRD PARTY PAYMENTS,PRIVATE CONTRACTOR,REVENUE
Walsall Council,http://opendatacommunities.org/id/metropolitan-district-council/walsall ,WC153-550,31.08.2023,ADULT SOCIAL CARE,ADVANCE HEALTH CARE (UK) LTD,01/08/2023,378,6541-Domiciliary Care,THIRD PARTY PAYMENTS,PRIVATE CONTRACTOR,REVENUE
Walsall Council,http://opendatacommunities.org/id/metropolitan-district-council/walsall ,WC153-551,31.08.2023,ADULT SOCIAL CARE,ADVANCE HEALTH CARE (UK) LTD,01/08/2023,301.5,6541-Domiciliary Care,THIRD PARTY PAYMENTS,PRIVATE CONTRACTOR,REVENUE
Walsall Council,http://opendatacommunities.org/id/metropolitan-district-council/walsall ,WC153-552,31.08.2023,ADULT SOCIAL CARE,ADVANCE HEALTH CARE (UK) LTD,01/08/2023,576,6541-Domiciliary Care,THIRD PARTY PAYMENTS,PRIVATE CONTRACTOR,REVENUE
Walsall Council,http://opendatacommunities.org/id/metropolitan-district-council/walsall ,WC153-553,31.08.2023,ADULT SOCIAL CARE,ADVANCE HEALTH CARE (UK) LTD,01/08/2023,756,6541-Domiciliary Care,THIRD PARTY PAYMENTS,PRIVATE CONTRACTOR,REVENUE
Walsall Council,http://opendatacommunities.org/id/metropolitan-district-council/walsall ,WC153-554,31.08.2023,ADULT SOCIAL CARE,ADVANCE HEALTH CARE (UK) LTD,01/08/2023,567,6541-Domiciliary Care,THIRD PARTY PAYMENTS,PRIVATE CONTRACTOR,REVENUE
Walsall Council,http://opendatacommunities.org/id/metropolitan-district-council/walsall ,WC153-555,31.08.2023,ADULT SOCIAL CARE,ADVANCE HEALTH CARE (UK) LTD,01/08/2023,567,6541-Domiciliary Care,THIRD PARTY PAYMENTS,PRIVATE CONTRACTOR,REVENUE
Walsall Council,http://opendatacommunities.org/id/metropolitan-district-council/walsall ,WC153-556,31.08.2023,ADULT SOCIAL CARE,ADVANCE HEALTH CARE (UK) LTD,01/08/2023,378,6541-Domiciliary Care,THIRD PARTY PAYMENTS,PRIVATE CONTRACTOR,REVENUE
Walsall Council,http://opendatacommunities.org/id/metropolitan-district-council/walsall ,WC153-557,31.08.2023,ADULT SOCIAL CARE,ADVANCE HEALTH CARE (UK) LTD,01/08/2023,567,6541-Domiciliary Care,THIRD PARTY PAYMENTS,PRIVATE CONTRACTOR,REVENUE
Walsall Council,http://opendatacommunities.org/id/metropolitan-district-council/walsall ,WC153-558,31.08.2023,ADULT SOCIAL CARE,ADVANCE HEALTH CARE (UK) LTD,01/08/2023,963,6541-Domiciliary Care,THIRD PARTY PAYMENTS,PRIVATE CONTRACTOR,REVENUE
Walsall Council,http://opendatacommunities.org/id/metropolitan-district-council/walsall ,WC153-559,31.08.2023,ADULT SOCIAL CARE,ADVANCE HEALTH CARE (UK) LTD,01/08/2023,441,6541-Domiciliary Care,THIRD PARTY PAYMENTS,PRIVATE CONTRACTOR,REVENUE
Walsall Council,http://opendatacommunities.org/id/metropolitan-district-council/walsall ,WC153-560,31.08.2023,ADULT SOCIAL CARE,ADVANCE HEALTH CARE (UK) LTD,01/08/2023,630,6541-Domiciliary Care,THIRD PARTY PAYMENTS,PRIVATE CONTRACTOR,REVENUE
Walsall Council,http://opendatacommunities.org/id/metropolitan-district-council/walsall ,WC153-561,31.08.2023,ADULT SOCIAL CARE,ADVANCE HEALTH CARE (UK) LTD,01/08/2023,283.5,6541-Domiciliary Care,THIRD PARTY PAYMENTS,PRIVATE CONTRACTOR,REVENUE
Walsall Council,http://opendatacommunities.org/id/metropolitan-district-council/walsall ,WC153-562,31.08.2023,ADULT SOCIAL CARE,ADVANCE HEALTH CARE (UK) LTD,01/08/2023,648,6541-Domiciliary Care,THIRD PARTY PAYMENTS,PRIVATE CONTRACTOR,REVENUE
Walsall Council,http://opendatacommunities.org/id/metropolitan-district-council/walsall ,WC153-563,31.08.2023,ADULT SOCIAL CARE,ADVANCE HEALTH CARE (UK) LTD,01/08/2023,567,6541-Domiciliary Care,THIRD PARTY PAYMENTS,PRIVATE CONTRACTOR,REVENUE
Walsall Council,http://opendatacommunities.org/id/metropolitan-district-council/walsall ,WC153-564,31.08.2023,ADULT SOCIAL CARE,ADVANCE HEALTH CARE (UK) LTD,01/08/2023,630,6541-Domiciliary Care,THIRD PARTY PAYMENTS,PRIVATE CONTRACTOR,REVENUE
Walsall Council,http://opendatacommunities.org/id/metropolitan-district-council/walsall ,WC153-565,31.08.2023,ADULT SOCIAL CARE,ADVANCE HEALTH CARE (UK) LTD,01/08/2023,441,6541-Domiciliary Care,THIRD PARTY PAYMENTS,PRIVATE CONTRACTOR,REVENUE
Walsall Council,http://opendatacommunities.org/id/metropolitan-district-council/walsall ,WC153-566,31.08.2023,ADULT SOCIAL CARE,ADVANCE HEALTH CARE (UK) LTD,01/08/2023,252,6541-Domiciliary Care,THIRD PARTY PAYMENTS,PRIVATE CONTRACTOR,REVENUE
Walsall Council,http://opendatacommunities.org/id/metropolitan-district-council/walsall ,WC153-567,31.08.2023,ADULT SOCIAL CARE,ADVANCE HEALTH CARE (UK) LTD,01/08/2023,504,6541-Domiciliary Care,THIRD PARTY PAYMENTS,PRIVATE CONTRACTOR,REVENUE
Walsall Council,http://opendatacommunities.org/id/metropolitan-district-council/walsall ,WC153-568,31.08.2023,ADULT SOCIAL CARE,ADVANCE HEALTH CARE (UK) LTD,01/08/2023,441,6541-Domiciliary Care,THIRD PARTY PAYMENTS,PRIVATE CONTRACTOR,REVENUE
Walsall Council,http://opendatacommunities.org/id/metropolitan-district-council/walsall ,WC153-569,31.08.2023,ADULT SOCIAL CARE,ADVANCE HEALTH CARE (UK) LTD,01/08/2023,567,6541-Domiciliary Care,THIRD PARTY PAYMENTS,PRIVATE CONTRACTOR,REVENUE
Walsall Council,http://opendatacommunities.org/id/metropolitan-district-council/walsall ,WC153-570,31.08.2023,ADULT SOCIAL CARE,ADVANCE HEALTH CARE (UK) LTD,01/08/2023,630,6541-Domiciliary Care,THIRD PARTY PAYMENTS,PRIVATE CONTRACTOR,REVENUE
Walsall Council,http://opendatacommunities.org/id/metropolitan-district-council/walsall ,WC153-571,31.08.2023,ADULT SOCIAL CARE,ADVANCE HEALTH CARE (UK) LTD,01/08/2023,441,6541-Domiciliary Care,THIRD PARTY PAYMENTS,PRIVATE CONTRACTOR,REVENUE
Walsall Council,http://opendatacommunities.org/id/metropolitan-district-council/walsall ,WC153-572,31.08.2023,ADULT SOCIAL CARE,ADVANCE HEALTH CARE (UK) LTD,01/08/2023,567,6541-Domiciliary Care,THIRD PARTY PAYMENTS,PRIVATE CONTRACTOR,REVENUE
Walsall Council,http://opendatacommunities.org/id/metropolitan-district-council/walsall ,WC153-573,31.08.2023,ADULT SOCIAL CARE,ADVANCE HEALTH CARE (UK) LTD,01/08/2023,441,6541-Domiciliary Care,THIRD PARTY PAYMENTS,PRIVATE CONTRACTOR,REVENUE
Walsall Council,http://opendatacommunities.org/id/metropolitan-district-council/walsall ,WC153-574,31.08.2023,ADULT SOCIAL CARE,ADVANCE HEALTH CARE (UK) LTD,01/08/2023,301.5,6541-Domiciliary Care,THIRD PARTY PAYMENTS,PRIVATE CONTRACTOR,REVENUE
Walsall Council,http://opendatacommunities.org/id/metropolitan-district-council/walsall ,WC153-575,31.08.2023,ADULT SOCIAL CARE,ADVANCE HEALTH CARE (UK) LTD,01/08/2023,540,6541-Domiciliary Care,THIRD PARTY PAYMENTS,PRIVATE CONTRACTOR,REVENUE
Walsall Council,http://opendatacommunities.org/id/metropolitan-district-council/walsall ,WC153-576,31.08.2023,ADULT SOCIAL CARE,ADVANCE HEALTH CARE (UK) LTD,01/08/2023,504,6541-Domiciliary Care,THIRD PARTY PAYMENTS,PRIVATE CONTRACTOR,REVENUE
Walsall Council,http://opendatacommunities.org/id/metropolitan-district-council/walsall ,WC153-577,31.08.2023,ADULT SOCIAL CARE,ADVANCE HEALTH CARE (UK) LTD,01/08/2023,252,6541-Domiciliary Care,THIRD PARTY PAYMENTS,PRIVATE CONTRACTOR,REVENUE
Walsall Council,http://opendatacommunities.org/id/metropolitan-district-council/walsall ,WC153-578,31.08.2023,ADULT SOCIAL CARE,ADVANCE HEALTH CARE (UK) LTD,01/08/2023,283.5,6541-Domiciliary Care,THIRD PARTY PAYMENTS,PRIVATE CONTRACTOR,REVENUE
Walsall Council,http://opendatacommunities.org/id/metropolitan-district-council/walsall ,WC153-579,31.08.2023,ADULT SOCIAL CARE,ADVANCE HEALTH CARE (UK) LTD,01/08/2023,639,6541-Domiciliary Care,THIRD PARTY PAYMENTS,PRIVATE CONTRACTOR,REVENUE
Walsall Council,http://opendatacommunities.org/id/metropolitan-district-council/walsall ,WC153-580,31.08.2023,ADULT SOCIAL CARE,ADVANCE HEALTH CARE (UK) LTD,15/08/2023,963,6541-Domiciliary Care,THIRD PARTY PAYMENTS,PRIVATE CONTRACTOR,REVENUE
Walsall Council,http://opendatacommunities.org/id/metropolitan-district-council/walsall ,WC153-581,31.08.2023,ADULT SOCIAL CARE,ADVANCE HEALTH CARE (UK) LTD,15/08/2023,441,6541-Domiciliary Care,THIRD PARTY PAYMENTS,PRIVATE CONTRACTOR,REVENUE
Walsall Council,http://opendatacommunities.org/id/metropolitan-district-council/walsall ,WC153-582,31.08.2023,ADULT SOCIAL CARE,ADVANCE HEALTH CARE (UK) LTD,15/08/2023,567,6541-Domiciliary Care,THIRD PARTY PAYMENTS,PRIVATE CONTRACTOR,REVENUE
Walsall Council,http://opendatacommunities.org/id/metropolitan-district-council/walsall ,WC153-583,31.08.2023,ADULT SOCIAL CARE,ADVANCE HEALTH CARE (UK) LTD,15/08/2023,567,6541-Domiciliary Care,THIRD PARTY PAYMENTS,PRIVATE CONTRACTOR,REVENUE
Walsall Council,http://opendatacommunities.org/id/metropolitan-district-council/walsall ,WC153-584,31.08.2023,ADULT SOCIAL CARE,ADVANCE HEALTH CARE (UK) LTD,15/08/2023,378,6541-Domiciliary Care,THIRD PARTY PAYMENTS,PRIVATE CONTRACTOR,REVENUE
Walsall Council,http://opendatacommunities.org/id/metropolitan-district-council/walsall ,WC153-585,31.08.2023,ADULT SOCIAL CARE,ADVANCE HEALTH CARE (UK) LTD,15/08/2023,-999,6541-Domiciliary Care,THIRD PARTY PAYMENTS,PRIVATE CONTRACTOR,REVENUE
Walsall Council,http://opendatacommunities.org/id/metropolitan-district-council/walsall ,WC153-586,31.08.2023,ADULT SOCIAL CARE,ADVANCE HEALTH CARE (UK) LTD,15/08/2023,283.5,6541-Domiciliary Care,THIRD PARTY PAYMENTS,PRIVATE CONTRACTOR,REVENUE
Walsall Council,http://opendatacommunities.org/id/metropolitan-district-council/walsall ,WC153-587,31.08.2023,ADULT SOCIAL CARE,ADVANCE HEALTH CARE (UK) LTD,15/08/2023,420,6541-Domiciliary Care,THIRD PARTY PAYMENTS,PRIVATE CONTRACTOR,REVENUE
Walsall Council,http://opendatacommunities.org/id/metropolitan-district-council/walsall ,WC153-588,31.08.2023,ADULT SOCIAL CARE,ADVANCE HEALTH CARE (UK) LTD,15/08/2023,441,6541-Domiciliary Care,THIRD PARTY PAYMENTS,PRIVATE CONTRACTOR,REVENUE
Walsall Council,http://opendatacommunities.org/id/metropolitan-district-council/walsall ,WC153-589,31.08.2023,ADULT SOCIAL CARE,ADVANCE HEALTH CARE (UK) LTD,15/08/2023,567,6541-Domiciliary Care,THIRD PARTY PAYMENTS,PRIVATE CONTRACTOR,REVENUE
Walsall Council,http://opendatacommunities.org/id/metropolitan-district-council/walsall ,WC153-590,31.08.2023,ADULT SOCIAL CARE,ADVANCE HEALTH CARE (UK) LTD,15/08/2023,567,6541-Domiciliary Care,THIRD PARTY PAYMENTS,PRIVATE CONTRACTOR,REVENUE
Walsall Council,http://opendatacommunities.org/id/metropolitan-district-council/walsall ,WC153-591,31.08.2023,ADULT SOCIAL CARE,ADVANCE HEALTH CARE (UK) LTD,15/08/2023,630,6541-Domiciliary Care,THIRD PARTY PAYMENTS,PRIVATE CONTRACTOR,REVENUE
Walsall Council,http://opendatacommunities.org/id/metropolitan-district-council/walsall ,WC153-592,31.08.2023,ADULT SOCIAL CARE,ADVANCE HEALTH CARE (UK) LTD,15/08/2023,378,6541-Domiciliary Care,THIRD PARTY PAYMENTS,PRIVATE CONTRACTOR,REVENUE
Walsall Council,http://opendatacommunities.org/id/metropolitan-district-council/walsall ,WC153-593,31.08.2023,ADULT SOCIAL CARE,ADVANCE HEALTH CARE (UK) LTD,15/08/2023,301.5,6541-Domiciliary Care,THIRD PARTY PAYMENTS,PRIVATE CONTRACTOR,REVENUE
Walsall Council,http://opendatacommunities.org/id/metropolitan-district-council/walsall ,WC153-594,31.08.2023,ADULT SOCIAL CARE,ADVANCE HEALTH CARE (UK) LTD,15/08/2023,540,6541-Domiciliary Care,THIRD PARTY PAYMENTS,PRIVATE CONTRACTOR,REVENUE
Walsall Council,http://opendatacommunities.org/id/metropolitan-district-council/walsall ,WC153-595,31.08.2023,ADULT SOCIAL CARE,ADVANCE HEALTH CARE (UK) LTD,15/08/2023,630,6541-Domiciliary Care,THIRD PARTY PAYMENTS,PRIVATE CONTRACTOR,REVENUE
Walsall Council,http://opendatacommunities.org/id/metropolitan-district-council/walsall ,WC153-596,31.08.2023,ADULT SOCIAL CARE,ADVANCE HEALTH CARE (UK) LTD,15/08/2023,283.5,6541-Domiciliary Care,THIRD PARTY PAYMENTS,PRIVATE CONTRACTOR,REVENUE
Walsall Council,http://opendatacommunities.org/id/metropolitan-district-council/walsall ,WC153-597,31.08.2023,ADULT SOCIAL CARE,ADVANCE HEALTH CARE (UK) LTD,15/08/2023,441,6541-Domiciliary Care,THIRD PARTY PAYMENTS,PRIVATE CONTRACTOR,REVENUE
Walsall Council,http://opendatacommunities.org/id/metropolitan-district-council/walsall ,WC153-598,31.08.2023,ADULT SOCIAL CARE,ADVANCE HEALTH CARE (UK) LTD,15/08/2023,252,6541-Domiciliary Care,THIRD PARTY PAYMENTS,PRIVATE CONTRACTOR,REVENUE
Walsall Council,http://opendatacommunities.org/id/metropolitan-district-council/walsall ,WC153-599,31.08.2023,ADULT SOCIAL CARE,ADVANCE HEALTH CARE (UK) LTD,15/08/2023,504,6541-Domiciliary Care,THIRD PARTY PAYMENTS,PRIVATE CONTRACTOR,REVENUE
Walsall Council,http://opendatacommunities.org/id/metropolitan-district-council/walsall ,WC153-600,31.08.2023,ADULT SOCIAL CARE,ADVANCE HEALTH CARE (UK) LTD,15/08/2023,441,6541-Domiciliary Care,THIRD PARTY PAYMENTS,PRIVATE CONTRACTOR,REVENUE
Walsall Council,http://opendatacommunities.org/id/metropolitan-district-council/walsall ,WC153-601,31.08.2023,ADULT SOCIAL CARE,ADVANCE HEALTH CARE (UK) LTD,15/08/2023,567,6541-Domiciliary Care,THIRD PARTY PAYMENTS,PRIVATE CONTRACTOR,REVENUE
Walsall Council,http://opendatacommunities.org/id/metropolitan-district-council/walsall ,WC153-602,31.08.2023,ADULT SOCIAL CARE,ADVANCE HEALTH CARE (UK) LTD,15/08/2023,630,6541-Domiciliary Care,THIRD PARTY PAYMENTS,PRIVATE CONTRACTOR,REVENUE
Walsall Council,http://opendatacommunities.org/id/metropolitan-district-council/walsall ,WC153-603,31.08.2023,ADULT SOCIAL CARE,ADVANCE HEALTH CARE (UK) LTD,15/08/2023,441,6541-Domiciliary Care,THIRD PARTY PAYMENTS,PRIVATE CONTRACTOR,REVENUE
Walsall Council,http://opendatacommunities.org/id/metropolitan-district-council/walsall ,WC153-604,31.08.2023,ADULT SOCIAL CARE,ADVANCE HEALTH CARE (UK) LTD,15/08/2023,504,6541-Domiciliary Care,THIRD PARTY PAYMENTS,PRIVATE CONTRACTOR,REVENUE
Walsall Council,http://opendatacommunities.org/id/metropolitan-district-council/walsall ,WC153-605,31.08.2023,ADULT SOCIAL CARE,ADVANCE HEALTH CARE (UK) LTD,15/08/2023,252,6541-Domiciliary Care,THIRD PARTY PAYMENTS,PRIVATE CONTRACTOR,REVENUE
Walsall Council,http://opendatacommunities.org/id/metropolitan-district-council/walsall ,WC153-606,31.08.2023,ADULT SOCIAL CARE,ADVANCE HEALTH CARE (UK) LTD,15/08/2023,567,6541-Domiciliary Care,THIRD PARTY PAYMENTS,PRIVATE CONTRACTOR,REVENUE
Walsall Council,http://opendatacommunities.org/id/metropolitan-district-council/walsall ,WC153-607,31.08.2023,ADULT SOCIAL CARE,ADVANCE HEALTH CARE (UK) LTD,15/08/2023,283.5,6541-Domiciliary Care,THIRD PARTY PAYMENTS,PRIVATE CONTRACTOR,REVENUE
Walsall Council,http://opendatacommunities.org/id/metropolitan-district-council/walsall ,WC153-608,31.08.2023,ADULT SOCIAL CARE,ADVANCE HEALTH CARE (UK) LTD,15/08/2023,639,6541-Domiciliary Care,THIRD PARTY PAYMENTS,PRIVATE CONTRACTOR,REVENUE
Walsall Council,http://opendatacommunities.org/id/metropolitan-district-council/walsall ,WC153-609,31.08.2023,ADULT SOCIAL CARE,ADVANCE HEALTH CARE (UK) LTD,15/08/2023,981,6541-Domiciliary Care,THIRD PARTY PAYMENTS,PRIVATE CONTRACTOR,REVENUE
Walsall Council,http://opendatacommunities.org/id/metropolitan-district-council/walsall ,WC153-610,31.08.2023,ADULT SOCIAL CARE,ADVANCE HEALTH CARE (UK) LTD,15/08/2023,-360,6541-Domiciliary Care,THIRD PARTY PAYMENTS,PRIVATE CONTRACTOR,REVENUE
Walsall Council,http://opendatacommunities.org/id/metropolitan-district-council/walsall ,WC153-611,31.08.2023,ADULT SOCIAL CARE,ADVANCE HEALTH CARE (UK) LTD,15/08/2023,301.5,6541-Domiciliary Care,THIRD PARTY PAYMENTS,PRIVATE CONTRACTOR,REVENUE
Walsall Council,http://opendatacommunities.org/id/metropolitan-district-council/walsall ,WC153-612,31.08.2023,ADULT SOCIAL CARE,ADVANCE HEALTH CARE (UK) LTD,15/08/2023,756,6541-Domiciliary Care,THIRD PARTY PAYMENTS,PRIVATE CONTRACTOR,REVENUE
Walsall Council,http://opendatacommunities.org/id/metropolitan-district-council/walsall ,WC153-613,31.08.2023,ADULT SOCIAL CARE,ADVANCE HEALTH CARE (UK) LTD,15/08/2023,462,6541-Domiciliary Care,THIRD PARTY PAYMENTS,PRIVATE CONTRACTOR,REVENUE
Walsall Council,http://opendatacommunities.org/id/metropolitan-district-council/walsall ,WC153-614,31.08.2023,ADULT SOCIAL CARE,ADVANCE HEALTH CARE (UK) LTD,15/08/2023,963,6541-Domiciliary Care,THIRD PARTY PAYMENTS,PRIVATE CONTRACTOR,REVENUE
Walsall Council,http://opendatacommunities.org/id/metropolitan-district-council/walsall ,WC153-615,31.08.2023,ADULT SOCIAL CARE,ADVANCE HEALTH CARE (UK) LTD,15/08/2023,441,6541-Domiciliary Care,THIRD PARTY PAYMENTS,PRIVATE CONTRACTOR,REVENUE
Walsall Council,http://opendatacommunities.org/id/metropolitan-district-council/walsall ,WC153-616,31.08.2023,ADULT SOCIAL CARE,ADVANCE HEALTH CARE (UK) LTD,15/08/2023,283.5,6541-Domiciliary Care,THIRD PARTY PAYMENTS,PRIVATE CONTRACTOR,REVENUE
Walsall Council,http://opendatacommunities.org/id/metropolitan-district-council/walsall ,WC153-617,31.08.2023,ADULT SOCIAL CARE,ADVANCE HEALTH CARE (UK) LTD,15/08/2023,420,6541-Domiciliary Care,THIRD PARTY PAYMENTS,PRIVATE CONTRACTOR,REVENUE
Walsall Council,http://opendatacommunities.org/id/metropolitan-district-council/walsall ,WC153-618,31.08.2023,ADULT SOCIAL CARE,ADVANCE HEALTH CARE (UK) LTD,15/08/2023,567,6541-Domiciliary Care,THIRD PARTY PAYMENTS,PRIVATE CONTRACTOR,REVENUE
Walsall Council,http://opendatacommunities.org/id/metropolitan-district-council/walsall ,WC153-619,31.08.2023,ADULT SOCIAL CARE,ADVANCE HEALTH CARE (UK) LTD,15/08/2023,567,6541-Domiciliary Care,THIRD PARTY PAYMENTS,PRIVATE CONTRACTOR,REVENUE
Walsall Council,http://opendatacommunities.org/id/metropolitan-district-council/walsall ,WC153-620,31.08.2023,ADULT SOCIAL CARE,ADVANCE HEALTH CARE (UK) LTD,15/08/2023,441,6541-Domiciliary Care,THIRD PARTY PAYMENTS,PRIVATE CONTRACTOR,REVENUE
Walsall Council,http://opendatacommunities.org/id/metropolitan-district-council/walsall ,WC153-621,31.08.2023,ADULT SOCIAL CARE,ADVANCE HEALTH CARE (UK) LTD,15/08/2023,378,6541-Domiciliary Care,THIRD PARTY PAYMENTS,PRIVATE CONTRACTOR,REVENUE
Walsall Council,http://opendatacommunities.org/id/metropolitan-district-council/walsall ,WC153-622,31.08.2023,ADULT SOCIAL CARE,ADVANCE HEALTH CARE (UK) LTD,15/08/2023,567,6541-Domiciliary Care,THIRD PARTY PAYMENTS,PRIVATE CONTRACTOR,REVENUE
Walsall Council,http://opendatacommunities.org/id/metropolitan-district-council/walsall ,WC153-623,31.08.2023,ADULT SOCIAL CARE,ADVANCE HEALTH CARE (UK) LTD,15/08/2023,378,6541-Domiciliary Care,THIRD PARTY PAYMENTS,PRIVATE CONTRACTOR,REVENUE
Walsall Council,http://opendatacommunities.org/id/metropolitan-district-council/walsall ,WC153-624,31.08.2023,ADULT SOCIAL CARE,ADVANCE HEALTH CARE (UK) LTD,15/08/2023,630,6541-Domiciliary Care,THIRD PARTY PAYMENTS,PRIVATE CONTRACTOR,REVENUE
Walsall Council,http://opendatacommunities.org/id/metropolitan-district-council/walsall ,WC153-625,31.08.2023,ADULT SOCIAL CARE,ADVANCE HEALTH CARE (UK) LTD,15/08/2023,301.5,6541-Domiciliary Care,THIRD PARTY PAYMENTS,PRIVATE CONTRACTOR,REVENUE
Walsall Council,http://opendatacommunities.org/id/metropolitan-district-council/walsall ,WC153-626,31.08.2023,ADULT SOCIAL CARE,ADVANCE HEALTH CARE (UK) LTD,15/08/2023,540,6541-Domiciliary Care,THIRD PARTY PAYMENTS,PRIVATE CONTRACTOR,REVENUE
Walsall Council,http://opendatacommunities.org/id/metropolitan-district-council/walsall ,WC153-627,31.08.2023,ADULT SOCIAL CARE,ADVANCE HEALTH CARE (UK) LTD,15/08/2023,567,6541-Domiciliary Care,THIRD PARTY PAYMENTS,PRIVATE CONTRACTOR,REVENUE
Walsall Council,http://opendatacommunities.org/id/metropolitan-district-council/walsall ,WC153-628,31.08.2023,ADULT SOCIAL CARE,ADVANCE HEALTH CARE (UK) LTD,15/08/2023,630,6541-Domiciliary Care,THIRD PARTY PAYMENTS,PRIVATE CONTRACTOR,REVENUE
Walsall Council,http://opendatacommunities.org/id/metropolitan-district-council/walsall ,WC153-629,31.08.2023,ADULT SOCIAL CARE,ADVANCE HEALTH CARE (UK) LTD,15/08/2023,441,6541-Domiciliary Care,THIRD PARTY PAYMENTS,PRIVATE CONTRACTOR,REVENUE
Walsall Council,http://opendatacommunities.org/id/metropolitan-district-council/walsall ,WC153-630,31.08.2023,ADULT SOCIAL CARE,ADVANCE HEALTH CARE (UK) LTD,15/08/2023,283.5,6541-Domiciliary Care,THIRD PARTY PAYMENTS,PRIVATE CONTRACTOR,REVENUE
Walsall Council,http://opendatacommunities.org/id/metropolitan-district-council/walsall ,WC153-631,31.08.2023,ADULT SOCIAL CARE,ADVANCE HEALTH CARE (UK) LTD,15/08/2023,301.5,6541-Domiciliary Care,THIRD PARTY PAYMENTS,PRIVATE CONTRACTOR,REVENUE
Walsall Council,http://opendatacommunities.org/id/metropolitan-district-council/walsall ,WC153-632,31.08.2023,ADULT SOCIAL CARE,ADVANCE HEALTH CARE (UK) LTD,15/08/2023,756,6541-Domiciliary Care,THIRD PARTY PAYMENTS,PRIVATE CONTRACTOR,REVENUE
Walsall Council,http://opendatacommunities.org/id/metropolitan-district-council/walsall ,WC153-633,31.08.2023,ADULT SOCIAL CARE,ADVANCE HEALTH CARE (UK) LTD,15/08/2023,504,6541-Domiciliary Care,THIRD PARTY PAYMENTS,PRIVATE CONTRACTOR,REVENUE
Walsall Council,http://opendatacommunities.org/id/metropolitan-district-council/walsall ,WC153-634,31.08.2023,ADULT SOCIAL CARE,ADVANCE HEALTH CARE (UK) LTD,15/08/2023,252,6541-Domiciliary Care,THIRD PARTY PAYMENTS,PRIVATE CONTRACTOR,REVENUE
Walsall Council,http://opendatacommunities.org/id/metropolitan-district-council/walsall ,WC153-635,31.08.2023,ADULT SOCIAL CARE,ADVANCE HEALTH CARE (UK) LTD,15/08/2023,283.5,6541-Domiciliary Care,THIRD PARTY PAYMENTS,PRIVATE CONTRACTOR,REVENUE
Walsall Council,http://opendatacommunities.org/id/metropolitan-district-council/walsall ,WC153-636,31.08.2023,ADULT SOCIAL CARE,ADVANCE HEALTH CARE (UK) LTD,15/08/2023,639,6541-Domiciliary Care,THIRD PARTY PAYMENTS,PRIVATE CONTRACTOR,REVENUE
Walsall Council,http://opendatacommunities.org/id/metropolitan-district-council/walsall ,WC153-637,31.08.2023,ADULT SOCIAL CARE,ADVANCE HEALTH CARE (UK) LTD,15/08/2023,462,6541-Domiciliary Care,THIRD PARTY PAYMENTS,PRIVATE CONTRACTOR,REVENUE
Walsall Council,http://opendatacommunities.org/id/metropolitan-district-council/walsall ,WC153-638,31.08.2023,ADULT SOCIAL CARE,ADVANCE HEALTH CARE (UK) LTD,15/08/2023,252,6541-Domiciliary Care,THIRD PARTY PAYMENTS,PRIVATE CONTRACTOR,REVENUE
Walsall Council,http://opendatacommunities.org/id/metropolitan-district-council/walsall ,WC153-639,31.08.2023,ADULT SOCIAL CARE,ADVANCE HEALTH CARE (UK) LTD,15/08/2023,504,6541-Domiciliary Care,THIRD PARTY PAYMENTS,PRIVATE CONTRACTOR,REVENUE
Walsall Council,http://opendatacommunities.org/id/metropolitan-district-council/walsall ,WC153-640,31.08.2023,ADULT SOCIAL CARE,ADVANCE HEALTH CARE (UK) LTD,15/08/2023,441,6541-Domiciliary Care,THIRD PARTY PAYMENTS,PRIVATE CONTRACTOR,REVENUE
Walsall Council,http://opendatacommunities.org/id/metropolitan-district-council/walsall ,WC153-641,31.08.2023,ADULT SOCIAL CARE,ADVANCE HEALTH CARE (UK) LTD,15/08/2023,567,6541-Domiciliary Care,THIRD PARTY PAYMENTS,PRIVATE CONTRACTOR,REVENUE
Walsall Council,http://opendatacommunities.org/id/metropolitan-district-council/walsall ,WC153-642,31.08.2023,ADULT SOCIAL CARE,ADVANCE HEALTH CARE (UK) LTD,15/08/2023,630,6541-Domiciliary Care,THIRD PARTY PAYMENTS,PRIVATE CONTRACTOR,REVENUE
Walsall Council,http://opendatacommunities.org/id/metropolitan-district-council/walsall ,WC153-643,31.08.2023,ADULT SOCIAL CARE,ADVANCE HEALTH CARE (UK) LTD,15/08/2023,441,6541-Domiciliary Care,THIRD PARTY PAYMENTS,PRIVATE CONTRACTOR,REVENUE
Walsall Council,http://opendatacommunities.org/id/metropolitan-district-council/walsall ,WC153-644,31.08.2023,ADULT SOCIAL CARE,ADVANCE HEALTH CARE (UK) LTD,15/08/2023,567,6541-Domiciliary Care,THIRD PARTY PAYMENTS,PRIVATE CONTRACTOR,REVENUE
Walsall Council,http://opendatacommunities.org/id/metropolitan-district-council/walsall ,WC153-645,31.08.2023,ADULT SOCIAL CARE,ADVANCE HEALTH CARE (UK) LTD,23/08/2023,324,6554-Professional Services-Priv Contractor & Other Agencies,THIRD PARTY PAYMENTS,PRIVATE CONTRACTOR,REVENUE
Walsall Council,http://opendatacommunities.org/id/metropolitan-district-council/walsall ,WC153-646,31.08.2023,ADULT SOCIAL CARE,ADVANCE HEALTH CARE (UK) LTD,23/08/2023,-351,6554-Professional Services-Priv Contractor & Other Agencies,THIRD PARTY PAYMENTS,PRIVATE CONTRACTOR,REVENUE
Walsall Council,http://opendatacommunities.org/id/metropolitan-district-council/walsall ,WC153-647,31.08.2023,ADULT SOCIAL CARE,ADVANCE HEALTH CARE (UK) LTD,23/08/2023,"1,134.00",6554-Professional Services-Priv Contractor & Other Agencies,THIRD PARTY PAYMENTS,PRIVATE CONTRACTOR,REVENUE
Walsall Council,http://opendatacommunities.org/id/metropolitan-district-council/walsall ,WC153-648,31.08.2023,ADULT SOCIAL CARE,ADVANCE HEALTH CARE (UK) LTD,23/08/2023,"-3,258.00",6554-Professional Services-Priv Contractor & Other Agencies,THIRD PARTY PAYMENTS,PRIVATE CONTRACTOR,REVENUE
Walsall Council,http://opendatacommunities.org/id/metropolitan-district-council/walsall ,WC153-649,31.08.2023,ADULT SOCIAL CARE,ADVANCE HEALTH CARE (UK) LTD,23/08/2023,"3,645.00",6554-Professional Services-Priv Contractor & Other Agencies,THIRD PARTY PAYMENTS,PRIVATE CONTRACTOR,REVENUE
Walsall Council,http://opendatacommunities.org/id/metropolitan-district-council/walsall ,WC153-650,31.08.2023,ADULT SOCIAL CARE,ADVANCE HEALTH CARE (UK) LTD,23/08/2023,312,6554-Professional Services-Priv Contractor & Other Agencies,THIRD PARTY PAYMENTS,PRIVATE CONTRACTOR,REVENUE
Walsall Council,http://opendatacommunities.org/id/metropolitan-district-council/walsall ,WC153-651,31.08.2023,ADULT SOCIAL CARE,ADVANCE HEALTH CARE (UK) LTD,23/08/2023,567,6554-Professional Services-Priv Contractor & Other Agencies,THIRD PARTY PAYMENTS,PRIVATE CONTRACTOR,REVENUE
Walsall Council,http://opendatacommunities.org/id/metropolitan-district-council/walsall ,WC153-652,31.08.2023,ADULT SOCIAL CARE,ADVANCE HEALTH CARE (UK) LTD,23/08/2023,333,6554-Professional Services-Priv Contractor & Other Agencies,THIRD PARTY PAYMENTS,PRIVATE CONTRACTOR,REVENUE
Walsall Council,http://opendatacommunities.org/id/metropolitan-district-council/walsall ,WC153-653,31.08.2023,ADULT SOCIAL CARE,ADVANCE HEALTH CARE (UK) LTD,29/08/2023,567,6541-Domiciliary Care,THIRD PARTY PAYMENTS,PRIVATE CONTRACTOR,REVENUE
Walsall Council,http://opendatacommunities.org/id/metropolitan-district-council/walsall ,WC153-654,31.08.2023,ADULT SOCIAL CARE,ADVANCE HEALTH CARE (UK) LTD,29/08/2023,567,6541-Domiciliary Care,THIRD PARTY PAYMENTS,PRIVATE CONTRACTOR,REVENUE
Walsall Council,http://opendatacommunities.org/id/metropolitan-district-council/walsall ,WC153-655,31.08.2023,ADULT SOCIAL CARE,ADVANCE HEALTH CARE (UK) LTD,29/08/2023,378,6541-Domiciliary Care,THIRD PARTY PAYMENTS,PRIVATE CONTRACTOR,REVENUE
Walsall Council,http://opendatacommunities.org/id/metropolitan-district-council/walsall ,WC153-656,31.08.2023,ADULT SOCIAL CARE,ADVANCE HEALTH CARE (UK) LTD,29/08/2023,567,6541-Domiciliary Care,THIRD PARTY PAYMENTS,PRIVATE CONTRACTOR,REVENUE
Walsall Council,http://opendatacommunities.org/id/metropolitan-district-council/walsall ,WC153-657,31.08.2023,ADULT SOCIAL CARE,ADVANCE HEALTH CARE (UK) LTD,29/08/2023,567,6541-Domiciliary Care,THIRD PARTY PAYMENTS,PRIVATE CONTRACTOR,REVENUE
Walsall Council,http://opendatacommunities.org/id/metropolitan-district-council/walsall ,WC153-658,31.08.2023,ADULT SOCIAL CARE,ADVANCE HEALTH CARE (UK) LTD,29/08/2023,630,6541-Domiciliary Care,THIRD PARTY PAYMENTS,PRIVATE CONTRACTOR,REVENUE
Walsall Council,http://opendatacommunities.org/id/metropolitan-district-council/walsall ,WC153-659,31.08.2023,ADULT SOCIAL CARE,ADVANCE HEALTH CARE (UK) LTD,29/08/2023,441,6541-Domiciliary Care,THIRD PARTY PAYMENTS,PRIVATE CONTRACTOR,REVENUE
Walsall Council,http://opendatacommunities.org/id/metropolitan-district-council/walsall ,WC153-660,31.08.2023,ADULT SOCIAL CARE,ADVANCE HEALTH CARE (UK) LTD,29/08/2023,630,6541-Domiciliary Care,THIRD PARTY PAYMENTS,PRIVATE CONTRACTOR,REVENUE
Walsall Council,http://opendatacommunities.org/id/metropolitan-district-council/walsall ,WC153-661,31.08.2023,ADULT SOCIAL CARE,ADVANCE HEALTH CARE (UK) LTD,29/08/2023,283.5,6541-Domiciliary Care,THIRD PARTY PAYMENTS,PRIVATE CONTRACTOR,REVENUE
Walsall Council,http://opendatacommunities.org/id/metropolitan-district-council/walsall ,WC153-662,31.08.2023,ADULT SOCIAL CARE,ADVANCE HEALTH CARE (UK) LTD,29/08/2023,252,6541-Domiciliary Care,THIRD PARTY PAYMENTS,PRIVATE CONTRACTOR,REVENUE
Walsall Council,http://opendatacommunities.org/id/metropolitan-district-council/walsall ,WC153-663,31.08.2023,ADULT SOCIAL CARE,ADVANCE HEALTH CARE (UK) LTD,29/08/2023,504,6541-Domiciliary Care,THIRD PARTY PAYMENTS,PRIVATE CONTRACTOR,REVENUE
Walsall Council,http://opendatacommunities.org/id/metropolitan-district-council/walsall ,WC153-664,31.08.2023,ADULT SOCIAL CARE,ADVANCE HEALTH CARE (UK) LTD,29/08/2023,441,6541-Domiciliary Care,THIRD PARTY PAYMENTS,PRIVATE CONTRACTOR,REVENUE
Walsall Council,http://opendatacommunities.org/id/metropolitan-district-council/walsall ,WC153-665,31.08.2023,ADULT SOCIAL CARE,ADVANCE HEALTH CARE (UK) LTD,29/08/2023,567,6541-Domiciliary Care,THIRD PARTY PAYMENTS,PRIVATE CONTRACTOR,REVENUE
Walsall Council,http://opendatacommunities.org/id/metropolitan-district-council/walsall ,WC153-666,31.08.2023,ADULT SOCIAL CARE,ADVANCE HEALTH CARE (UK) LTD,29/08/2023,630,6541-Domiciliary Care,THIRD PARTY PAYMENTS,PRIVATE CONTRACTOR,REVENUE
Walsall Council,http://opendatacommunities.org/id/metropolitan-district-council/walsall ,WC153-667,31.08.2023,ADULT SOCIAL CARE,ADVANCE HEALTH CARE (UK) LTD,29/08/2023,441,6541-Domiciliary Care,THIRD PARTY PAYMENTS,PRIVATE CONTRACTOR,REVENUE
Walsall Council,http://opendatacommunities.org/id/metropolitan-district-council/walsall ,WC153-668,31.08.2023,ADULT SOCIAL CARE,ADVANCE HEALTH CARE (UK) LTD,29/08/2023,567,6541-Domiciliary Care,THIRD PARTY PAYMENTS,PRIVATE CONTRACTOR,REVENUE
Walsall Council,http://opendatacommunities.org/id/metropolitan-district-council/walsall ,WC153-669,31.08.2023,ADULT SOCIAL CARE,ADVANCE HEALTH CARE (UK) LTD,29/08/2023,283.5,6541-Domiciliary Care,THIRD PARTY PAYMENTS,PRIVATE CONTRACTOR,REVENUE
Walsall Council,http://opendatacommunities.org/id/metropolitan-district-council/walsall ,WC153-670,31.08.2023,ADULT SOCIAL CARE,ADVANCE HEALTH CARE (UK) LTD,29/08/2023,420,6541-Domiciliary Care,THIRD PARTY PAYMENTS,PRIVATE CONTRACTOR,REVENUE
Walsall Council,http://opendatacommunities.org/id/metropolitan-district-council/walsall ,WC153-671,31.08.2023,ADULT SOCIAL CARE,ADVANCE HEALTH CARE (UK) LTD,29/08/2023,963,6541-Domiciliary Care,THIRD PARTY PAYMENTS,PRIVATE CONTRACTOR,REVENUE
Walsall Council,http://opendatacommunities.org/id/metropolitan-district-council/walsall ,WC153-672,31.08.2023,ADULT SOCIAL CARE,ADVANCE HEALTH CARE (UK) LTD,29/08/2023,441,6541-Domiciliary Care,THIRD PARTY PAYMENTS,PRIVATE CONTRACTOR,REVENUE
Walsall Council,http://opendatacommunities.org/id/metropolitan-district-council/walsall ,WC153-673,31.08.2023,ADULT SOCIAL CARE,ADVANCE HEALTH CARE (UK) LTD,29/08/2023,378,6541-Domiciliary Care,THIRD PARTY PAYMENTS,PRIVATE CONTRACTOR,REVENUE
Walsall Council,http://opendatacommunities.org/id/metropolitan-district-council/walsall ,WC153-674,31.08.2023,ADULT SOCIAL CARE,ADVANCE HEALTH CARE (UK) LTD,29/08/2023,441,6541-Domiciliary Care,THIRD PARTY PAYMENTS,PRIVATE CONTRACTOR,REVENUE
Walsall Council,http://opendatacommunities.org/id/metropolitan-district-council/walsall ,WC153-675,31.08.2023,ADULT SOCIAL CARE,ADVANCE HEALTH CARE (UK) LTD,29/08/2023,301.5,6541-Domiciliary Care,THIRD PARTY PAYMENTS,PRIVATE CONTRACTOR,REVENUE
Walsall Council,http://opendatacommunities.org/id/metropolitan-district-council/walsall ,WC153-676,31.08.2023,ADULT SOCIAL CARE,ADVANCE HEALTH CARE (UK) LTD,29/08/2023,756,6541-Domiciliary Care,THIRD PARTY PAYMENTS,PRIVATE CONTRACTOR,REVENUE
Walsall Council,http://opendatacommunities.org/id/metropolitan-district-council/walsall ,WC153-677,31.08.2023,ADULT SOCIAL CARE,ADVANCE HEALTH CARE (UK) LTD,29/08/2023,301.5,6541-Domiciliary Care,THIRD PARTY PAYMENTS,PRIVATE CONTRACTOR,REVENUE
Walsall Council,http://opendatacommunities.org/id/metropolitan-district-council/walsall ,WC153-678,31.08.2023,ADULT SOCIAL CARE,ADVANCE HEALTH CARE (UK) LTD,29/08/2023,540,6541-Domiciliary Care,THIRD PARTY PAYMENTS,PRIVATE CONTRACTOR,REVENUE
Walsall Council,http://opendatacommunities.org/id/metropolitan-district-council/walsall ,WC153-679,31.08.2023,ADULT SOCIAL CARE,ADVANCE HEALTH CARE (UK) LTD,29/08/2023,504,6541-Domiciliary Care,THIRD PARTY PAYMENTS,PRIVATE CONTRACTOR,REVENUE
Walsall Council,http://opendatacommunities.org/id/metropolitan-district-council/walsall ,WC153-680,31.08.2023,ADULT SOCIAL CARE,ADVANCE HEALTH CARE (UK) LTD,29/08/2023,283.5,6541-Domiciliary Care,THIRD PARTY PAYMENTS,PRIVATE CONTRACTOR,REVENUE
Walsall Council,http://opendatacommunities.org/id/metropolitan-district-council/walsall ,WC153-681,31.08.2023,ADULT SOCIAL CARE,ADVANCE HEALTH CARE (UK) LTD,29/08/2023,639,6541-Domiciliary Care,THIRD PARTY PAYMENTS,PRIVATE CONTRACTOR,REVENUE
Walsall Council,http://opendatacommunities.org/id/metropolitan-district-council/walsall ,WC153-682,31.08.2023,ADULT SOCIAL CARE,ADVANCE HEALTH CARE (UK) LTD,29/08/2023,360,6541-Domiciliary Care,THIRD PARTY PAYMENTS,PRIVATE CONTRACTOR,REVENUE
Walsall Council,http://opendatacommunities.org/id/metropolitan-district-council/walsall ,WC153-683,31.08.2023,ADULT SOCIAL CARE,ADVANCE HEALTH CARE (UK) LTD,29/08/2023,567,6541-Domiciliary Care,THIRD PARTY PAYMENTS,PRIVATE CONTRACTOR,REVENUE
Walsall Council,http://opendatacommunities.org/id/metropolitan-district-council/walsall ,WC153-684,31.08.2023,ADULT SOCIAL CARE,ADVANCE HEALTH CARE (UK) LTD,29/08/2023,963,6541-Domiciliary Care,THIRD PARTY PAYMENTS,PRIVATE CONTRACTOR,REVENUE
Walsall Council,http://opendatacommunities.org/id/metropolitan-district-council/walsall ,WC153-685,31.08.2023,ADULT SOCIAL CARE,ADVANCE HEALTH CARE (UK) LTD,29/08/2023,441,6541-Domiciliary Care,THIRD PARTY PAYMENTS,PRIVATE CONTRACTOR,REVENUE
Walsall Council,http://opendatacommunities.org/id/metropolitan-district-council/walsall ,WC153-686,31.08.2023,ADULT SOCIAL CARE,ADVANCE HEALTH CARE (UK) LTD,29/08/2023,648,6541-Domiciliary Care,THIRD PARTY PAYMENTS,PRIVATE CONTRACTOR,REVENUE
Walsall Council,http://opendatacommunities.org/id/metropolitan-district-council/walsall ,WC153-687,31.08.2023,ADULT SOCIAL CARE,ADVANCE HEALTH CARE (UK) LTD,29/08/2023,441,6541-Domiciliary Care,THIRD PARTY PAYMENTS,PRIVATE CONTRACTOR,REVENUE
Walsall Council,http://opendatacommunities.org/id/metropolitan-district-council/walsall ,WC153-688,31.08.2023,ADULT SOCIAL CARE,ADVANCE HEALTH CARE (UK) LTD,29/08/2023,283.5,6541-Domiciliary Care,THIRD PARTY PAYMENTS,PRIVATE CONTRACTOR,REVENUE
Walsall Council,http://opendatacommunities.org/id/metropolitan-district-council/walsall ,WC153-689,31.08.2023,ADULT SOCIAL CARE,ADVANCE HEALTH CARE (UK) LTD,29/08/2023,301.5,6541-Domiciliary Care,THIRD PARTY PAYMENTS,PRIVATE CONTRACTOR,REVENUE
Walsall Council,http://opendatacommunities.org/id/metropolitan-district-council/walsall ,WC153-690,31.08.2023,ADULT SOCIAL CARE,ADVANCE HEALTH CARE (UK) LTD,29/08/2023,540,6541-Domiciliary Care,THIRD PARTY PAYMENTS,PRIVATE CONTRACTOR,REVENUE
Walsall Council,http://opendatacommunities.org/id/metropolitan-district-council/walsall ,WC153-691,31.08.2023,ADULT SOCIAL CARE,ADVANCE HEALTH CARE (UK) LTD,29/08/2023,378,6541-Domiciliary Care,THIRD PARTY PAYMENTS,PRIVATE CONTRACTOR,REVENUE
Walsall Council,http://opendatacommunities.org/id/metropolitan-district-council/walsall ,WC153-692,31.08.2023,ADULT SOCIAL CARE,ADVANCE HEALTH CARE (UK) LTD,29/08/2023,567,6541-Domiciliary Care,THIRD PARTY PAYMENTS,PRIVATE CONTRACTOR,REVENUE
Walsall Council,http://opendatacommunities.org/id/metropolitan-district-council/walsall ,WC153-693,31.08.2023,ADULT SOCIAL CARE,ADVANCE HEALTH CARE (UK) LTD,29/08/2023,283.5,6541-Domiciliary Care,THIRD PARTY PAYMENTS,PRIVATE CONTRACTOR,REVENUE
Walsall Council,http://opendatacommunities.org/id/metropolitan-district-council/walsall ,WC153-694,31.08.2023,ADULT SOCIAL CARE,ADVANCE HEALTH CARE (UK) LTD,29/08/2023,420,6541-Domiciliary Care,THIRD PARTY PAYMENTS,PRIVATE CONTRACTOR,REVENUE
Walsall Council,http://opendatacommunities.org/id/metropolitan-district-council/walsall ,WC153-695,31.08.2023,ADULT SOCIAL CARE,ADVANCE HEALTH CARE (UK) LTD,29/08/2023,504,6541-Domiciliary Care,THIRD PARTY PAYMENTS,PRIVATE CONTRACTOR,REVENUE
Walsall Council,http://opendatacommunities.org/id/metropolitan-district-council/walsall ,WC153-696,31.08.2023,ADULT SOCIAL CARE,ADVANCE HEALTH CARE (UK) LTD,29/08/2023,283.5,6541-Domiciliary Care,THIRD PARTY PAYMENTS,PRIVATE CONTRACTOR,REVENUE
Walsall Council,http://opendatacommunities.org/id/metropolitan-district-council/walsall ,WC153-697,31.08.2023,ADULT SOCIAL CARE,ADVANCE HEALTH CARE (UK) LTD,29/08/2023,639,6541-Domiciliary Care,THIRD PARTY PAYMENTS,PRIVATE CONTRACTOR,REVENUE
Walsall Council,http://opendatacommunities.org/id/metropolitan-district-council/walsall ,WC153-698,31.08.2023,ADULT SOCIAL CARE,ADVANCE HEALTH CARE (UK) LTD,29/08/2023,567,6541-Domiciliary Care,THIRD PARTY PAYMENTS,PRIVATE CONTRACTOR,REVENUE
Walsall Council,http://opendatacommunities.org/id/metropolitan-district-council/walsall ,WC153-699,31.08.2023,ADULT SOCIAL CARE,ADVANCE HEALTH CARE (UK) LTD,29/08/2023,567,6541-Domiciliary Care,THIRD PARTY PAYMENTS,PRIVATE CONTRACTOR,REVENUE
Walsall Council,http://opendatacommunities.org/id/metropolitan-district-council/walsall ,WC153-700,31.08.2023,ADULT SOCIAL CARE,ADVANCE HEALTH CARE (UK) LTD,29/08/2023,630,6541-Domiciliary Care,THIRD PARTY PAYMENTS,PRIVATE CONTRACTOR,REVENUE
Walsall Council,http://opendatacommunities.org/id/metropolitan-district-council/walsall ,WC153-701,31.08.2023,ADULT SOCIAL CARE,ADVANCE HEALTH CARE (UK) LTD,29/08/2023,441,6541-Domiciliary Care,THIRD PARTY PAYMENTS,PRIVATE CONTRACTOR,REVENUE
Walsall Council,http://opendatacommunities.org/id/metropolitan-district-council/walsall ,WC153-702,31.08.2023,ADULT SOCIAL CARE,ADVANCE HEALTH CARE (UK) LTD,29/08/2023,252,6541-Domiciliary Care,THIRD PARTY PAYMENTS,PRIVATE CONTRACTOR,REVENUE
Walsall Council,http://opendatacommunities.org/id/metropolitan-district-council/walsall ,WC153-703,31.08.2023,ADULT SOCIAL CARE,ADVANCE HEALTH CARE (UK) LTD,29/08/2023,504,6541-Domiciliary Care,THIRD PARTY PAYMENTS,PRIVATE CONTRACTOR,REVENUE
Walsall Council,http://opendatacommunities.org/id/metropolitan-district-council/walsall ,WC153-704,31.08.2023,ADULT SOCIAL CARE,ADVANCE HEALTH CARE (UK) LTD,29/08/2023,441,6541-Domiciliary Care,THIRD PARTY PAYMENTS,PRIVATE CONTRACTOR,REVENUE
Walsall Council,http://opendatacommunities.org/id/metropolitan-district-council/walsall ,WC153-705,31.08.2023,ADULT SOCIAL CARE,ADVANCE HEALTH CARE (UK) LTD,29/08/2023,567,6541-Domiciliary Care,THIRD PARTY PAYMENTS,PRIVATE CONTRACTOR,REVENUE
Walsall Council,http://opendatacommunities.org/id/metropolitan-district-council/walsall ,WC153-706,31.08.2023,ADULT SOCIAL CARE,ADVANCE HEALTH CARE (UK) LTD,29/08/2023,630,6541-Domiciliary Care,THIRD PARTY PAYMENTS,PRIVATE CONTRACTOR,REVENUE
Walsall Council,http://opendatacommunities.org/id/metropolitan-district-council/walsall ,WC153-707,31.08.2023,ADULT SOCIAL CARE,ADVANCE HEALTH CARE (UK) LTD,29/08/2023,441,6541-Domiciliary Care,THIRD PARTY PAYMENTS,PRIVATE CONTRACTOR,REVENUE
Walsall Council,http://opendatacommunities.org/id/metropolitan-district-council/walsall ,WC153-708,31.08.2023,ADULT SOCIAL CARE,ADVANCE HEALTH CARE (UK) LTD,29/08/2023,567,6541-Domiciliary Care,THIRD PARTY PAYMENTS,PRIVATE CONTRACTOR,REVENUE
Walsall Council,http://opendatacommunities.org/id/metropolitan-district-council/walsall ,WC153-709,31.08.2023,ADULT SOCIAL CARE,ADVANCE HEALTH CARE (UK) LTD,29/08/2023,378,6541-Domiciliary Care,THIRD PARTY PAYMENTS,PRIVATE CONTRACTOR,REVENUE
Walsall Council,http://opendatacommunities.org/id/metropolitan-district-council/walsall ,WC153-710,31.08.2023,ADULT SOCIAL CARE,ADVANCE HEALTH CARE (UK) LTD,29/08/2023,301.5,6541-Domiciliary Care,THIRD PARTY PAYMENTS,PRIVATE CONTRACTOR,REVENUE
Walsall Council,http://opendatacommunities.org/id/metropolitan-district-council/walsall ,WC153-711,31.08.2023,ADULT SOCIAL CARE,ADVANCE HEALTH CARE (UK) LTD,29/08/2023,756,6541-Domiciliary Care,THIRD PARTY PAYMENTS,PRIVATE CONTRACTOR,REVENUE
Walsall Council,http://opendatacommunities.org/id/metropolitan-district-council/walsall ,WC153-712,31.08.2023,ADULT SOCIAL CARE,ADVANCE HEALTH CARE (UK) LTD,29/08/2023,504,6541-Domiciliary Care,THIRD PARTY PAYMENTS,PRIVATE CONTRACTOR,REVENUE
Walsall Council,http://opendatacommunities.org/id/metropolitan-district-council/walsall ,WC153-713,31.08.2023,ADULT SOCIAL CARE,ADVINIA CARE HOMES LTD - HAMMERWICH HALL CARE HOME,01/08/2023,"2,413.36",6541-Residential EMI,THIRD PARTY PAYMENTS,PRIVATE CONTRACTOR,REVENUE
Walsall Council,http://opendatacommunities.org/id/metropolitan-district-council/walsall ,WC153-714,31.08.2023,ADULT SOCIAL CARE,ADVINIA CARE HOMES LTD - HAMMERWICH HALL CARE HOME,01/08/2023,"2,137.32",6541-Residential,THIRD PARTY PAYMENTS,PRIVATE CONTRACTOR,REVENUE
Walsall Council,http://opendatacommunities.org/id/metropolitan-district-council/walsall ,WC153-715,31.08.2023,ADULT SOCIAL CARE,ADVINIA CARE HOMES LTD - HAMMERWICH HALL CARE HOME,01/08/2023,280,6541-Residential,THIRD PARTY PAYMENTS,PRIVATE CONTRACTOR,REVENUE
Walsall Council,http://opendatacommunities.org/id/metropolitan-district-council/walsall ,WC153-716,31.08.2023,ADULT SOCIAL CARE,ADVINIA CARE HOMES LTD - HAMMERWICH HALL CARE HOME,01/08/2023,280,6541-Residential EMI,THIRD PARTY PAYMENTS,PRIVATE CONTRACTOR,REVENUE
Walsall Council,http://opendatacommunities.org/id/metropolitan-district-council/walsall ,WC153-717,31.08.2023,ADULT SOCIAL CARE,ADVINIA CARE HOMES LTD - HAMMERWICH HALL CARE HOME,29/08/2023,"2,413.36",6541-Residential EMI,THIRD PARTY PAYMENTS,PRIVATE CONTRACTOR,REVENUE
Walsall Council,http://opendatacommunities.org/id/metropolitan-district-council/walsall ,WC153-718,31.08.2023,ADULT SOCIAL CARE,ADVINIA CARE HOMES LTD - HAMMERWICH HALL CARE HOME,29/08/2023,"2,137.32",6541-Residential,THIRD PARTY PAYMENTS,PRIVATE CONTRACTOR,REVENUE
Walsall Council,http://opendatacommunities.org/id/metropolitan-district-council/walsall ,WC153-719,31.08.2023,ADULT SOCIAL CARE,ADVINIA CARE HOMES LTD - HAMMERWICH HALL CARE HOME,29/08/2023,280,6541-Residential EMI,THIRD PARTY PAYMENTS,PRIVATE CONTRACTOR,REVENUE
Walsall Council,http://opendatacommunities.org/id/metropolitan-district-council/walsall ,WC153-720,31.08.2023,ADULT SOCIAL CARE,ADVINIA CARE HOMES LTD - HAMMERWICH HALL CARE HOME,29/08/2023,280,6541-Residential,THIRD PARTY PAYMENTS,PRIVATE CONTRACTOR,REVENUE
Walsall Council,http://opendatacommunities.org/id/metropolitan-district-council/walsall ,WC153-721,31.08.2023,ECONOMY & ENVIRONMENT CAPITAL,AECOM INFRASTRUCTURE & ENVIRONMENT UK LIMITED,02/08/2023,"-2,903.35",7200-Consultants Fees,CAPITAL,"NEW CONSTRUCTION,CONVERSION & RENOVATION",CAPITAL
Walsall Council,http://opendatacommunities.org/id/metropolitan-district-council/walsall ,WC153-722,31.08.2023,ECONOMY & ENVIRONMENT CAPITAL,AECOM INFRASTRUCTURE & ENVIRONMENT UK LIMITED,02/08/2023,"2,903.35",7200-Consultants Fees,CAPITAL,"NEW CONSTRUCTION,CONVERSION & RENOVATION",CAPITAL
Walsall Council,http://opendatacommunities.org/id/metropolitan-district-council/walsall ,WC153-723,31.08.2023,ADULT SOCIAL CARE,AESOP ARTS AND SOCIETY LTD,14/08/2023,"6,248.75",6420-Professional Fees & Services,SUPPLIES & SERVICES,SERVICES,REVENUE
Walsall Council,http://opendatacommunities.org/id/metropolitan-district-council/walsall ,WC153-724,31.08.2023,ADULT SOCIAL CARE,REDACTED,03/08/2023,597.12,6541-Direct Payment,THIRD PARTY PAYMENTS,PRIVATE CONTRACTOR,REVENUE
Walsall Council,http://opendatacommunities.org/id/metropolitan-district-council/walsall ,WC153-725,31.08.2023,ADULT SOCIAL CARE,REDACTED,03/08/2023,"1,449.00",6541-Direct Payment,THIRD PARTY PAYMENTS,PRIVATE CONTRACTOR,REVENUE
Walsall Council,http://opendatacommunities.org/id/metropolitan-district-council/walsall ,WC153-726,31.08.2023,CHILDRENS,REDACTED,24/08/2023,535.08,6223-Special Guardianship Orders,TRANSFER PAYMENTS,CHILDREN SOCIAL SERVICES CLIENT,REVENUE
Walsall Council,http://opendatacommunities.org/id/metropolitan-district-council/walsall ,WC153-727,31.08.2023,"ECONOMY, ENVIRONMENT & COMMUNITIES",AGROVISTA UK LTD,23/08/2023,-491.26,6410-Materials,SUPPLIES & SERVICES,EQUIPMENT FURNITURE & MATERIALS,REVENUE
Walsall Council,http://opendatacommunities.org/id/metropolitan-district-council/walsall ,WC153-728,31.08.2023,"ECONOMY, ENVIRONMENT & COMMUNITIES",AGROVISTA UK LTD,23/08/2023,491.26,6410-Materials,SUPPLIES & SERVICES,EQUIPMENT FURNITURE & MATERIALS,REVENUE
Walsall Council,http://opendatacommunities.org/id/metropolitan-district-council/walsall ,WC153-729,31.08.2023,"ECONOMY, ENVIRONMENT & COMMUNITIES",AGROVISTA UK LTD,23/08/2023,802.2,6410-Materials,SUPPLIES & SERVICES,EQUIPMENT FURNITURE & MATERIALS,REVENUE
Walsall Council,http://opendatacommunities.org/id/metropolitan-district-council/walsall ,WC153-730,31.08.2023,"ECONOMY, ENVIRONMENT & COMMUNITIES",AGROVISTA UK LTD,18/08/2023,486.2,6410-Materials,SUPPLIES & SERVICES,EQUIPMENT FURNITURE & MATERIALS,REVENUE
Walsall Council,http://opendatacommunities.org/id/metropolitan-district-council/walsall ,WC153-731,31.08.2023,"ECONOMY, ENVIRONMENT & COMMUNITIES",AGROVISTA UK LTD,18/08/2023,486.2,6410-Materials,SUPPLIES & SERVICES,EQUIPMENT FURNITURE & MATERIALS,REVENUE
Walsall Council,http://opendatacommunities.org/id/metropolitan-district-council/walsall ,WC153-732,31.08.2023,"ECONOMY, ENVIRONMENT & COMMUNITIES",AGROVISTA UK LTD,29/08/2023,310.4,6413-Materials,SUPPLIES & SERVICES,EQUIPMENT FURNITURE & MATERIALS,REVENUE
Walsall Council,http://opendatacommunities.org/id/metropolitan-district-council/walsall ,WC153-733,31.08.2023,ADULT SOCIAL CARE,REDACTED,03/08/2023,"2,836.32",6541-Direct Payment,THIRD PARTY PAYMENTS,PRIVATE CONTRACTOR,REVENUE
Walsall Council,http://opendatacommunities.org/id/metropolitan-district-council/walsall ,WC153-734,31.08.2023,RESOURCES AND TRANSFORMATION,AIRTECH CONTROLS LTD,31/08/2023,"1,188.00",6310-Planned Maintenance,PREMISES,REPAIRS & MAINTENANCE,REVENUE
Walsall Council,http://opendatacommunities.org/id/metropolitan-district-council/walsall ,WC153-735,31.08.2023,ADULT SOCIAL CARE,REDACTED,03/08/2023,"1,125.44",6541-Direct Payment,THIRD PARTY PAYMENTS,PRIVATE CONTRACTOR,REVENUE
Walsall Council,http://opendatacommunities.org/id/metropolitan-district-council/walsall ,WC153-736,31.08.2023,ADULT SOCIAL CARE,REDACTED,03/08/2023,538.58,6541-Direct Payment,THIRD PARTY PAYMENTS,PRIVATE CONTRACTOR,REVENUE
Walsall Council,http://opendatacommunities.org/id/metropolitan-district-council/walsall ,WC153-737,31.08.2023,ADULT SOCIAL CARE,REDACTED,03/08/2023,264,6541-Direct Payment,THIRD PARTY PAYMENTS,PRIVATE CONTRACTOR,REVENUE
Walsall Council,http://opendatacommunities.org/id/metropolitan-district-council/walsall ,WC153-738,31.08.2023,ADULT SOCIAL CARE,REDACTED,03/08/2023,"2,772.00",6541-Direct Payment,THIRD PARTY PAYMENTS,PRIVATE CONTRACTOR,REVENUE
Walsall Council,http://opendatacommunities.org/id/metropolitan-district-council/walsall ,WC153-739,31.08.2023,ADULT SOCIAL CARE,REDACTED,03/08/2023,"1,393.28",6541-Direct Payment,THIRD PARTY PAYMENTS,PRIVATE CONTRACTOR,REVENUE
Walsall Council,http://opendatacommunities.org/id/metropolitan-district-council/walsall ,WC153-740,31.08.2023,ADULT SOCIAL CARE,ALDBOURNE NURSING HOME LTD,01/08/2023,"6,282.88",6541-Nursing EMI,THIRD PARTY PAYMENTS,PRIVATE CONTRACTOR,REVENUE
Walsall Council,http://opendatacommunities.org/id/metropolitan-district-council/walsall ,WC153-741,31.08.2023,ADULT SOCIAL CARE,ALDBOURNE NURSING HOME LTD,29/08/2023,"6,282.88",6541-Nursing EMI,THIRD PARTY PAYMENTS,PRIVATE CONTRACTOR,REVENUE
Walsall Council,http://opendatacommunities.org/id/metropolitan-district-council/walsall ,WC153-742,31.08.2023,CHILDRENS,ALDRIDGE & BARONS LIMITED,15/08/2023,"2,040.00",6241-Hire of Vehicle with Driver,TRANSPORT,DIRECT TRANSPORT COSTS,REVENUE
Walsall Council,http://opendatacommunities.org/id/metropolitan-district-council/walsall ,WC153-743,31.08.2023,CHILDRENS,ALDRIDGE & BARONS LIMITED,15/08/2023,"2,610.00",6241-Hire of Vehicle with Driver,TRANSPORT,DIRECT TRANSPORT COSTS,REVENUE
Walsall Council,http://opendatacommunities.org/id/metropolitan-district-council/walsall ,WC153-744,31.08.2023,CHILDRENS,ALDRIDGE & BARONS LIMITED,15/08/2023,"2,454.46",6241-Hire of Vehicle with Driver,TRANSPORT,DIRECT TRANSPORT COSTS,REVENUE
Walsall Council,http://opendatacommunities.org/id/metropolitan-district-council/walsall ,WC153-745,31.08.2023,CHILDRENS,ALDRIDGE & BARONS LIMITED,15/08/2023,"1,989.00",6241-Hire of Vehicle with Driver,TRANSPORT,DIRECT TRANSPORT COSTS,REVENUE
Walsall Council,http://opendatacommunities.org/id/metropolitan-district-council/walsall ,WC153-746,31.08.2023,CHILDRENS,ALDRIDGE & BARONS LIMITED,15/08/2023,"3,060.00",6241-Hire of Vehicle with Driver,TRANSPORT,DIRECT TRANSPORT COSTS,REVENUE
Walsall Council,http://opendatacommunities.org/id/metropolitan-district-council/walsall ,WC153-747,31.08.2023,CHILDRENS,ALDRIDGE & BARONS LIMITED,15/08/2023,"1,897.20",6241-Hire of Vehicle with Driver,TRANSPORT,DIRECT TRANSPORT COSTS,REVENUE
Walsall Council,http://opendatacommunities.org/id/metropolitan-district-council/walsall ,WC153-748,31.08.2023,CHILDRENS,ALDRIDGE & BARONS LIMITED,15/08/2023,"1,575.00",6241-Hire of Vehicle with Driver,TRANSPORT,DIRECT TRANSPORT COSTS,REVENUE
Walsall Council,http://opendatacommunities.org/id/metropolitan-district-council/walsall ,WC153-749,31.08.2023,CHILDRENS,ALDRIDGE & BARONS LIMITED,15/08/2023,"2,051.90",6241-Hire of Vehicle with Driver,TRANSPORT,DIRECT TRANSPORT COSTS,REVENUE
Walsall Council,http://opendatacommunities.org/id/metropolitan-district-council/walsall ,WC153-750,31.08.2023,CHILDRENS,ALDRIDGE & BARONS LIMITED,15/08/2023,"2,725.00",6241-Hire of Vehicle with Driver,TRANSPORT,DIRECT TRANSPORT COSTS,REVENUE
Walsall Council,http://opendatacommunities.org/id/metropolitan-district-council/walsall ,WC153-751,31.08.2023,CHILDRENS,ALDRIDGE & BARONS LIMITED,15/08/2023,"2,210.00",6241-Hire of Vehicle with Driver,TRANSPORT,DIRECT TRANSPORT COSTS,REVENUE
Walsall Council,http://opendatacommunities.org/id/metropolitan-district-council/walsall ,WC153-752,31.08.2023,CHILDRENS,ALDRIDGE & BARONS LIMITED,15/08/2023,"2,488.32",6241-Hire of Vehicle with Driver,TRANSPORT,DIRECT TRANSPORT COSTS,REVENUE
Walsall Council,http://opendatacommunities.org/id/metropolitan-district-council/walsall ,WC153-753,31.08.2023,CHILDRENS,ALDRIDGE & BARONS LIMITED,15/08/2023,750,6241-Hire of Vehicle with Driver,TRANSPORT,DIRECT TRANSPORT COSTS,REVENUE
Walsall Council,http://opendatacommunities.org/id/metropolitan-district-council/walsall ,WC153-754,31.08.2023,CHILDRENS,ALDRIDGE & BARONS LIMITED,15/08/2023,"2,380.00",6241-Hire of Vehicle with Driver,TRANSPORT,DIRECT TRANSPORT COSTS,REVENUE
Walsall Council,http://opendatacommunities.org/id/metropolitan-district-council/walsall ,WC153-755,31.08.2023,CHILDRENS,ALDRIDGE & BARONS LIMITED,15/08/2023,"2,040.00",6241-Hire of Vehicle with Driver,TRANSPORT,DIRECT TRANSPORT COSTS,REVENUE
Walsall Council,http://opendatacommunities.org/id/metropolitan-district-council/walsall ,WC153-756,31.08.2023,CHILDRENS,ALDRIDGE & BARONS LIMITED,15/08/2023,"2,208.00",6241-Hire of Vehicle with Driver,TRANSPORT,DIRECT TRANSPORT COSTS,REVENUE
Walsall Council,http://opendatacommunities.org/id/metropolitan-district-council/walsall ,WC153-757,31.08.2023,CHILDRENS,ALDRIDGE & BARONS LIMITED,15/08/2023,750,6241-Hire of Vehicle with Driver,TRANSPORT,DIRECT TRANSPORT COSTS,REVENUE
Walsall Council,http://opendatacommunities.org/id/metropolitan-district-council/walsall ,WC153-758,31.08.2023,CHILDRENS,ALDRIDGE & BARONS LIMITED,15/08/2023,"2,696.20",6241-Hire of Vehicle with Driver,TRANSPORT,DIRECT TRANSPORT COSTS,REVENUE
Walsall Council,http://opendatacommunities.org/id/metropolitan-district-council/walsall ,WC153-759,31.08.2023,CHILDRENS,ALDRIDGE & BARONS LIMITED,15/08/2023,"1,530.00",6241-Hire of Vehicle with Driver,TRANSPORT,DIRECT TRANSPORT COSTS,REVENUE
Walsall Council,http://opendatacommunities.org/id/metropolitan-district-council/walsall ,WC153-760,31.08.2023,CHILDRENS,ALDRIDGE & BARONS LIMITED,15/08/2023,"1,080.00",6241-Hire of Vehicle with Driver,TRANSPORT,DIRECT TRANSPORT COSTS,REVENUE
Walsall Council,http://opendatacommunities.org/id/metropolitan-district-council/walsall ,WC153-761,31.08.2023,CHILDRENS,ALDRIDGE & BARONS LIMITED,15/08/2023,"1,485.00",6241-Hire of Vehicle with Driver,TRANSPORT,DIRECT TRANSPORT COSTS,REVENUE
Walsall Council,http://opendatacommunities.org/id/metropolitan-district-council/walsall ,WC153-762,31.08.2023,CHILDRENS,ALDRIDGE & BARONS LIMITED,15/08/2023,"1,870.00",6241-Hire of Vehicle with Driver,TRANSPORT,DIRECT TRANSPORT COSTS,REVENUE
Walsall Council,http://opendatacommunities.org/id/metropolitan-district-council/walsall ,WC153-763,31.08.2023,CHILDRENS,ALDRIDGE & BARONS LIMITED,15/08/2023,"1,875.00",6241-Hire of Vehicle with Driver,TRANSPORT,DIRECT TRANSPORT COSTS,REVENUE
Walsall Council,http://opendatacommunities.org/id/metropolitan-district-council/walsall ,WC153-764,31.08.2023,CHILDRENS,ALDRIDGE & BARONS LIMITED,15/08/2023,"2,550.00",6241-Hire of Vehicle with Driver,TRANSPORT,DIRECT TRANSPORT COSTS,REVENUE
Walsall Council,http://opendatacommunities.org/id/metropolitan-district-council/walsall ,WC153-765,31.08.2023,CHILDRENS,ALDRIDGE & BARONS LIMITED,15/08/2023,"1,800.00",6241-Hire of Vehicle with Driver,TRANSPORT,DIRECT TRANSPORT COSTS,REVENUE
Walsall Council,http://opendatacommunities.org/id/metropolitan-district-council/walsall ,WC153-766,31.08.2023,CHILDRENS,ALDRIDGE & BARONS LIMITED,15/08/2023,"2,125.00",6241-Hire of Vehicle with Driver,TRANSPORT,DIRECT TRANSPORT COSTS,REVENUE
Walsall Council,http://opendatacommunities.org/id/metropolitan-district-council/walsall ,WC153-767,31.08.2023,CHILDRENS,ALDRIDGE & BARONS LIMITED,15/08/2023,"1,750.00",6241-Hire of Vehicle with Driver,TRANSPORT,DIRECT TRANSPORT COSTS,REVENUE
Walsall Council,http://opendatacommunities.org/id/metropolitan-district-council/walsall ,WC153-768,31.08.2023,CHILDRENS,ALDRIDGE & BARONS LIMITED,15/08/2023,"2,389.86",6241-Hire of Vehicle with Driver,TRANSPORT,DIRECT TRANSPORT COSTS,REVENUE
Walsall Council,http://opendatacommunities.org/id/metropolitan-district-council/walsall ,WC153-769,31.08.2023,CHILDRENS,ALDRIDGE & BARONS LIMITED,15/08/2023,"1,287.75",6241-Hire of Vehicle with Driver,TRANSPORT,DIRECT TRANSPORT COSTS,REVENUE
Walsall Council,http://opendatacommunities.org/id/metropolitan-district-council/walsall ,WC153-770,31.08.2023,CHILDRENS,ALDRIDGE & BARONS LIMITED,15/08/2023,796.5,6241-Hire of Vehicle with Driver,TRANSPORT,DIRECT TRANSPORT COSTS,REVENUE
Walsall Council,http://opendatacommunities.org/id/metropolitan-district-council/walsall ,WC153-771,31.08.2023,CHILDRENS,ALDRIDGE & BARONS LIMITED,15/08/2023,"1,626.90",6241-Hire of Vehicle with Driver,TRANSPORT,DIRECT TRANSPORT COSTS,REVENUE
Walsall Council,http://opendatacommunities.org/id/metropolitan-district-council/walsall ,WC153-772,31.08.2023,CHILDRENS,ALDRIDGE & BARONS LIMITED,15/08/2023,"2,832.00",6241-Hire of Vehicle with Driver,TRANSPORT,DIRECT TRANSPORT COSTS,REVENUE
Walsall Council,http://opendatacommunities.org/id/metropolitan-district-council/walsall ,WC153-773,31.08.2023,CHILDRENS,ALDRIDGE & BARONS LIMITED,15/08/2023,297,6241-Hire of Vehicle with Driver,TRANSPORT,DIRECT TRANSPORT COSTS,REVENUE
Walsall Council,http://opendatacommunities.org/id/metropolitan-district-council/walsall ,WC153-774,31.08.2023,CHILDRENS,ALDRIDGE PREMIER TUITION LTD,09/08/2023,"7,429.00",1220-Professional Fees & Services,SUPPLIES & SERVICES,SERVICES,REVENUE
Walsall Council,http://opendatacommunities.org/id/metropolitan-district-council/walsall ,WC153-775,31.08.2023,CHILDRENS,ALDRIDGE PREMIER TUITION LTD,09/08/2023,-520,1220-Professional Fees & Services,SUPPLIES & SERVICES,SERVICES,REVENUE
Walsall Council,http://opendatacommunities.org/id/metropolitan-district-council/walsall ,WC153-776,31.08.2023,CHILDRENS,ALDRIDGE PREMIER TUITION LTD,09/08/2023,520,1220-Professional Fees & Services,SUPPLIES & SERVICES,SERVICES,REVENUE
Walsall Council,http://opendatacommunities.org/id/metropolitan-district-council/walsall ,WC153-777,31.08.2023,ADULT SOCIAL CARE,REDACTED,03/08/2023,"1,728.00",6541-Direct Payment,THIRD PARTY PAYMENTS,PRIVATE CONTRACTOR,REVENUE
Walsall Council,http://opendatacommunities.org/id/metropolitan-district-council/walsall ,WC153-778,31.08.2023,CHILDRENS,REDACTED,22/08/2023,807.43,6223-External Residential Care-Oth Agency Provision,THIRD PARTY PAYMENTS,PRIVATE CONTRACTOR,REVENUE
Walsall Council,http://opendatacommunities.org/id/metropolitan-district-council/walsall ,WC153-779,31.08.2023,ADULT SOCIAL CARE,ALEXANDRA HOUSE CARE SERVICES LTD T/A STONEBRIDGE NURSING HOME,01/08/2023,"7,546.24",6541-Residential,THIRD PARTY PAYMENTS,PRIVATE CONTRACTOR,REVENUE
Walsall Council,http://opendatacommunities.org/id/metropolitan-district-council/walsall ,WC153-780,31.08.2023,ADULT SOCIAL CARE,ALEXANDRA HOUSE CARE SERVICES LTD T/A STONEBRIDGE NURSING HOME,29/08/2023,"7,546.24",6541-Residential,THIRD PARTY PAYMENTS,PRIVATE CONTRACTOR,REVENUE
Walsall Council,http://opendatacommunities.org/id/metropolitan-district-council/walsall ,WC153-781,31.08.2023,ADULT SOCIAL CARE,ALEXANDRA HOUSE SUPPORT SERVICES LTD,01/08/2023,"5,936.00",6541-Residential,THIRD PARTY PAYMENTS,PRIVATE CONTRACTOR,REVENUE
Walsall Council,http://opendatacommunities.org/id/metropolitan-district-council/walsall ,WC153-782,31.08.2023,ADULT SOCIAL CARE,ALEXANDRA HOUSE SUPPORT SERVICES LTD,29/08/2023,"5,936.00",6541-Residential,THIRD PARTY PAYMENTS,PRIVATE CONTRACTOR,REVENUE
Walsall Council,http://opendatacommunities.org/id/metropolitan-district-council/walsall ,WC153-783,31.08.2023,ADULT SOCIAL CARE,REDACTED,03/08/2023,"1,094.72",6541-Direct Payment,THIRD PARTY PAYMENTS,PRIVATE CONTRACTOR,REVENUE
Walsall Council,http://opendatacommunities.org/id/metropolitan-district-council/walsall ,WC153-784,31.08.2023,CHILDRENS,REDACTED,24/08/2023,355.56,6223-Special Guardianship Orders,TRANSFER PAYMENTS,CHILDREN SOCIAL SERVICES CLIENT,REVENUE
Walsall Council,http://opendatacommunities.org/id/metropolitan-district-council/walsall ,WC153-785,31.08.2023,CHILDRENS,ALL SAINTS C OF E PRIMARY SCHOOL,02/08/2023,"3,131.33",1220-Top Up Funding -Grants to Schools,SUPPLIES & SERVICES,GRANTS (EXP) & SUBSCRIPTIONS,REVENUE
Walsall Council,http://opendatacommunities.org/id/metropolitan-district-council/walsall ,WC153-786,31.08.2023,"ECONOMY, ENVIRONMENT & COMMUNITIES",ALL TRAINING AND DEVELOPMENT LTD,21/08/2023,445,6411-Materials,SUPPLIES & SERVICES,EQUIPMENT FURNITURE & MATERIALS,REVENUE
Walsall Council,http://opendatacommunities.org/id/metropolitan-district-council/walsall ,WC153-787,31.08.2023,CHILDRENS,ALLIANCE CARE LTD,08/08/2023,"3,024.00",6220-Professional Fees & Services,SUPPLIES & SERVICES,SERVICES,REVENUE
Walsall Council,http://opendatacommunities.org/id/metropolitan-district-council/walsall ,WC153-788,31.08.2023,CHILDRENS,ALLIANCE CARE LTD,25/08/2023,"3,024.00",6220-Professional Fees & Services,SUPPLIES & SERVICES,SERVICES,REVENUE
Walsall Council,http://opendatacommunities.org/id/metropolitan-district-council/walsall ,WC153-789,31.08.2023,RESOURCES AND TRANSFORMATION,ALLIED PUBLICITY SERVICES (MANCHESTER) LIMITED T/A APS GROUP,11/08/2023,"1,866.28",6312-External Printing Services,SUPPLIES & SERVICES,PRINTING STATIONERY & GENERAL OFFICE,REVENUE
Walsall Council,http://opendatacommunities.org/id/metropolitan-district-council/walsall ,WC153-790,31.08.2023,RESOURCES AND TRANSFORMATION,ALLSORTS OFFICE SUPPLIES LTD,25/08/2023,"1,998.00",6310-Purchase of Furniture & Equipment,SUPPLIES & SERVICES,EQUIPMENT FURNITURE & MATERIALS,REVENUE
Walsall Council,http://opendatacommunities.org/id/metropolitan-district-council/walsall ,WC153-791,31.08.2023,RESOURCES AND TRANSFORMATION,ALLSORTS OFFICE SUPPLIES LTD,25/08/2023,840,6310-Repair & Maintenance of Furniture & Equipment,SUPPLIES & SERVICES,EQUIPMENT FURNITURE & MATERIALS,REVENUE
Walsall Council,http://opendatacommunities.org/id/metropolitan-district-council/walsall ,WC153-792,31.08.2023,ADULT SOCIAL CARE,ALMA COURT,01/08/2023,"6,718.40",6541-Residential,THIRD PARTY PAYMENTS,PRIVATE CONTRACTOR,REVENUE
Walsall Council,http://opendatacommunities.org/id/metropolitan-district-council/walsall ,WC153-793,31.08.2023,ADULT SOCIAL CARE,ALMA COURT,01/08/2023,"1,907.44",6541-Nursing EMI,THIRD PARTY PAYMENTS,PRIVATE CONTRACTOR,REVENUE
Walsall Council,http://opendatacommunities.org/id/metropolitan-district-council/walsall ,WC153-794,31.08.2023,ADULT SOCIAL CARE,ALMA COURT,01/08/2023,"4,861.00",6541-Nursing EMI,THIRD PARTY PAYMENTS,PRIVATE CONTRACTOR,REVENUE
Walsall Council,http://opendatacommunities.org/id/metropolitan-district-council/walsall ,WC153-795,31.08.2023,ADULT SOCIAL CARE,ALMA COURT,01/08/2023,"4,263.00",6541-Residential,THIRD PARTY PAYMENTS,PRIVATE CONTRACTOR,REVENUE
Walsall Council,http://opendatacommunities.org/id/metropolitan-district-council/walsall ,WC153-796,31.08.2023,ADULT SOCIAL CARE,ALMA COURT,01/08/2023,"4,055.28",6541-Nursing EMI,THIRD PARTY PAYMENTS,PRIVATE CONTRACTOR,REVENUE
Walsall Council,http://opendatacommunities.org/id/metropolitan-district-council/walsall ,WC153-797,31.08.2023,ADULT SOCIAL CARE,ALMA COURT,29/08/2023,"4,861.00",6541-Nursing EMI,THIRD PARTY PAYMENTS,PRIVATE CONTRACTOR,REVENUE
Walsall Council,http://opendatacommunities.org/id/metropolitan-district-council/walsall ,WC153-798,31.08.2023,ADULT SOCIAL CARE,ALMA COURT,29/08/2023,"4,263.00",6541-Residential,THIRD PARTY PAYMENTS,PRIVATE CONTRACTOR,REVENUE
Walsall Council,http://opendatacommunities.org/id/metropolitan-district-council/walsall ,WC153-799,31.08.2023,ADULT SOCIAL CARE,ALMA COURT,29/08/2023,"4,055.28",6541-Nursing EMI,THIRD PARTY PAYMENTS,PRIVATE CONTRACTOR,REVENUE
Walsall Council,http://opendatacommunities.org/id/metropolitan-district-council/walsall ,WC153-800,31.08.2023,ADULT SOCIAL CARE,ALMA COURT,29/08/2023,"6,718.40",6541-Residential,THIRD PARTY PAYMENTS,PRIVATE CONTRACTOR,REVENUE
Walsall Council,http://opendatacommunities.org/id/metropolitan-district-council/walsall ,WC153-801,31.08.2023,CHILDRENS,ALMOZENE NURSERY & CHILDRENS CENTRE,11/08/2023,450,6220-Creche Facilities,SUPPLIES & SERVICES,SERVICES,REVENUE
Walsall Council,http://opendatacommunities.org/id/metropolitan-district-council/walsall ,WC153-802,31.08.2023,ADULT SOCIAL CARE,ALPHA HEALTH CARE LTD,01/08/2023,"2,936.84",6541-Residential EMI,THIRD PARTY PAYMENTS,PRIVATE CONTRACTOR,REVENUE
Walsall Council,http://opendatacommunities.org/id/metropolitan-district-council/walsall ,WC153-803,31.08.2023,ADULT SOCIAL CARE,ALPHA HEALTH CARE LTD,01/08/2023,"2,819.08",6541-Nursing EMI,THIRD PARTY PAYMENTS,PRIVATE CONTRACTOR,REVENUE
Walsall Council,http://opendatacommunities.org/id/metropolitan-district-council/walsall ,WC153-804,31.08.2023,ADULT SOCIAL CARE,ALPHA HEALTH CARE LTD,01/08/2023,"7,123.08",6541-Nursing EMI,THIRD PARTY PAYMENTS,PRIVATE CONTRACTOR,REVENUE
Walsall Council,http://opendatacommunities.org/id/metropolitan-district-council/walsall ,WC153-805,31.08.2023,ADULT SOCIAL CARE,ALPHA HEALTH CARE LTD,01/08/2023,"6,343.36",6541-Residential,THIRD PARTY PAYMENTS,PRIVATE CONTRACTOR,REVENUE
Walsall Council,http://opendatacommunities.org/id/metropolitan-district-council/walsall ,WC153-806,31.08.2023,ADULT SOCIAL CARE,ALPHA HEALTH CARE LTD,01/08/2023,"3,135.00",6541-Nursing,THIRD PARTY PAYMENTS,PRIVATE CONTRACTOR,REVENUE
Walsall Council,http://opendatacommunities.org/id/metropolitan-district-council/walsall ,WC153-807,31.08.2023,ADULT SOCIAL CARE,ALPHA HEALTH CARE LTD,01/08/2023,"-8,308.03",6541-Nursing EMI,THIRD PARTY PAYMENTS,PRIVATE CONTRACTOR,REVENUE
Walsall Council,http://opendatacommunities.org/id/metropolitan-district-council/walsall ,WC153-808,31.08.2023,ADULT SOCIAL CARE,ALPHA HEALTH CARE LTD,01/08/2023,"3,445.36",6541-Residential EMI,THIRD PARTY PAYMENTS,PRIVATE CONTRACTOR,REVENUE
Walsall Council,http://opendatacommunities.org/id/metropolitan-district-council/walsall ,WC153-809,31.08.2023,ADULT SOCIAL CARE,ALPHA HEALTH CARE LTD,01/08/2023,"2,813.36",6541-Residential EMI,THIRD PARTY PAYMENTS,PRIVATE CONTRACTOR,REVENUE
Walsall Council,http://opendatacommunities.org/id/metropolitan-district-council/walsall ,WC153-810,31.08.2023,ADULT SOCIAL CARE,ALPHA HEALTH CARE LTD,01/08/2023,"3,047.12",6541-Nursing,THIRD PARTY PAYMENTS,PRIVATE CONTRACTOR,REVENUE
Walsall Council,http://opendatacommunities.org/id/metropolitan-district-council/walsall ,WC153-811,31.08.2023,ADULT SOCIAL CARE,ALPHA HEALTH CARE LTD,01/08/2023,"2,905.36",6541-Nursing,THIRD PARTY PAYMENTS,PRIVATE CONTRACTOR,REVENUE
